Workbook

Sheet Residential
C2: Serviceability Calculator
C3: Version 1.7a - Effective 18th December 2024
C4: Net Service Ratio (NSR) Requirements (using Assessment Rate) All applicantions: NSR must be ≥ 1.00 Applicants with majority income as Government Allowances (eg. Pensions, Family Tax Benefits): NSR must be ≥ 1.25 1% Interest Rate Buffer Eligiblity Rules Allowed for the following transactions: The following rules apply: - Purchase of an investment property OR - Minimum Equifax Credit Bureau score is 700, AND - Interest rate is FIXED across the whole loan (cash out ≤ $20,000) OR - No RHI > 0 on all debts or default listings in the last 12 months & no unpaid defaults - Refinance mortgage & debt consolidation (cash out ≤ $20,000) 0% Interest Rate Buffer Eligibility Rules Allowed for the following transactions: The following rule applies: - Refinance home loan and associated costs only - No RHI > 0 on all debts or default listings in the last 12 months & no unpaid defaults - No cash out or any other loan purpose - The customer is placed into a better overall financial position as a result of a reduced interest rate and/or more affordable (lower) repayment
C6: Applicant Name
C8: Loan Details
G9: Interest Rate Buffer | H9: =IF(ISBLANK(I9)," <Select>","") -> <Select>
C10: New Loan Amount | G10: Interest Rate | H10: 5 | K10: Assessment Rate | O10: =MAX(BaselineAssessmentRate,I10+I9) -> 0
C11: (including capitalised fees) | G11: Loan Term | K11: =IF(I11>MaximumLoanTermInYearsForPrimeLoans, "Loans Terms > " & MaximumLoanTermInYearsForPrimeLoans & " years not available on Prime", " ") -> 
G12: I/O Term
C14: Applicant Details: | E14: Applicant 1 | G14: Applicant 2 | I14: Applicant 3 | K14: Applicant 4 | M14: Applicant 5 | O14: Applicant 6 | R14: Total
C15: Status
C16: Individual (Couple) With | D16: Applicant 1
C17: Dependants
E18: =IF(AND(SUM(E19:E23,E25:E26)<>0,E15=""),"Enter a Status","") ->  | G18: =IF(AND(SUM(G19:G23,G25:G26)<>0,G15=""),"Enter a Status","") ->  | I18: =IF(AND(SUM(I19:I23,I25:I26)<>0,I15=""),"Enter a Status","") ->  | K18: =IF(AND(SUM(K19:K23,K25:K26)<>0,K15=""),"Enter a Status","") ->  | M18: =IF(AND(SUM(M19:M23,M25:M26)<>0,M15=""),"Enter a Status","") ->  | O18: =IF(AND(SUM(O19:O23,O25:O26)<>0,O15=""),"Enter a Status","") -> 
C19: Gross Annual Income
C20: Untaxed Allowable Income | R20: =(E20+G20+I20+K20+M20+O20) -> 0
C21: Self Employed Income
C22: Addbacks
C23: Business NPBT
C25: Gross Rental Income | J25: 10000
C26: Investment Property Loan Balance | H26: 1 | J26: 1
C27: Total Income | E27: =E25*RentalIncomeShading+E19+E20+E21+E22+E23 -> 0 | G27: =G25*RentalIncomeShading+G19+G20+G21+G22+G23 -> 0 | I27: =I25*RentalIncomeShading+I19+I20+I21+I22+I23 -> 0 | K27: =K25*RentalIncomeShading+K19+K20+K21+K22+K23 -> 0 | M27: =M25*RentalIncomeShading+M19+M20+M21+M22+M23 -> 0 | O27: =O25*RentalIncomeShading+O19+O20+O21+O22+O23 -> 0 | R27: =(E27+G27+I27+K27+M27+O27) -> 0
C28: Is an Applicant | E28: =AND(E15<>"") -> FALSE | G28: =AND(G15<>"") -> FALSE | I28: =AND(I15<>"") -> FALSE | K28: =AND(K15<>"") -> FALSE | M28: =AND(M15<>"") -> FALSE | O28: =AND(O15<>"") -> FALSE
C29: Spouse Dependants | E29: =IFERROR(HLOOKUP(E16,ResiApplicantDetailsTable,4,FALSE),0) -> 0 | G29: =IFERROR(HLOOKUP(G16,ResiApplicantDetailsTable,4,FALSE),0) -> 0 | I29: =IFERROR(HLOOKUP(I16,ResiApplicantDetailsTable,4,FALSE),0) -> 0 | K29: =IFERROR(HLOOKUP(K16,ResiApplicantDetailsTable,4,FALSE),0) -> 0 | M29: =IFERROR(HLOOKUP(M16,ResiApplicantDetailsTable,4,FALSE),0) -> 0 | O29: =IFERROR(HLOOKUP(O16,ResiApplicantDetailsTable,4,FALSE),0) -> 0
C30: Pepper Status Code | D30: Applicant 1 | E30: =IF(E$15="Individual (Couple)","P-C",IF(E$15="Individual (Single)","P-S","")) ->  | G30: =IF(G$15="Individual (Couple)","P-C",IF(G$15="Individual (Single)","P-S","")) ->  | I30: =IF(I$15="Individual (Couple)","P-C",IF(I$15="Individual (Single)","P-S","")) ->  | K30: =IF(K$15="Individual (Couple)","P-C",IF(K$15="Individual (Single)","P-S","")) ->  | M30: =IF(M$15="Individual (Couple)","P-C",IF(M$15="Individual (Single)","P-S","")) ->  | O30: =IF(O$15="Individual (Couple)","P-C",IF(O$15="Individual (Single)","P-S","")) -> 
C31: Pepper Dependents Code | E31: =IF(E$15="Individual (Couple)","P-CD"&INDEX(Validation!$B$21:$B$26,MATCH((E$17+E$29),Validation!$A$21:$A$26,1)),IF(E$15="Individual (Single)","P-SD"&INDEX(Validation!$B$21:$B$26,MATCH((E$17+E$29),Validation!$A$21:$A$26,1)),"")) ->  | G31: =IF(G$15="Individual (Couple)","P-CD"&INDEX(Validation!$B$21:$B$26,MATCH((G$17+G$29),Validation!$A$21:$A$26,1)),IF(G$15="Individual (Single)","P-SD"&INDEX(Validation!$B$21:$B$26,MATCH((G$17+G$29),Validation!$A$21:$A$26,1)),"")) ->  | I31: =IF(I$15="Individual (Couple)","P-CD"&INDEX(Validation!$B$21:$B$26,MATCH((I$17+I$29),Validation!$A$21:$A$26,1)),IF(I$15="Individual (Single)","P-SD"&INDEX(Validation!$B$21:$B$26,MATCH((I$17+I$29),Validation!$A$21:$A$26,1)),"")) ->  | K31: =IF(K$15="Individual (Couple)","P-CD"&INDEX(Validation!$B$21:$B$26,MATCH((K$17+K$29),Validation!$A$21:$A$26,1)),IF(K$15="Individual (Single)","P-SD"&INDEX(Validation!$B$21:$B$26,MATCH((K$17+K$29),Validation!$A$21:$A$26,1)),"")) ->  | M31: =IF(M$15="Individual (Couple)","P-CD"&INDEX(Validation!$B$21:$B$26,MATCH((M$17+M$29),Validation!$A$21:$A$26,1)),IF(M$15="Individual (Single)","P-SD"&INDEX(Validation!$B$21:$B$26,MATCH((M$17+M$29),Validation!$A$21:$A$26,1)),"")) ->  | O31: =IF(O$15="Individual (Couple)","P-CD"&INDEX(Validation!$B$21:$B$26,MATCH((O$17+O$29),Validation!$A$21:$A$26,1)),IF(O$15="Individual (Single)","P-SD"&INDEX(Validation!$B$21:$B$26,MATCH((O$17+O$29),Validation!$A$21:$A$26,1)),"")) -> 
C32: Exclude for LE calc | E32: =IFERROR(IF(MATCH(E16,$E$14:$O$14,0)<(COLUMN()-COLUMN($E$14:$O$14)+1),TRUE,FALSE),FALSE) -> FALSE | G32: =IFERROR(IF(MATCH(G16,$E$14:$O$14,0)<(COLUMN()-COLUMN($E$14:$O$14)+1),TRUE,FALSE),FALSE) -> FALSE | I32: =IFERROR(IF(MATCH(I16,$E$14:$O$14,0)<(COLUMN()-COLUMN($E$14:$O$14)+1),TRUE,FALSE),FALSE) -> FALSE | K32: =IFERROR(IF(MATCH(K16,$E$14:$O$14,0)<(COLUMN()-COLUMN($E$14:$O$14)+1),TRUE,FALSE),FALSE) -> FALSE | M32: =IFERROR(IF(MATCH(M16,$E$14:$O$14,0)<(COLUMN()-COLUMN($E$14:$O$14)+1),TRUE,FALSE),FALSE) -> FALSE | O32: =IFERROR(IF(MATCH(O16,$E$14:$O$14,0)<(COLUMN()-COLUMN($E$14:$O$14)+1),TRUE,FALSE),FALSE) -> FALSE
C33: Workings for Negative Gearing | E33: =MIN(IF(E26>0,E26*WorkingsForNegativeGearing+($G$51*12*(E26/SUM($E$26,$G$26,$I$26,$K$26,$M$26,$O$26))),0),E25*RentalIncomeShading) -> 0 | G33: =MIN(IF(G26>0,G26*WorkingsForNegativeGearing+($G$51*12*(G26/SUM($E$26,$G$26,$I$26,$K$26,$M$26,$O$26))),0),G25) -> 0 | I33: =MIN(IF(I26>0,I26*WorkingsForNegativeGearing+($G$51*12*(I26/SUM($E$26,$G$26,$I$26,$K$26,$M$26,$O$26))),0),I25) -> 0 | K33: =MIN(IF(K26>0,K26*WorkingsForNegativeGearing+($G$51*12*(K26/SUM($E$26,$G$26,$I$26,$K$26,$M$26,$O$26))),0),K25) -> 0 | M33: =MIN(IF(M26>0,M26*WorkingsForNegativeGearing+($G$51*12*(M26/SUM($E$26,$G$26,$I$26,$K$26,$M$26,$O$26))),0),M25) -> 0 | O33: =MIN(IF(O26>0,O26*WorkingsForNegativeGearing+($G$51*12*(O26/SUM($E$26,$G$26,$I$26,$K$26,$M$26,$O$26))),0),O25) -> 0
C34: Total Taxable Income Exc Business NPBT | E34: =MAX(0,E19+E25*RentalIncomeShading-E33+E21) -> 0 | G34: =MAX(0,G19+G25*RentalIncomeShading-G33+G21) -> 0 | I34: =MAX(0,I19+I25*RentalIncomeShading-I33+I21) -> 0 | K34: =MAX(0,K19+K25*RentalIncomeShading-K33+K21) -> 0 | M34: =MAX(0,M19+M25*RentalIncomeShading-M33+M21) -> 0 | O34: =MAX(0,O19+O25*RentalIncomeShading-O33+O21) -> 0 | R34: =(E34+G34+I34+K34+M34+O34) -> 0
C35: Spouse Income | E35: =IFERROR(HLOOKUP(E16,$E$14:$O$27,ROWS($E$14:$O$27),FALSE),0)-IFERROR(HLOOKUP(E16,$E$14:$O$33,ROWS($E$14:$O$33),FALSE),0) -> 0 | G35: =IFERROR(HLOOKUP(G16,$E$14:$O$27,ROWS($E$14:$O$27),FALSE),0)-IFERROR(HLOOKUP(G16,$E$14:$O$33,ROWS($E$14:$O$33),FALSE),0) -> 0 | I35: =IFERROR(HLOOKUP(I16,$E$14:$O$27,ROWS($E$14:$O$27),FALSE),0)-IFERROR(HLOOKUP(I16,$E$14:$O$33,ROWS($E$14:$O$33),FALSE),0) -> 0 | K35: =IFERROR(HLOOKUP(K16,$E$14:$O$27,ROWS($E$14:$O$27),FALSE),0)-IFERROR(HLOOKUP(K16,$E$14:$O$33,ROWS($E$14:$O$33),FALSE),0) -> 0 | M35: =IFERROR(HLOOKUP(M16,$E$14:$O$27,ROWS($E$14:$O$27),FALSE),0)-IFERROR(HLOOKUP(M16,$E$14:$O$33,ROWS($E$14:$O$33),FALSE),0) -> 0 | O35: =IFERROR(HLOOKUP(O16,$E$14:$O$27,ROWS($E$14:$O$27),FALSE),0)-IFERROR(HLOOKUP(O16,$E$14:$O$33,ROWS($E$14:$O$33),FALSE),0) -> 0
C36: Income Bracket | E36: =IFERROR(HLOOKUP(E27+E35-E33,HemCombinedIncomeRange,3,TRUE),1) -> 1 | G36: =IFERROR(HLOOKUP(G27+G35-G33,HemCombinedIncomeRange,3,TRUE),1) -> 1 | I36: =IFERROR(HLOOKUP(I27+I35-I33,HemCombinedIncomeRange,3,TRUE),1) -> 1 | K36: =IFERROR(HLOOKUP(K27+K35-K33,HemCombinedIncomeRange,3,TRUE),1) -> 1 | M36: =IFERROR(HLOOKUP(M27+M35-M33,HemCombinedIncomeRange,3,TRUE),1) -> 1 | O36: =IFERROR(HLOOKUP(O27+O35-O33,HemCombinedIncomeRange,3,TRUE),1) -> 1
C37: Tax | E37: =IF(E15="Company",E34*CompanyTax,INDEX(TaxForBracket,MATCH(E34,TaxBracketMin,1))+INDEX(TaxRate,MATCH(E34,TaxBracketMin,1))*(E34-INDEX(TaxBracketMin,MATCH(E34,TaxBracketMin,1)))+IF(E34<='Tax Table'!$B$6,0,IF(E34<='Tax Table'!$B$7,(E34-'Tax Table'!$B$6)*'Tax Table'!$C$6,E34*'Tax Table'!$C$7)))+(E23*CompanyTax) -> 0 | G37: =IF(G15="Company",G34*CompanyTax,INDEX(TaxForBracket,MATCH(G34,TaxBracketMin,1))+INDEX(TaxRate,MATCH(G34,TaxBracketMin,1))*(G34-INDEX(TaxBracketMin,MATCH(G34,TaxBracketMin,1)))+IF(G34<='Tax Table'!$B$6,0,IF(G34<='Tax Table'!$B$7,(G34-'Tax Table'!$B$6)*'Tax Table'!$C$6,G34*'Tax Table'!$C$7)))+(G23*CompanyTax) -> 0 | I37: =IF(I15="Company",I34*CompanyTax,INDEX(TaxForBracket,MATCH(I34,TaxBracketMin,1))+INDEX(TaxRate,MATCH(I34,TaxBracketMin,1))*(I34-INDEX(TaxBracketMin,MATCH(I34,TaxBracketMin,1)))+IF(I34<='Tax Table'!$B$6,0,IF(I34<='Tax Table'!$B$7,(I34-'Tax Table'!$B$6)*'Tax Table'!$C$6,I34*'Tax Table'!$C$7)))+(I23*CompanyTax) -> 0 | K37: =IF(K15="Company",K34*CompanyTax,INDEX(TaxForBracket,MATCH(K34,TaxBracketMin,1))+INDEX(TaxRate,MATCH(K34,TaxBracketMin,1))*(K34-INDEX(TaxBracketMin,MATCH(K34,TaxBracketMin,1)))+IF(K34<='Tax Table'!$B$6,0,IF(K34<='Tax Table'!$B$7,(K34-'Tax Table'!$B$6)*'Tax Table'!$C$6,K34*'Tax Table'!$C$7)))+(K23*CompanyTax) -> 0 | M37: =IF(M15="Company",M34*CompanyTax,INDEX(TaxForBracket,MATCH(M34,TaxBracketMin,1))+INDEX(TaxRate,MATCH(M34,TaxBracketMin,1))*(M34-INDEX(TaxBracketMin,MATCH(M34,TaxBracketMin,1)))+IF(M34<='Tax Table'!$B$6,0,IF(M34<='Tax Table'!$B$7,(M34-'Tax Table'!$B$6)*'Tax Table'!$C$6,M34*'Tax Table'!$C$7)))+(M23*CompanyTax) -> 0 | O37: =IF(O15="Company",O34*CompanyTax,INDEX(TaxForBracket,MATCH(O34,TaxBracketMin,1))+INDEX(TaxRate,MATCH(O34,TaxBracketMin,1))*(O34-INDEX(TaxBracketMin,MATCH(O34,TaxBracketMin,1)))+IF(O34<='Tax Table'!$B$6,0,IF(O34<='Tax Table'!$B$7,(O34-'Tax Table'!$B$6)*'Tax Table'!$C$6,O34*'Tax Table'!$C$7)))+(O23*CompanyTax) -> 0
C38: Tax offset for Low Income Earners | E38: =0-(IF(E15="Company",0,MIN(E37,IF(OR(E34<=0,E34>=TaxOffsetMaximumEntitlement),0,TaxOffsetForLowIncomeEarners-IF(E34>TaxOffsetIncomeThreshholds,((E34-TaxOffsetIncomeThreshholds)*TaxOffSetReducedByPerc),0))))+IF(OR(E15="Company",E34="",E34=0),0,IF(VLOOKUP(E34,TaxOffsetForLowIncomeTable,2,TRUE)+(E34-VLOOKUP(E34,TaxOffsetForLowIncomeTable,1,TRUE))*VLOOKUP(E34,TaxOffsetForLowIncomeTable,3,TRUE)<0,0,VLOOKUP(E34,TaxOffsetForLowIncomeTable,2,TRUE)+(E34-VLOOKUP(E34,TaxOffsetForLowIncomeTable,1,TRUE))*VLOOKUP(E34,TaxOffsetForLowIncomeTable,3,TRUE)))) -> 0 | G38: =0-(IF(G15="Company",0,MIN(G37,IF(OR(G34<=0,G34>=TaxOffsetMaximumEntitlement),0,TaxOffsetForLowIncomeEarners-IF(G34>TaxOffsetIncomeThreshholds,((G34-TaxOffsetIncomeThreshholds)*TaxOffSetReducedByPerc),0))))+IF(OR(G15="Company",G34="",G34=0),0,IF(VLOOKUP(G34,TaxOffsetForLowIncomeTable,2,TRUE)+(G34-VLOOKUP(G34,TaxOffsetForLowIncomeTable,1,TRUE))*VLOOKUP(G34,TaxOffsetForLowIncomeTable,3,TRUE)<0,0,VLOOKUP(G34,TaxOffsetForLowIncomeTable,2,TRUE)+(G34-VLOOKUP(G34,TaxOffsetForLowIncomeTable,1,TRUE))*VLOOKUP(G34,TaxOffsetForLowIncomeTable,3,TRUE)))) -> 0 | I38: =0-(IF(I15="Company",0,MIN(I37,IF(OR(I34<=0,I34>=TaxOffsetMaximumEntitlement),0,TaxOffsetForLowIncomeEarners-IF(I34>TaxOffsetIncomeThreshholds,((I34-TaxOffsetIncomeThreshholds)*TaxOffSetReducedByPerc),0))))+IF(OR(I15="Company",I34="",I34=0),0,IF(VLOOKUP(I34,TaxOffsetForLowIncomeTable,2,TRUE)+(I34-VLOOKUP(I34,TaxOffsetForLowIncomeTable,1,TRUE))*VLOOKUP(I34,TaxOffsetForLowIncomeTable,3,TRUE)<0,0,VLOOKUP(I34,TaxOffsetForLowIncomeTable,2,TRUE)+(I34-VLOOKUP(I34,TaxOffsetForLowIncomeTable,1,TRUE))*VLOOKUP(I34,TaxOffsetForLowIncomeTable,3,TRUE)))) -> 0 | K38: =0-(IF(K15="Company",0,MIN(K37,IF(OR(K34<=0,K34>=TaxOffsetMaximumEntitlement),0,TaxOffsetForLowIncomeEarners-IF(K34>TaxOffsetIncomeThreshholds,((K34-TaxOffsetIncomeThreshholds)*TaxOffSetReducedByPerc),0))))+IF(OR(K15="Company",K34="",K34=0),0,IF(VLOOKUP(K34,TaxOffsetForLowIncomeTable,2,TRUE)+(K34-VLOOKUP(K34,TaxOffsetForLowIncomeTable,1,TRUE))*VLOOKUP(K34,TaxOffsetForLowIncomeTable,3,TRUE)<0,0,VLOOKUP(K34,TaxOffsetForLowIncomeTable,2,TRUE)+(K34-VLOOKUP(K34,TaxOffsetForLowIncomeTable,1,TRUE))*VLOOKUP(K34,TaxOffsetForLowIncomeTable,3,TRUE)))) -> 0 | M38: =0-(IF(M15="Company",0,MIN(M37,IF(OR(M34<=0,M34>=TaxOffsetMaximumEntitlement),0,TaxOffsetForLowIncomeEarners-IF(M34>TaxOffsetIncomeThreshholds,((M34-TaxOffsetIncomeThreshholds)*TaxOffSetReducedByPerc),0))))+IF(OR(M15="Company",M34="",M34=0),0,IF(VLOOKUP(M34,TaxOffsetForLowIncomeTable,2,TRUE)+(M34-VLOOKUP(M34,TaxOffsetForLowIncomeTable,1,TRUE))*VLOOKUP(M34,TaxOffsetForLowIncomeTable,3,TRUE)<0,0,VLOOKUP(M34,TaxOffsetForLowIncomeTable,2,TRUE)+(M34-VLOOKUP(M34,TaxOffsetForLowIncomeTable,1,TRUE))*VLOOKUP(M34,TaxOffsetForLowIncomeTable,3,TRUE)))) -> 0 | O38: =0-(IF(O15="Company",0,MIN(O37,IF(OR(O34<=0,O34>=TaxOffsetMaximumEntitlement),0,TaxOffsetForLowIncomeEarners-IF(O34>TaxOffsetIncomeThreshholds,((O34-TaxOffsetIncomeThreshholds)*TaxOffSetReducedByPerc),0))))+IF(OR(O15="Company",O34="",O34=0),0,IF(VLOOKUP(O34,TaxOffsetForLowIncomeTable,2,TRUE)+(O34-VLOOKUP(O34,TaxOffsetForLowIncomeTable,1,TRUE))*VLOOKUP(O34,TaxOffsetForLowIncomeTable,3,TRUE)<0,0,VLOOKUP(O34,TaxOffsetForLowIncomeTable,2,TRUE)+(O34-VLOOKUP(O34,TaxOffsetForLowIncomeTable,1,TRUE))*VLOOKUP(O34,TaxOffsetForLowIncomeTable,3,TRUE)))) -> 0
C39: Net | E39: =E27-(IF(E37+E38>0,E37+E38,0)) -> 0 | G39: =G27-(IF(G37+G38>0,G37+G38,0)) -> 0 | I39: =I27-(IF(I37+I38>0,I37+I38,0)) -> 0 | K39: =K27-(IF(K37+K38>0,K37+K38,0)) -> 0 | M39: =M27-(IF(M37+M38>0,M37+M38,0)) -> 0 | O39: =O27-(IF(O37+O38>0,O37+O38,0)) -> 0 | R39: =(E39+G39+I39+K39+M39+O39) -> 0
C40: HEM Living Expense | E40: =IFERROR(IF(AND(E28,NOT(E32)),(VLOOKUP(E30,HemTableForExpenses,E36+1,FALSE) +(VLOOKUP(E31,HemTableForExpenses,E36+1,FALSE))*(E17+E29))*NumberOfWeeksInAYear,0),0) -> 0 | G40: =IFERROR(IF(AND(G28,NOT(G32)),(VLOOKUP(G30,HemTableForExpenses,G36+1,FALSE) +(VLOOKUP(G31,HemTableForExpenses,G36+1,FALSE))*(G17+G29))*NumberOfWeeksInAYear,0),0) -> 0 | I40: =IFERROR(IF(AND(I28,NOT(I32)),(VLOOKUP(I30,HemTableForExpenses,I36+1,FALSE) +(VLOOKUP(I31,HemTableForExpenses,I36+1,FALSE))*(I17+I29))*NumberOfWeeksInAYear,0),0) -> 0 | K40: =IFERROR(IF(AND(K28,NOT(K32)),(VLOOKUP(K30,HemTableForExpenses,K36+1,FALSE) +(VLOOKUP(K31,HemTableForExpenses,K36+1,FALSE))*(K17+K29))*NumberOfWeeksInAYear,0),0) -> 0 | M40: =IFERROR(IF(AND(M28,NOT(M32)),(VLOOKUP(M30,HemTableForExpenses,M36+1,FALSE) +(VLOOKUP(M31,HemTableForExpenses,M36+1,FALSE))*(M17+M29))*NumberOfWeeksInAYear,0),0) -> 0 | O40: =IFERROR(IF(AND(O28,NOT(O32)),(VLOOKUP(O30,HemTableForExpenses,O36+1,FALSE) +(VLOOKUP(O31,HemTableForExpenses,O36+1,FALSE))*(O17+O29))*NumberOfWeeksInAYear,0),0) -> 0 | R40: =(E40+G40+I40+K40+M40+O40) -> 0
K41: Customer Nominated Living Expenses | R41: =SUM(G50:G62)*12 -> 0
M42: Living Expense Used | R42: =(MAX(R40,SUM(G50:G58,G62)*12))+(SUM(G59:G61)*12) -> 0
M43: Net Available Income | R43: =R39-R42 -> 0
C47: Commitments
C49: Living Expenses: | G49: Per Month | I49: Other Commitments: | M49: Per Month
C50: Owner occupied property utilities, rates & costs | I50: Rent/Board
C51: Investment property utilities, rates & costs | I51: Total Credit Card Limit | O51: =TEXT(CreditCardCommitments,"0.0%")&": "&M51*CreditCardCommitments -> 3.8%: 0 | R51: =M51*CreditCardCommitments -> 0
C52: Rented property costs | I52: Other Mortgage Repayments
C53: Telephone, Internet, Pay TV & Media Streaming | I53: Other Liabilities
C54: Groceries
C55: Recreation & Entertainment
C56: Clothing & Personal Care
C57: Medical & Health
C58: Transport
C59: Insurance
C60: Other Living Expenses
C61: Education
C62: Childcare
C65: Results
C67: Actual Rate: | E67: Monthly | G67: Annual | I67: Assessment Rate: | M67: Monthly | O67: Annual
C68: Total Income | E68: =G68/NumberOfMonthsInAYear -> 0 | G68: =$R$27 -> 0 | K68: Total Income | M68: =O68/NumberOfMonthsInAYear -> 0 | O68: =$R$27 -> 0
C69: Net Income | E69: =G69/NumberOfMonthsInAYear -> 0 | G69: =$R$39 -> 0 | K69: Net Income | M69: =R39/NumberOfMonthsInAYear -> 0 | O69: =$R$39 -> 0
C70: Living Costs | E70: =G70/NumberOfMonthsInAYear -> 0 | G70: =$R$42 -> 0 | K70: Living Costs | M70: =O70/NumberOfMonthsInAYear -> 0 | O70: =$R$42 -> 0
C71: Net Available Income | E71: =IFERROR(G71/NumberOfMonthsInAYear,0) -> 0 | G71: =$G$69-$G$70 -> 0 | K71: Net Available Income | M71: =IFERROR(O71/NumberOfMonthsInAYear,0) -> 0 | O71: =$O$69-$O$70 -> 0
C72: Proposed Repayments | E72: =IFERROR(-PMT(ResiInterestRate/NumberOfMonthsInAYear,(ResiLoanTerm-ResiLoanIOTerm)*NumberOfMonthsInAYear,ResiNewLoanAmount),0) -> 0 | G72: =E72*NumberOfMonthsInAYear -> 0 | K72: Proposed Repayments | M72: =IFERROR(-PMT(AssessmentRate/NumberOfMonthsInAYear,(ResiLoanTerm-ResiLoanIOTerm)*NumberOfMonthsInAYear,E10),0) -> 0 | O72: =M72*NumberOfMonthsInAYear -> 0
C73: Other Commitments | E73: =IFERROR(G73/NumberOfMonthsInAYear,0) -> 0 | G73: =O73 -> 0 | K73: Other Commitments | M73: =IFERROR(O73/NumberOfMonthsInAYear,0) -> 0 | O73: =($M$52*OtherMortgageRepaymentBuffer+$M$53+$R$51+$M$50)*NumberOfMonthsInAYear -> 0
C75: NSR: | E75: =IF(K80="INCOMPLETE",0,IFERROR(ROUNDDOWN(G71/(G72+G73),2),0)) -> 0 | G75: =IF(OR(ResiCheckForCompleteness="INCOMPLETE",ResiTotalIncome=0),"INCOMPLETE",IF(AND(IF(AND(ResiTotalUntaxedAvailableIncome<>0,ResiTotalUntaxedAvailableIncome/ResiTotalIncome>AllowableGovernmentAllowanceOverTotalIncomeLimitation),ResiActualNSR>=AcceptableNSRForGovernmentIncome,TRUE),(ResiActualNSR>=AcceptableNSRForAllOtherApplicants)),"PASS","FAIL")) -> INCOMPLETE | K75: NSR: | M75: =IF(K80="INCOMPLETE",0,IFERROR(ROUNDDOWN(O71/(O72+O73),2),0)) -> 0 | O75: =IF(OR(ResiCheckForCompleteness="INCOMPLETE",ResiTotalIncome=0),"INCOMPLETE",IF(AND(IF(AND(ResiTotalUntaxedAvailableIncome<>0,ResiTotalUntaxedAvailableIncome/ResiTotalIncome>AllowableGovernmentAllowanceOverTotalIncomeLimitation),ResiAssessmentNSR>=AcceptableNSRForGovernmentIncome,TRUE),(ResiAssessmentNSR>=AcceptableNSRForAllOtherApplicants)),"PASS","FAIL")) -> INCOMPLETE
C76: DSR: | E76: =IF(K80="INCOMPLETE","-",IFERROR((G72+G73-(M50*12))/R27,"-")) -> - | K76: DSR: | M76: =IF(K80="INCOMPLETE","-",IFERROR((O72 +O73-(M50*12))/R27,"-")) -> -
K79: Application Status
K80: =IF(OR(ResiNewLoanAmount="",ResiInterestRate="",ResiLoanTerm="",I9="",E15="",R27=0,E18<>"",G18<>"",I18<>"",K18<>"",M18<>"",O18<>"",I11<=I12,G50="",G51="",G52="",G53="",G54="",G55="",G56="",G57="",G58="",G59="",G60="",G61="",G62=""),"INCOMPLETE","COMPLETE") -> INCOMPLETE
G82: Eligible Loan Amount | M82: =IF(O75="INCOMPLETE",O75,MAX(0,IF(O75="PASS",ResiNewLoanAmount,IFERROR(-PV(O10/12,(ResiLoanTerm-ResiLoanIOTerm)*12,ROUNDDOWN(((O71-(O73*(IF(AND(ResiTotalUntaxedAvailableIncome<>0,ResiTotalUntaxedAvailableIncome/ResiTotalIncome>AllowableGovernmentAllowanceOverTotalIncomeLimitation),AcceptableNSRForGovernmentIncome,AcceptableNSRForAllOtherApplicants))))/(NumberOfMonthsInAYear*(IF(AND(ResiTotalUntaxedAvailableIncome<>0,ResiTotalUntaxedAvailableIncome/ResiTotalIncome>AllowableGovernmentAllowanceOverTotalIncomeLimitation),AcceptableNSRForGovernmentIncome,AcceptableNSRForAllOtherApplicants)))),0),0),0)))) -> INCOMPLETE
E84: Maximum Serviceable Loan Amount | M84: =IF(O75="INCOMPLETE",O75,MAX(0,IFERROR(-PV(O10/12,(ResiLoanTerm-ResiLoanIOTerm)*12,ROUNDDOWN(((O71-(O73*(IF(AND(ResiTotalUntaxedAvailableIncome<>0,ResiTotalUntaxedAvailableIncome/ResiTotalIncome>AllowableGovernmentAllowanceOverTotalIncomeLimitation),AcceptableNSRForGovernmentIncome,AcceptableNSRForAllOtherApplicants))))/(NumberOfMonthsInAYear*(IF(AND(ResiTotalUntaxedAvailableIncome<>0,ResiTotalUntaxedAvailableIncome/ResiTotalIncome>AllowableGovernmentAllowanceOverTotalIncomeLimitation),AcceptableNSRForGovernmentIncome,AcceptableNSRForAllOtherApplicants)))),0),0),0))) -> INCOMPLETE
C89: Important Information: This calculator is to be used as a guide only as to borrowing power based on the basic information provided. It is not an offer of credit or a quote. Lending criteria, terms and conditions, fees and charges will apply should a borrower apply for credit. Pepper New Zealand Limited NZBN 942 903 106 5153

Sheet NonCCCFA
C2: Serviceability Calculator (Non-CCCFA loans only)
C3: =Residential!C3 -> Version 1.7a - Effective 18th December 2024
C4: Net Service Ratio (NSR) Requirements (using Assessment Rate) All applicantions: NSR must be ≥ 1.00 This calculator is only to be used when (1) the loan is non-CCCFA regulated, (2) the borrower is not an individual and (3) the income adopted for the serviceability test is from the non-individual borrowing entity. In all other cases the 'Residential' serviceability calculator is to be used.
C6: Applicant Name
C8: Loan Details
G9: Interest Rate Buffer | H9: =IF(ISBLANK(I9)," <Select>","") -> <Select>
C10: New Loan Amount | G10: Interest Rate | H10: 5 | K10: Assessment Rate | O10: =MAX(BaselineAssessmentRate,I10+I9) -> 0
C11: (including capitalised fees) | G11: Loan Term | K11: =IF(I11>MaximumLoanTermInYearsForPrimeLoans, "Loans Terms > " & MaximumLoanTermInYearsForPrimeLoans & " years not available on Prime", " ") -> 
G12: I/O Term
C14: Company / Trust Borrower Details: | R14: Total
C15: Borrower
C16: Borrower Type | D16: Applicant 1
C18: Income | I18: Other Commitments: | M18: Per Month
C19: Gross Annual Income excluding rent (+) | I19: Other Mortgage Repayments
C20: Gross Rental Income (+) | I20: Other Liabilities
C21: Expenses (-)
C22: Interest Expense Addback (+) | G22: =IF((E22+E23)>E21,"ERROR - EXPENSE INPUT","") -> 
C23: Acceptable Addbacks (+) | K23: Other Investment Property Loan Balance
C27: Business NPBT | E27: =E20*RentalIncomeShading+E19-E21+E22+E23 -> 0
C34: Total Taxable Business NPBT | E34: =MAX(0,E27-E22-E23-((E10+M23)*ResiInterestRate)) -> 0
C37: Tax | E37: =IF(E16="Company",E34*28%,(IF(E34<10001,E34*33%,E34*39%))) -> 0
C44: Business NPAT | E44: =E27-E37 -> 0
C65: Results
C67: Actual Rate: | E67: Monthly | G67: Annual | I67: Assessment Rate: | M67: Monthly | O67: Annual
C68: Total Income (Business adjusted NPBT) | E68: =G68/NumberOfMonthsInAYear -> 0 | G68: =$E$27 -> 0 | K68: Total Income (Business adjusted NPBT) | M68: =O68/NumberOfMonthsInAYear -> 0 | O68: =$E$27 -> 0
C69: Net Income (after tax) | E69: =G69/NumberOfMonthsInAYear -> 0 | G69: =$E$44 -> 0 | K69: Net Income (after tax) | M69: =O69/NumberOfMonthsInAYear -> 0 | O69: =$E$44 -> 0
C70: Living Costs | E70: =G70/NumberOfMonthsInAYear -> 0 | G70: =$R$42 -> 0 | K70: Living Costs | M70: =O70/NumberOfMonthsInAYear -> 0 | O70: =$R$42 -> 0
C71: Net Available Income | E71: =IFERROR(G71/NumberOfMonthsInAYear,0) -> 0 | G71: =$G$69-$G$70 -> 0 | K71: Net Available Income | M71: =IFERROR(O71/NumberOfMonthsInAYear,0) -> 0 | O71: =$O$69-$O$70 -> 0
C72: Proposed Repayments | E72: =IFERROR(-PMT(ResiInterestRate/NumberOfMonthsInAYear,(ResiLoanTerm-ResiLoanIOTerm)*NumberOfMonthsInAYear,ResiNewLoanAmount),0) -> 0 | G72: =E72*NumberOfMonthsInAYear -> 0 | K72: Proposed Repayments | M72: =IFERROR(-PMT(AssessmentRate/NumberOfMonthsInAYear,(ResiLoanTerm-ResiLoanIOTerm)*NumberOfMonthsInAYear,E10),0) -> 0 | O72: =M72*NumberOfMonthsInAYear -> 0
C73: Other Commitments | E73: =IFERROR(G73/NumberOfMonthsInAYear,0) -> 0 | G73: =((M19*OtherMortgageRepaymentBuffer)+NonCCCFA!M20)*NumberOfMonthsInAYear -> 0 | K73: Other Commitments | M73: =IFERROR(O73/NumberOfMonthsInAYear,0) -> 0 | O73: =((M19*OtherMortgageRepaymentBuffer)+NonCCCFA!M20)*NumberOfMonthsInAYear -> 0
C75: NSR: | E75: =IF(K80="INCOMPLETE",0,IFERROR(ROUNDDOWN(G71/(G72+G73),2),0)) -> 0 | G75: =IF((NonCCCFA!ResiCheckForCompleteness="INCOMPLETE"),"INCOMPLETE",IF(ResiActualNSR>=Inputs!B22,"PASS","FAIL")) -> INCOMPLETE | K75: NSR: | M75: =IF(K80="INCOMPLETE",0,IFERROR(ROUNDDOWN(O71/(O72+O73),2),0)) -> 0 | O75: =IF((NonCCCFA!ResiCheckForCompleteness="INCOMPLETE"),"INCOMPLETE",IF(ResiAssessmentNSR>=Inputs!B22,"PASS","FAIL")) -> INCOMPLETE
C76: DSR: | E76: =IF(K80="INCOMPLETE","-",IFERROR((G72+G73)/E44,"-")) -> - | K76: DSR: | M76: =IF(K80="INCOMPLETE","-",IFERROR((O72+O73)/E44,"-")) -> -
K79: Application Status
K80: =IF(OR(ResiNewLoanAmount="",ResiInterestRate="",ResiLoanTerm="",E16="",I9="",I11<=I12,G22="ERROR - EXPENSE INPUT"),"INCOMPLETE","COMPLETE") -> INCOMPLETE
G82: Eligible Loan Amount
E84: Maximum Serviceable Loan Amount
C89: Important Information: This calculator is to be used as a guide only as to borrowing power based on the basic information provided. It is not an offer of credit or a quote. Lending criteria, terms and conditions, fees and charges will apply should a borrower apply for credit. Pepper New Zealand Limited NZBN 942 903 106 5153

Sheet TestCases (hidden)
A1: Loan Amount | B1: Interest Rate | C1: Loan Term | D1: IO Term | E1: Status 1 | F1: Status 2 | G1: Status 3 | H1: Status 4 | I1: Status 5 | J1: Status 6 | K1: Couple With 1 | L1: Couple With 2 | M1: Couple With 3 | N1: Couple With 4 | O1: Couple With 5 | P1: Couple With 6 | Q1: Dependants 1 | R1: Dependants 2 | S1: Dependants 3 | T1: Dependants 4 | U1: Dependants 5 | V1: Dependants 6 | W1: Gross Annual Income 1 | X1: Gross Annual Income 2 | Y1: Gross Annual Income 3 | Z1: Gross Annual Income 4 | AA1: Gross Annual Income 5 | AB1: Gross Annual Income 6 | AC1: Untaxed Income 1 | AD1: Untaxed Income 2 | AE1: Untaxed Income 3 | AF1: Untaxed Income 4 | AG1: Untaxed Income 5 | AH1: Untaxed Income 6 | AI1: SEIC 1 | AJ1: SEIC 2 | AK1: SEIC 3 | AL1: SEIC 4 | AM1: SEIC 5 | AN1: SEIC 6 | AO1: Add Backs 1 | AP1: Add Backs 2 | AQ1: Add Backs 3 | AR1: Add Backs 4 | AS1: Add Backs 5 | AT1: Add Backs 6 | AU1: NPBT 1 | AV1: NPBT 2 | AW1: NPBT 3 | AX1: NPBT 4 | AY1: NPBT 5 | AZ1: NPBT 6 | BA1: Gross Rental Income 1 | BB1: Gross Rental Income 2 | BC1: Gross Rental Income 3 | BD1: Gross Rental Income 4 | BE1: Gross Rental Income 5 | BF1: Gross Rental Income 6 | BG1: Investment Property Loan Balance 1 | BH1: Investment Property Loan Balance 2 | BI1: Investment Property Loan Balance 3 | BJ1: Investment Property Loan Balance 4 | BK1: Investment Property Loan Balance 5 | BL1: Investment Property Loan Balance 6 | BM1: Owner occupied property utilities, rates & costs | BN1: Investment property utilities, rates & costs | BO1: Rented property costs | BP1: Telephone, Internet, Pay TV & Media Streaming | BQ1: Groceries | BR1: Recreation & Entertainment | BS1: Clothing & Personal Care | BT1: Medical & Health | BU1: Transport | BV1: Insurance | BW1: Other Living Expenses | BX1: Education | BY1: Childcare | BZ1: Rent/Board | CA1: Total Credit Card Limit | CB1: Other Mortgage Repayments | CC1: Other Liabilities | CD1: Actual Rate Monthly Total Income | CE1: Actual Rate Monthly - Net Income | CF1: Actual Rate Monthly - Living Costs | CG1: Actual Rate Monthly - Net Available Income | CH1: Actual Rate Monthly - Proposed Repayments | CI1: Actual Rate Monthly - Other Commitments | CJ1: Actual Rate Annually Total Income | CK1: Actual Rate Annually - Net Income | CL1: Actual Rate Annually - Living Costs | CM1: Actual Rate Annually - Net Available Income | CN1: Actual Rate Annually - Proposed Repayments | CO1: Actual Rate Annually - Other Commitments | CP1: Assessment Rate Monthly Total Income | CQ1: Assessment Rate Monthly - Net Income | CR1: Assessment Rate Monthly - Living Costs | CS1: Assessment Rate Monthly - Net Available Income | CT1: Assessment Rate Monthly - Proposed Repayments | CU1: Assessment Rate Monthly - Other Commitments | CV1: Assessment Rate Annually Total Income | CW1: Assessment Rate Annually - Net Income | CX1: Assessment Rate Annually - Living Costs | CY1: Assessment Rate Annually - Net Available Income | CZ1: Assessment Rate Annually - Proposed Repayments | DA1: Assessment Rate Annually - Other Commitments | DB1: Actual NSR | DC1: Actual DSR | DD1: Actual Results | DE1: Assessment NSR | DF1: Assessment DSR | DG1: Assessment Results | DH1: Allowable Income | DI1: Actual Rate Monthly Total Income | DJ1: Actual Rate Monthly - Net Income | DK1: Actual Rate Monthly - Living Costs | DL1: Actual Rate Monthly - Net Available Income | DM1: Actual Rate Monthly - Proposed Repayments | DN1: Actual Rate Monthly - Other Commitments | DO1: Actual Rate Annually Total Income | DP1: Actual Rate Annually - Net Income | DQ1: Actual Rate Annually - Living Costs | DR1: Actual Rate Annually - Net Available Income | DS1: Actual Rate Annually - Proposed Repayments | DT1: Actual Rate Annually - Other Commitments | DU1: Assessment Rate Monthly Total Income | DV1: Assessment Rate Monthly - Net Income | DW1: Assessment Rate Monthly - Living Costs | DX1: Assessment Rate Monthly - Net Available Income | DY1: Assessment Rate Monthly - Proposed Repayments | DZ1: Assessment Rate Monthly - Other Commitments | EA1: Assessment Rate Annually Total Income | EB1: Assessment Rate Annually - Net Income | EC1: Assessment Rate Annually - Living Costs | ED1: Assessment Rate Annually - Net Available Income | EE1: Assessment Rate Annually - Proposed Repayments | EF1: Assessment Rate Annually - Other Commitments | EG1: Actual NSR | EH1: Actual DSR | EI1: Actual Results | EJ1: Assessment NSR | EK1: Assessment DSR | EL1: Assessment Results | EM1: Allowable Income | EN1: Pass or Fail | EO1: Run Scenario Flag | EP1: Date Tested | EQ1: Scenario | ER1: Sequence | ES1: Name
A2: 1000000 | B2: 0.06 | C2: 30 | D2: 5 | E2: Individual (Couple) | F2: Individual (Couple) | K2: Applicant 2 | L2: Applicant 1 | Q2: 2 | W2: 270000 | X2: 0 | Y2: 0 | Z2: 0 | AA2: 0 | AB2: 0 | AC2: 0 | AD2: 0 | AE2: 0 | AF2: 0 | AG2: 0 | AH2: 0 | AI2: 135000 | AJ2: 0 | AK2: 0 | AL2: 0 | AM2: 0 | AN2: 0 | AO2: 0 | AP2: 0 | AQ2: 0 | AR2: 0 | AS2: 0 | AT2: 0 | AU2: 100000 | AV2: 0 | AW2: 0 | AX2: 0 | AY2: 0 | AZ2: 0 | BA2: 0 | BB2: 100000 | BC2: 0 | BD2: 0 | BE2: 0 | BF2: 0 | BG2: 0 | BH2: 300000 | BI2: 0 | BJ2: 0 | BK2: 0 | BL2: 0 | BM2: 100 | BN2: 100 | BO2: 0 | BP2: 80 | BQ2: 300 | BR2: 80 | BS2: 30 | BT2: 50 | BU2: 50 | BV2: 0 | BW2: 0 | BX2: 50 | BY2: 0 | BZ2: 0 | CA2: 5000 | CB2: 1000 | CC2: 500 | CD2: 48750 | CE2: 32940.14 | CF2: 4553.12 | CG2: 28387.02 | CH2: 6443.01 | CI2: 1940 | CJ2: 585000 | CK2: 395281.69 | CL2: 54637.44 | CM2: 340644.25 | CN2: 77316.17 | CO2: 23280 | CP2: 48750 | CQ2: 32940.14 | CR2: 4553.12 | CS2: 28387.02 | CT2: 7718.16 | CU2: 1940 | CV2: 585000 | CW2: 395281.69 | CX2: 54637.44 | CY2: 340644.25 | CZ2: 92617.95 | DA2: 23280 | DB2: 3.38 | DC2: 0.1719592618 | DD2: PASS | DE2: 2.93 | DF2: 0.1981161476 | DG2: PASS | DH2: 1000000 | DI2: 48750 | DJ2: 32940.14 | DK2: 4553.12 | DL2: 28387.02 | DM2: 6443.01 | DN2: 1940 | DO2: 585000 | DP2: 395281.69 | DQ2: 54637.44 | DR2: 340644.25 | DS2: 77316.17 | DT2: 23280 | DU2: 48750 | DV2: 32940.14 | DW2: 4553.12 | DX2: 28387.02 | DY2: 7718.16 | DZ2: 1940 | EA2: 585000 | EB2: 395281.69 | EC2: 54637.44 | ED2: 340644.25 | EE2: 92617.95 | EF2: 23280 | EG2: 3.38 | EH2: 0.1719592618 | EI2: PASS | EJ2: 2.93 | EK2: 0.1981161476 | EL2: PASS | EM2: 1000000 | EN2: =IF(AND(CD2=DI2,CE2=DJ2,CF2=DK2,CG2=DL2,CH2=DM2,CI2=DN2,CJ2=DO2,CK2=DP2,CL2=DQ2,CM2=DR2,CN2=DS2,CO2=DT2,CP2=DU2,CQ2=DV2,CR2=DW2,CS2=DX2,CT2=DY2,CU2=DZ2,CV2=EA2,CW2=EB2,CX2=EC2,CY2=ED2,CZ2=EE2,DA2=EF2,DB2=EG2,DC2=EH2,DD2=EI2,DE2=EJ2,DF2=EK2,DG2=EL2,DH2=EM2),"Pass","Fail") -> Pass | EO2: Y | EP2: 2023-08-09T16:33:05 | ER2: Case 1 | ES2: Neil
A3: 1000000 | B3: 0.06 | C3: 25 | D3: 0 | E3: Individual (Couple) | F3: Individual (Couple) | K3: Applicant 2 | L3: Applicant 1 | Q3: 2 | W3: 260000 | X3: 0 | Y3: 0 | Z3: 0 | AA3: 0 | AB3: 0 | AC3: 0 | AD3: 0 | AE3: 0 | AF3: 0 | AG3: 0 | AH3: 0 | AI3: 135000 | AJ3: 0 | AK3: 0 | AL3: 0 | AM3: 0 | AN3: 0 | AO3: 0 | AP3: 0 | AQ3: 0 | AR3: 0 | AS3: 0 | AT3: 0 | AU3: 0 | AV3: 0 | AW3: 0 | AX3: 0 | AY3: 0 | AZ3: 0 | BA3: 0 | BB3: 100000 | BC3: 0 | BD3: 0 | BE3: 0 | BF3: 0 | BG3: 0 | BH3: 0 | BI3: 0 | BJ3: 0 | BK3: 0 | BL3: 0 | BM3: 0 | BN3: 0 | BO3: 0 | BP3: 0 | BQ3: 0 | BR3: 0 | BS3: 0 | BT3: 0 | BU3: 0 | BV3: 0 | BW3: 0 | BX3: 0 | BY3: 2000 | BZ3: 0 | CA3: 5000 | CB3: 1000 | CC3: 500 | CD3: 39583.33 | CE3: 26409 | CF3: 4503.12 | CG3: 21905.88 | CH3: 6443.01 | CI3: 1940 | CJ3: 475000 | CK3: 316908.01 | CL3: 54037.44 | CM3: 262870.57 | CN3: 77316.17 | CO3: 23280 | CP3: 39583.33 | CQ3: 26409 | CR3: 4503.12 | CS3: 21905.88 | CT3: 7718.16 | CU3: 1940 | CV3: 475000 | CW3: 316908.01 | CX3: 54037.44 | CY3: 262870.57 | CZ3: 92617.95 | DA3: 23280 | DB3: 2.61 | DC3: 0.2117814067 | DD3: PASS | DE3: 2.26 | DF3: 0.2439956765 | DG3: PASS | DH3: 1000000 | DI3: 39583.33 | DJ3: 26409 | DK3: 4503.12 | DL3: 21905.88 | DM3: 6443.01 | DN3: 1940 | DO3: 475000 | DP3: 316908.01 | DQ3: 54037.44 | DR3: 262870.57 | DS3: 77316.17 | DT3: 23280 | DU3: 39583.33 | DV3: 26409 | DW3: 4503.12 | DX3: 21905.88 | DY3: 7718.16 | DZ3: 1940 | EA3: 475000 | EB3: 316908.01 | EC3: 54037.44 | ED3: 262870.57 | EE3: 92617.95 | EF3: 23280 | EG3: 2.61 | EH3: 0.2117814067 | EI3: PASS | EJ3: 2.26 | EK3: 0.2439956765 | EL3: PASS | EM3: 1000000 | EN3: Pass | EO3: Y | EP3: 2023-08-09T16:33:07 | ER3: Case 2 | ES3: Neil
A4: 1000000 | B4: 0.04 | C4: 31 | D4: 0 | E4: Individual (Couple) | F4: Individual (Couple) | K4: Applicant 2 | L4: Applicant 1 | Q4: 2 | W4: 260000 | X4: 0 | Y4: 0 | Z4: 0 | AA4: 0 | AB4: 0 | AC4: 0 | AD4: 0 | AE4: 0 | AF4: 0 | AG4: 0 | AH4: 0 | AI4: 135000 | AJ4: 0 | AK4: 0 | AL4: 0 | AM4: 0 | AN4: 0 | AO4: 0 | AP4: 0 | AQ4: 0 | AR4: 0 | AS4: 0 | AT4: 0 | AU4: 0 | AV4: 0 | AW4: 0 | AX4: 0 | AY4: 0 | AZ4: 0 | BA4: 0 | BB4: 100000 | BC4: 0 | BD4: 0 | BE4: 0 | BF4: 0 | BG4: 0 | BH4: 1000000 | BI4: 0 | BJ4: 0 | BK4: 0 | BL4: 0 | BM4: 500 | BN4: 300 | BO4: 0 | BP4: 300 | BQ4: 1200 | BR4: 1500 | BS4: 1200 | BT4: 500 | BU4: 400 | BV4: 500 | BW4: 0 | BX4: 500 | BY4: 0 | BZ4: 0 | CA4: 5000 | CB4: 10000 | CC4: 500 | CD4: 39583.33 | CE4: 26512.17 | CF4: 6900 | CG4: 19612.17 | CH4: 4694.71 | CI4: 13190 | CJ4: 475000 | CK4: 318146.05 | CL4: 82800 | CM4: 235346.05 | CN4: 56336.57 | CO4: 158280 | CP4: 39583.33 | CQ4: 26512.17 | CR4: 6900 | CS4: 19612.17 | CT4: 5926.95 | CU4: 13190 | CV4: 475000 | CW4: 318146.05 | CX4: 82800 | CY4: 235346.05 | CZ4: 71123.4 | DA4: 158280 | DB4: 1.09 | DC4: 0.4518243488 | DD4: PASS | DE4: 1.02 | DF4: 0.4829545251 | DG4: PASS | DH4: 1000000 | DI4: 39583.33 | DJ4: 26512.17 | DK4: 6900 | DL4: 19612.17 | DM4: 4694.71 | DN4: 13190 | DO4: 475000 | DP4: 318146.05 | DQ4: 82800 | DR4: 235346.05 | DS4: 56336.57 | DT4: 158280 | DU4: 39583.33 | DV4: 26512.17 | DW4: 6900 | DX4: 19612.17 | DY4: 5926.95 | DZ4: 13190 | EA4: 475000 | EB4: 318146.05 | EC4: 82800 | ED4: 235346.05 | EE4: 71123.4 | EF4: 158280 | EG4: 1.09 | EH4: 0.4518243488 | EI4: PASS | EJ4: 1.02 | EK4: 0.4829545251 | EL4: PASS | EM4: 1000000 | EN4: Pass | EO4: Y | EP4: 2023-08-09T16:33:08 | ER4: Case 3 | ES4: Neil
A5: 2000000 | B5: 0.05 | C5: 25 | D5: 1 | E5: Individual (Single) | F5: Individual (Couple) | G5: Individual (Single) | L5: Non-loan Party | S5: 3 | W5: 80000 | X5: 100000 | Y5: 120000 | Z5: 0 | AA5: 0 | AB5: 0 | AC5: 0 | AD5: 0 | AE5: 0 | AF5: 0 | AG5: 0 | AH5: 0 | AI5: 0 | AJ5: 0 | AK5: 0 | AL5: 0 | AM5: 0 | AN5: 0 | AO5: 0 | AP5: 0 | AQ5: 0 | AR5: 0 | AS5: 0 | AT5: 0 | AU5: 0 | AV5: 0 | AW5: 0 | AX5: 0 | AY5: 0 | AZ5: 0 | BA5: 0 | BB5: 0 | BC5: 0 | BD5: 0 | BE5: 0 | BF5: 0 | BG5: 0 | BH5: 0 | BI5: 0 | BJ5: 0 | BK5: 0 | BL5: 0 | BM5: 0 | BN5: 0 | BO5: 0 | BP5: 0 | BQ5: 0 | BR5: 0 | BS5: 0 | BT5: 0 | BU5: 0 | BV5: 0 | BW5: 0 | BX5: 0 | BY5: 0 | BZ5: 0 | CA5: 0 | CB5: 0 | CC5: 0 | CD5: 25000 | CE5: 18672.56 | CF5: 6985.39 | CG5: 11687.17 | CH5: 11937.95 | CI5: 0 | CJ5: 300000 | CK5: 224070.68 | CL5: 83824.68 | CM5: 140246 | CN5: 143255.4 | CO5: 0 | CP5: 25000 | CQ5: 18672.56 | CR5: 6985.39 | CS5: 11687.17 | CT5: 14355.19 | CU5: 0 | CV5: 300000 | CW5: 224070.68 | CX5: 83824.68 | CY5: 140246 | CZ5: 172262.3 | DA5: 0 | DB5: 0.97 | DC5: 0.4775180098 | DD5: FAIL | DE5: 0.81 | DF5: 0.5742076636 | DG5: FAIL | DH5: 1628261.1 | DI5: 25000 | DJ5: 18672.56 | DK5: 6985.39 | DL5: 11687.17 | DM5: 11937.95 | DN5: 0 | DO5: 300000 | DP5: 224070.68 | DQ5: 83824.68 | DR5: 140246 | DS5: 143255.4 | DT5: 0 | DU5: 25000 | DV5: 18672.56 | DW5: 6985.39 | DX5: 11687.17 | DY5: 14355.19 | DZ5: 0 | EA5: 300000 | EB5: 224070.68 | EC5: 83824.68 | ED5: 140246 | EE5: 172262.3 | EF5: 0 | EG5: 0.97 | EH5: 0.4775180098 | EI5: FAIL | EJ5: 0.81 | EK5: 0.5742076636 | EL5: FAIL | EM5: 1628261.1 | EN5: Pass | EO5: Y | EP5: 2023-08-09T16:33:09 | ER5: Case 4 | ES5: Neil
A6: 1000000 | B6: 0.04 | C6: 25 | D6: 0 | E6: Individual (Single) | F6: Individual (Single) | G6: Individual (Single) | H6: Individual (Single) | I6: Individual (Single) | J6: Individual (Single) | W6: 18200 | X6: 22000 | Y6: 30000 | Z6: 40000 | AA6: 95000 | AB6: 190000 | AC6: 0 | AD6: 0 | AE6: 0 | AF6: 0 | AG6: 0 | AH6: 0 | AI6: 0 | AJ6: 0 | AK6: 0 | AL6: 0 | AM6: 0 | AN6: 0 | AO6: 0 | AP6: 0 | AQ6: 0 | AR6: 0 | AS6: 0 | AT6: 0 | AU6: 0 | AV6: 0 | AW6: 0 | AX6: 0 | AY6: 0 | AZ6: 0 | BA6: 0 | BB6: 0 | BC6: 0 | BD6: 0 | BE6: 0 | BF6: 0 | BG6: 0 | BH6: 0 | BI6: 0 | BJ6: 0 | BK6: 0 | BL6: 0 | BM6: 0 | BN6: 0 | BO6: 0 | BP6: 0 | BQ6: 0 | BR6: 0 | BS6: 0 | BT6: 0 | BU6: 0 | BV6: 0 | BW6: 0 | BX6: 0 | BY6: 0 | BZ6: 0 | CA6: 0 | CB6: 0 | CC6: 0 | CD6: 32933.33 | CE6: 24821.04 | CF6: 6713 | CG6: 18108.04 | CH6: 5278.37 | CI6: 0 | CJ6: 395200 | CK6: 297852.51 | CL6: 80556.06 | CM6: 217296.45 | CN6: 63340.42 | CO6: 0 | CP6: 32933.33 | CQ6: 24821.04 | CR6: 6713 | CS6: 18108.04 | CT6: 6443.01 | CU6: 0 | CV6: 395200 | CW6: 297852.51 | CX6: 80556.06 | CY6: 217296.45 | CZ6: 77316.17 | DA6: 0 | DB6: 3.43 | DC6: 0.1602743442 | DD6: PASS | DE6: 2.81 | DF6: 0.1956380774 | DG6: PASS | DH6: 1000000 | DI6: 32933.33 | DJ6: 24821.04 | DK6: 6713 | DL6: 18108.04 | DM6: 5278.37 | DN6: 0 | DO6: 395200 | DP6: 297852.51 | DQ6: 80556.06 | DR6: 217296.45 | DS6: 63340.42 | DT6: 0 | DU6: 32933.33 | DV6: 24821.04 | DW6: 6713 | DX6: 18108.04 | DY6: 6443.01 | DZ6: 0 | EA6: 395200 | EB6: 297852.51 | EC6: 80556.06 | ED6: 217296.45 | EE6: 77316.17 | EF6: 0 | EG6: 3.43 | EH6: 0.1602743442 | EI6: PASS | EJ6: 2.81 | EK6: 0.1956380774 | EL6: PASS | EM6: 1000000 | EN6: Pass | EO6: Y | EP6: 2023-08-09T16:33:10 | ER6: Case 5 | ES6: Neil
A7: 2500000 | B7: 0.0679 | C7: 40 | D7: 5 | E7: Company | F7: Individual (Single) | G7: Individual (Couple) | H7: Individual (Couple) | I7: Individual (Couple) | J7: Individual (Single) | M7: Non-loan Party | N7: Applicant 5 | O7: Applicant 4 | W7: 0 | X7: 0 | Y7: 80000 | Z7: 30000 | AA7: 40000 | AB7: 1 | AC7: 0 | AD7: 0 | AE7: 0 | AF7: 0 | AG7: 0 | AH7: 0 | AI7: 0 | AJ7: 150000 | AK7: 0 | AL7: 0 | AM7: 0 | AN7: 0 | AO7: 75000 | AP7: 0 | AQ7: 0 | AR7: 0 | AS7: 0 | AT7: 0 | AU7: 535000 | AV7: 0 | AW7: 0 | AX7: 0 | AY7: 0 | AZ7: 0 | BA7: 0 | BB7: 0 | BC7: 0 | BD7: 50000 | BE7: 50000 | BF7: 0 | BG7: 0 | BH7: 0 | BI7: 0 | BJ7: 1000000 | BK7: 1000000 | BL7: 0 | BM7: 0 | BN7: 0 | BO7: 0 | BP7: 0 | BQ7: 0 | BR7: 0 | BS7: 0 | BT7: 0 | BU7: 0 | BV7: 0 | BW7: 0 | BX7: 0 | BY7: 20000 | BZ7: 0 | CA7: 50000 | CB7: 15000 | CC7: 0 | CD7: 82500.08 | CE7: 62153.31 | CF7: 20000 | CG7: 42153.31 | CH7: 15604.88 | CI7: 20650 | CJ7: 990001 | CK7: 745839.75 | CL7: 240000 | CM7: 505839.75 | CN7: 187258.53 | CO7: 247800 | CP7: 82500.08 | CQ7: 62153.31 | CR7: 20000 | CS7: 42153.31 | CT7: 19208.39 | CU7: 20650 | CV7: 990001 | CW7: 745839.75 | CX7: 240000 | CY7: 505839.75 | CZ7: 230500.65 | DA7: 247800 | DB7: 1.16 | DC7: 0.4394526215 | DD7: PASS | DE7: 1.05 | DF7: 0.4831314865 | DG7: PASS | DH7: 2500000 | DI7: 82500.08 | DJ7: 62153.31 | DK7: 20000 | DL7: 42153.31 | DM7: 15604.88 | DN7: 20650 | DO7: 990001 | DP7: 745839.75 | DQ7: 240000 | DR7: 505839.75 | DS7: 187258.53 | DT7: 247800 | DU7: 82500.08 | DV7: 62153.31 | DW7: 20000 | DX7: 42153.31 | DY7: 19208.39 | DZ7: 20650 | EA7: 990001 | EB7: 745839.75 | EC7: 240000 | ED7: 505839.75 | EE7: 230500.65 | EF7: 247800 | EG7: 1.16 | EH7: 0.4394526215 | EI7: PASS | EJ7: 1.05 | EK7: 0.4831314865 | EL7: PASS | EM7: 2500000 | EN7: Pass | EO7: Y | EP7: 2023-08-09T16:33:11 | ER7: Case 6 | ES7: Neil
A8: 2000000 | B8: 0.0529 | C8: 30 | D8: 3 | E8: Company | F8: Individual (Single) | W8: 0 | X8: 1 | Y8: 0 | Z8: 0 | AA8: 0 | AB8: 0 | AC8: 0 | AD8: 30000 | AE8: 0 | AF8: 0 | AG8: 0 | AH8: 0 | AI8: 0 | AJ8: 0 | AK8: 0 | AL8: 0 | AM8: 0 | AN8: 0 | AO8: 0 | AP8: 0 | AQ8: 0 | AR8: 0 | AS8: 0 | AT8: 0 | AU8: 300000 | AV8: 0 | AW8: 0 | AX8: 0 | AY8: 0 | AZ8: 0 | BA8: 0 | BB8: 0 | BC8: 0 | BD8: 0 | BE8: 0 | BF8: 0 | BG8: 0 | BH8: 0 | BI8: 0 | BJ8: 0 | BK8: 0 | BL8: 0 | BM8: 0 | BN8: 0 | BO8: 0 | BP8: 0 | BQ8: 0 | BR8: 0 | BS8: 0 | BT8: 0 | BU8: 0 | BV8: 0 | BW8: 0 | BX8: 0 | BY8: 0 | BZ8: 0 | CA8: 0 | CB8: 0 | CC8: 0 | CD8: 27500.08 | CE8: 20500.07 | CF8: 1016.04 | CG8: 19484.04 | CH8: 11608.05 | CI8: 0 | CJ8: 330001 | CK8: 246000.88 | CL8: 12192.44 | CM8: 233808.44 | CN8: 139296.62 | CO8: 0 | CP8: 27500.08 | CQ8: 20500.07 | CR8: 1016.04 | CS8: 19484.04 | CT8: 14136.59 | CU8: 0 | CV8: 330001 | CW8: 246000.88 | CX8: 12192.44 | CY8: 233808.44 | CZ8: 169639.12 | DA8: 0 | DB8: 1.67 | DC8: 0.4221096996 | DD8: PASS | DE8: 1.37 | DF8: 0.5140563846 | DG8: PASS | DH8: 2000000 | DI8: 27500.08 | DJ8: 20500.07 | DK8: 1016.04 | DL8: 19484.04 | DM8: 11608.05 | DN8: 0 | DO8: 330001 | DP8: 246000.88 | DQ8: 12192.44 | DR8: 233808.44 | DS8: 139296.62 | DT8: 0 | DU8: 27500.08 | DV8: 20500.07 | DW8: 1016.04 | DX8: 19484.04 | DY8: 14136.59 | DZ8: 0 | EA8: 330001 | EB8: 246000.88 | EC8: 12192.44 | ED8: 233808.44 | EE8: 169639.12 | EF8: 0 | EG8: 1.67 | EH8: 0.4221096996 | EI8: PASS | EJ8: 1.37 | EK8: 0.5140563846 | EL8: PASS | EM8: 2000000 | EN8: Pass | EO8: Y | EP8: 2023-08-09T16:33:13 | ER8: Case 7 | ES8: Neil
A9: 350000 | B9: 0.06 | C9: 12 | D9: 5 | E9: Individual (Couple) | F9: Individual (Couple) | K9: Applicant 2 | L9: Applicant 1 | Q9: 3 | R9: 2 | W9: 100000 | X9: 80000 | Y9: 0 | Z9: 0 | AA9: 0 | AB9: 0 | AC9: 0 | AD9: 1 | AE9: 0 | AF9: 0 | AG9: 0 | AH9: 0 | AI9: 0 | AJ9: 25000 | AK9: 0 | AL9: 0 | AM9: 0 | AN9: 0 | AO9: 0 | AP9: 0 | AQ9: 0 | AR9: 0 | AS9: 0 | AT9: 0 | AU9: 0 | AV9: 0 | AW9: 0 | AX9: 0 | AY9: 0 | AZ9: 0 | BA9: 0 | BB9: 0 | BC9: 0 | BD9: 0 | BE9: 0 | BF9: 0 | BG9: 0 | BH9: 0 | BI9: 0 | BJ9: 0 | BK9: 0 | BL9: 0 | BM9: 0 | BN9: 0 | BO9: 0 | BP9: 0 | BQ9: 0 | BR9: 0 | BS9: 0 | BT9: 0 | BU9: 0 | BV9: 0 | BW9: 0 | BX9: 0 | BY9: 0 | BZ9: 0 | CA9: 30000 | CB9: 500 | CC9: 0 | CD9: 17083.42 | CE9: 12721.83 | CF9: 6378.2 | CG9: 6343.63 | CH9: 5112.99 | CI9: 1765 | CJ9: 205001 | CK9: 152661.95 | CL9: 76538.42 | CM9: 76123.53 | CN9: 61355.93 | CO9: 21180 | CP9: 17083.42 | CQ9: 12721.83 | CR9: 6378.2 | CS9: 6343.63 | CT9: 5455.18 | CU9: 1765 | CV9: 205001 | CW9: 152661.95 | CX9: 76538.42 | CY9: 76123.53 | CZ9: 65462.1 | DA9: 21180 | DB9: 0.92 | DC9: 0.402612323 | DD9: FAIL | DE9: 0.87 | DF9: 0.422642331 | DG9: FAIL | DH9: 293721.1 | DI9: 17083.42 | DJ9: 12721.83 | DK9: 6378.2 | DL9: 6343.63 | DM9: 5112.99 | DN9: 1765 | DO9: 205001 | DP9: 152661.95 | DQ9: 76538.42 | DR9: 76123.53 | DS9: 61355.93 | DT9: 21180 | DU9: 17083.42 | DV9: 12721.83 | DW9: 6378.2 | DX9: 6343.63 | DY9: 5455.18 | DZ9: 1765 | EA9: 205001 | EB9: 152661.95 | EC9: 76538.42 | ED9: 76123.53 | EE9: 65462.1 | EF9: 21180 | EG9: 0.92 | EH9: 0.402612323 | EI9: FAIL | EJ9: 0.87 | EK9: 0.422642331 | EL9: FAIL | EM9: 293721.1 | EN9: Pass | EO9: Y | EP9: 2023-08-09T16:33:14 | ER9: Case 8 | ES9: Neil
A10: 350000 | B10: 0.06 | C10: 12 | D10: 5 | E10: Individual (Couple) | F10: Individual (Couple) | K10: Applicant 2 | L10: Applicant 1 | Q10: 3 | R10: 2 | W10: 100000 | X10: 80000 | Y10: 0 | Z10: 0 | AA10: 0 | AB10: 0 | AC10: 0 | AD10: 0 | AE10: 0 | AF10: 0 | AG10: 0 | AH10: 0 | AI10: 0 | AJ10: 25000 | AK10: 0 | AL10: 0 | AM10: 0 | AN10: 0 | AO10: 0 | AP10: 0 | AQ10: 0 | AR10: 0 | AS10: 0 | AT10: 0 | AU10: 0 | AV10: 0 | AW10: 0 | AX10: 0 | AY10: 0 | AZ10: 0 | BA10: 0 | BB10: 0 | BC10: 0 | BD10: 0 | BE10: 0 | BF10: 0 | BG10: 0 | BH10: 0 | BI10: 0 | BJ10: 0 | BK10: 0 | BL10: 0 | BM10: 0 | BN10: 0 | BO10: 0 | BP10: 0 | BQ10: 0 | BR10: 0 | BS10: 0 | BT10: 0 | BU10: 0 | BV10: 0 | BW10: 0 | BX10: 0 | BY10: 0 | BZ10: 0 | CA10: 30000 | CB10: 500 | CC10: 0 | CD10: 17083.33 | CE10: 12721.75 | CF10: 6378.2 | CG10: 6343.54 | CH10: 5112.99 | CI10: 1765 | CJ10: 205000 | CK10: 152660.95 | CL10: 76538.42 | CM10: 76122.53 | CN10: 61355.93 | CO10: 21180 | CP10: 17083.33 | CQ10: 12721.75 | CR10: 6378.2 | CS10: 6343.54 | CT10: 5455.18 | CU10: 1765 | CV10: 205000 | CW10: 152660.95 | CX10: 76538.42 | CY10: 76122.53 | CZ10: 65462.1 | DA10: 21180 | DB10: 0.92 | DC10: 0.402614287 | DD10: FAIL | DE10: 0.87 | DF10: 0.4226443926 | DG10: FAIL | DH10: 293721.1 | DI10: 17083.33 | DJ10: 12721.75 | DK10: 6378.2 | DL10: 6343.54 | DM10: 5112.99 | DN10: 1765 | DO10: 205000 | DP10: 152660.95 | DQ10: 76538.42 | DR10: 76122.53 | DS10: 61355.93 | DT10: 21180 | DU10: 17083.33 | DV10: 12721.75 | DW10: 6378.2 | DX10: 6343.54 | DY10: 5455.18 | DZ10: 1765 | EA10: 205000 | EB10: 152660.95 | EC10: 76538.42 | ED10: 76122.53 | EE10: 65462.1 | EF10: 21180 | EG10: 0.92 | EH10: 0.402614287 | EI10: FAIL | EJ10: 0.87 | EK10: 0.4226443926 | EL10: FAIL | EM10: 293721.1 | EN10: Pass | EO10: Y | EP10: 2023-08-09T16:33:15 | ER10: Case 9 | ES10: Neil
A11: 500000 | B11: 0.07 | C11: 20 | D11: 3 | E11: Individual (Couple) | F11: Individual (Couple) | K11: Applicant 2 | L11: Applicant 1 | Q11: 2 | W11: 150000 | X11: 0 | Y11: 0 | Z11: 0 | AA11: 0 | AB11: 0 | AC11: 0 | AD11: 0 | AE11: 0 | AF11: 0 | AG11: 0 | AH11: 0 | AI11: 0 | AJ11: 0 | AK11: 0 | AL11: 0 | AM11: 0 | AN11: 0 | AO11: 0 | AP11: 0 | AQ11: 0 | AR11: 0 | AS11: 0 | AT11: 0 | AU11: 0 | AV11: 0 | AW11: 0 | AX11: 0 | AY11: 0 | AZ11: 0 | BA11: 20000 | BB11: 0 | BC11: 0 | BD11: 0 | BE11: 0 | BF11: 0 | BG11: 0 | BH11: 0 | BI11: 0 | BJ11: 0 | BK11: 0 | BL11: 0 | BM11: 4000 | BN11: 0 | BO11: 0 | BP11: 0 | BQ11: 0 | BR11: 0 | BS11: 0 | BT11: 0 | BU11: 0 | BV11: 0 | BW11: 0 | BX11: 0 | BY11: 0 | BZ11: 0 | CA11: 0 | CB11: 0 | CC11: 0 | CD11: 13833.33 | CE11: 9832.74 | CF11: 4000 | CG11: 5832.74 | CH11: 4198.3 | CI11: 0 | CJ11: 166000 | CK11: 117992.83 | CL11: 48000 | CM11: 69992.83 | CN11: 50379.64 | CO11: 0 | CP11: 13833.33 | CQ11: 9832.74 | CR11: 4000 | CS11: 5832.74 | CT11: 4794.02 | CU11: 0 | CV11: 166000 | CW11: 117992.83 | CX11: 48000 | CY11: 69992.83 | CZ11: 57528.23 | DA11: 0 | DB11: 1.38 | DC11: 0.3034918023 | DD11: PASS | DE11: 1.21 | DF11: 0.3465556274 | DG11: PASS | DH11: 500000 | DI11: 13833.33 | DJ11: 9832.74 | DK11: 4000 | DL11: 5832.74 | DM11: 4198.3 | DN11: 0 | DO11: 166000 | DP11: 117992.83 | DQ11: 48000 | DR11: 69992.83 | DS11: 50379.64 | DT11: 0 | DU11: 13833.33 | DV11: 9832.74 | DW11: 4000 | DX11: 5832.74 | DY11: 4794.02 | DZ11: 0 | EA11: 166000 | EB11: 117992.83 | EC11: 48000 | ED11: 69992.83 | EE11: 57528.23 | EF11: 0 | EG11: 1.38 | EH11: 0.3034918023 | EI11: PASS | EJ11: 1.21 | EK11: 0.3465556274 | EL11: PASS | EM11: 500000 | EN11: Pass | EO11: Y | EP11: 2023-08-09T16:33:16 | ER11: Case 10 | ES11: Neil
A12: 500000 | B12: 0.07 | C12: 20 | D12: 3 | E12: Individual (Couple) | F12: Individual (Couple) | K12: Applicant 2 | L12: Applicant 1 | Q12: 2 | W12: 150000 | X12: 0 | Y12: 0 | Z12: 0 | AA12: 0 | AB12: 0 | AC12: 0 | AD12: 0 | AE12: 0 | AF12: 0 | AG12: 0 | AH12: 0 | AI12: 0 | AJ12: 0 | AK12: 0 | AL12: 0 | AM12: 0 | AN12: 0 | AO12: 0 | AP12: 0 | AQ12: 0 | AR12: 0 | AS12: 0 | AT12: 0 | AU12: 0 | AV12: 0 | AW12: 0 | AX12: 0 | AY12: 0 | AZ12: 0 | BA12: 20000 | BB12: 0 | BC12: 0 | BD12: 0 | BE12: 0 | BF12: 0 | BG12: 100000 | BH12: 0 | BI12: 0 | BJ12: 0 | BK12: 0 | BL12: 0 | BM12: 4000 | BN12: 0 | BO12: 0 | BP12: 0 | BQ12: 0 | BR12: 0 | BS12: 0 | BT12: 0 | BU12: 0 | BV12: 0 | BW12: 0 | BX12: 0 | BY12: 0 | BZ12: 0 | CA12: 0 | CB12: 0 | CC12: 0 | CD12: 13833.33 | CE12: 9832.74 | CF12: 4000 | CG12: 5832.74 | CH12: 4198.3 | CI12: 0 | CJ12: 166000 | CK12: 117992.83 | CL12: 48000 | CM12: 69992.83 | CN12: 50379.64 | CO12: 0 | CP12: 13833.33 | CQ12: 9832.74 | CR12: 4000 | CS12: 5832.74 | CT12: 4794.02 | CU12: 0 | CV12: 166000 | CW12: 117992.83 | CX12: 48000 | CY12: 69992.83 | CZ12: 57528.23 | DA12: 0 | DB12: 1.38 | DC12: 0.3034918023 | DD12: PASS | DE12: 1.21 | DF12: 0.3465556274 | DG12: PASS | DH12: 500000 | DI12: 13833.33 | DJ12: 9832.74 | DK12: 4000 | DL12: 5832.74 | DM12: 4198.3 | DN12: 0 | DO12: 166000 | DP12: 117992.83 | DQ12: 48000 | DR12: 69992.83 | DS12: 50379.64 | DT12: 0 | DU12: 13833.33 | DV12: 9832.74 | DW12: 4000 | DX12: 5832.74 | DY12: 4794.02 | DZ12: 0 | EA12: 166000 | EB12: 117992.83 | EC12: 48000 | ED12: 69992.83 | EE12: 57528.23 | EF12: 0 | EG12: 1.38 | EH12: 0.3034918023 | EI12: PASS | EJ12: 1.21 | EK12: 0.3465556274 | EL12: PASS | EM12: 500000 | EN12: Pass | EO12: Y | EP12: 2023-08-09T16:33:17 | ER12: Case 11 | ES12: Neil
A13: 200000 | B13: 0.05 | C13: 30 | D13: 0 | E13: Individual (Couple) | F13: Individual (Couple) | K13: Applicant 2 | L13: Applicant 1 | W13: 0 | X13: 10000 | Y13: 0 | Z13: 0 | AA13: 0 | AB13: 0 | AC13: 35000 | AD13: 0 | AE13: 0 | AF13: 0 | AG13: 0 | AH13: 0 | AI13: 0 | AJ13: 0 | AK13: 0 | AL13: 0 | AM13: 0 | AN13: 0 | AO13: 0 | AP13: 0 | AQ13: 0 | AR13: 0 | AS13: 0 | AT13: 0 | AU13: 0 | AV13: 0 | AW13: 0 | AX13: 0 | AY13: 0 | AZ13: 0 | BA13: 0 | BB13: 0 | BC13: 0 | BD13: 0 | BE13: 0 | BF13: 0 | BG13: 0 | BH13: 0 | BI13: 0 | BJ13: 0 | BK13: 0 | BL13: 0 | BM13: 100 | BN13: 0 | BO13: 0 | BP13: 0 | BQ13: 0 | BR13: 0 | BS13: 0 | BT13: 0 | BU13: 0 | BV13: 0 | BW13: 0 | BX13: 0 | BY13: 0 | BZ13: 0 | CA13: 0 | CB13: 0 | CC13: 0 | CD13: 3750 | CE13: 3650.92 | CF13: 1967.35 | CG13: 1683.57 | CH13: 1073.64 | CI13: 0 | CJ13: 45000 | CK13: 43811 | CL13: 23608.22 | CM13: 20202.78 | CN13: 12883.72 | CO13: 0 | CP13: 3750 | CQ13: 3650.92 | CR13: 1967.35 | CS13: 1683.57 | CT13: 1330.61 | CU13: 0 | CV13: 45000 | CW13: 43811 | CX13: 23608.22 | CY13: 20202.78 | CZ13: 15967.26 | DA13: 0 | DB13: 1.56 | DC13: 0.2863048656 | DD13: PASS | DE13: 1.26 | DF13: 0.3548279974 | DG13: PASS | DH13: 200000 | DI13: 3750 | DJ13: 3650.92 | DK13: 1967.35 | DL13: 1683.57 | DM13: 1073.64 | DN13: 0 | DO13: 45000 | DP13: 43811 | DQ13: 23608.22 | DR13: 20202.78 | DS13: 12883.72 | DT13: 0 | DU13: 3750 | DV13: 3650.92 | DW13: 1967.35 | DX13: 1683.57 | DY13: 1330.61 | DZ13: 0 | EA13: 45000 | EB13: 43811 | EC13: 23608.22 | ED13: 20202.78 | EE13: 15967.26 | EF13: 0 | EG13: 1.56 | EH13: 0.2863048656 | EI13: PASS | EJ13: 1.26 | EK13: 0.3548279974 | EL13: PASS | EM13: 200000 | EN13: Pass | EO13: Y | EP13: 2023-08-09T16:33:18 | ER13: Case 12 | ES13: Neil
A14: 1000000 | B14: 0.05 | C14: 30 | D14: 0 | E14: Individual (Couple) | F14: Individual (Couple) | K14: Applicant 2 | L14: Applicant 1 | W14: 0 | X14: 0 | Y14: 0 | Z14: 0 | AA14: 0 | AB14: 0 | AC14: 0 | AD14: 0 | AE14: 0 | AF14: 0 | AG14: 0 | AH14: 0 | AI14: 0 | AJ14: 0 | AK14: 0 | AL14: 0 | AM14: 0 | AN14: 0 | AO14: 0 | AP14: 0 | AQ14: 0 | AR14: 0 | AS14: 0 | AT14: 0 | AU14: 0 | AV14: 0 | AW14: 0 | AX14: 0 | AY14: 0 | AZ14: 0 | BA14: 200000 | BB14: 0 | BC14: 0 | BD14: 0 | BE14: 0 | BF14: 0 | BG14: 1000000 | BH14: 0 | BI14: 0 | BJ14: 0 | BK14: 0 | BL14: 0 | BM14: 100 | BN14: 0 | BO14: 0 | BP14: 0 | BQ14: 0 | BR14: 0 | BS14: 0 | BT14: 0 | BU14: 0 | BV14: 0 | BW14: 0 | BX14: 0 | BY14: 0 | BZ14: 0 | CA14: 0 | CB14: 0 | CC14: 0 | CD14: 13333.33 | CE14: 9504.69 | CF14: 2687.38 | CG14: 6817.31 | CH14: 5368.22 | CI14: 0 | CJ14: 160000 | CK14: 114056.23 | CL14: 32248.54 | CM14: 81807.69 | CN14: 64418.59 | CO14: 0 | CP14: 13333.33 | CQ14: 9504.69 | CR14: 2687.38 | CS14: 6817.31 | CT14: 6653.03 | CU14: 0 | CV14: 160000 | CW14: 114056.23 | CX14: 32248.54 | CY14: 81807.69 | CZ14: 79836.3 | DA14: 0 | DB14: 1.26 | DC14: 0.4026162173 | DD14: PASS | DE14: 1.02 | DF14: 0.4989768714 | DG14: PASS | DH14: 1000000 | DI14: 13333.33 | DJ14: 9504.69 | DK14: 2687.38 | DL14: 6817.31 | DM14: 5368.22 | DN14: 0 | DO14: 160000 | DP14: 114056.23 | DQ14: 32248.54 | DR14: 81807.69 | DS14: 64418.59 | DT14: 0 | DU14: 13333.33 | DV14: 9504.69 | DW14: 2687.38 | DX14: 6817.31 | DY14: 6653.03 | DZ14: 0 | EA14: 160000 | EB14: 114056.23 | EC14: 32248.54 | ED14: 81807.69 | EE14: 79836.3 | EF14: 0 | EG14: 1.26 | EH14: 0.4026162173 | EI14: PASS | EJ14: 1.02 | EK14: 0.4989768714 | EL14: PASS | EM14: 1000000 | EN14: Pass | EO14: Y | EP14: 2023-08-09T16:33:19 | ER14: Case 13 | ES14: Neil
A15: 1500000 | B15: 0.06 | C15: 30 | D15: 0 | E15: Individual (Couple) | F15: Individual (Couple) | G15: Individual (Single) | K15: Applicant 2 | L15: Applicant 1 | W15: 300000 | X15: 10000 | Y15: 0 | Z15: 0 | AA15: 0 | AB15: 0 | AC15: 35000 | AD15: 0 | AE15: 35000 | AF15: 0 | AG15: 0 | AH15: 0 | AI15: 116000 | AJ15: 0 | AK15: 0 | AL15: 0 | AM15: 0 | AN15: 0 | AO15: 15000 | AP15: 0 | AQ15: 0 | AR15: 0 | AS15: 0 | AT15: 0 | AU15: 0 | AV15: 0 | AW15: 0 | AX15: 0 | AY15: 0 | AZ15: 0 | BA15: 0 | BB15: 0 | BC15: 0 | BD15: 0 | BE15: 0 | BF15: 0 | BG15: 0 | BH15: 0 | BI15: 0 | BJ15: 0 | BK15: 0 | BL15: 0 | BM15: 100 | BN15: 0 | BO15: 0 | BP15: 0 | BQ15: 0 | BR15: 0 | BS15: 0 | BT15: 0 | BU15: 0 | BV15: 0 | BW15: 0 | BX15: 0 | BY15: 0 | BZ15: 0 | CA15: 0 | CB15: 0 | CC15: 0 | CD15: 42583.33 | CE15: 30139.07 | CF15: 4052.37 | CG15: 26086.7 | CH15: 8993.26 | CI15: 0 | CJ15: 511000 | CK15: 361668.89 | CL15: 48628.49 | CM15: 313040.39 | CN15: 107919.09 | CO15: 0 | CP15: 42583.33 | CQ15: 30139.07 | CR15: 4052.37 | CS15: 26086.7 | CT15: 11006.47 | CU15: 0 | CV15: 511000 | CW15: 361668.89 | CX15: 48628.49 | CY15: 313040.39 | CZ15: 132077.62 | DA15: 0 | DB15: 2.9 | DC15: 0.2111919658 | DD15: PASS | DE15: 2.37 | DF15: 0.2584689301 | DG15: PASS | DH15: 1500000 | DI15: 42583.33 | DJ15: 30139.07 | DK15: 4052.37 | DL15: 26086.7 | DM15: 8993.26 | DN15: 0 | DO15: 511000 | DP15: 361668.89 | DQ15: 48628.49 | DR15: 313040.39 | DS15: 107919.09 | DT15: 0 | DU15: 42583.33 | DV15: 30139.07 | DW15: 4052.37 | DX15: 26086.7 | DY15: 11006.47 | DZ15: 0 | EA15: 511000 | EB15: 361668.89 | EC15: 48628.49 | ED15: 313040.39 | EE15: 132077.62 | EF15: 0 | EG15: 2.9 | EH15: 0.2111919658 | EI15: PASS | EJ15: 2.37 | EK15: 0.2584689301 | EL15: PASS | EM15: 1500000 | EN15: Pass | EO15: Y | EP15: 2023-08-09T16:33:20 | ER15: Case 14 | ES15: Neil
A16: 1000000 | B16: 0.06 | C16: 30 | D16: 0 | E16: Individual (Single) | F16: Individual (Couple) | G16: Individual (Couple) | L16: Applicant 3 | M16: Applicant 2 | W16: 0 | X16: 50000 | Y16: 0 | Z16: 0 | AA16: 0 | AB16: 0 | AC16: 0 | AD16: 0 | AE16: 0 | AF16: 0 | AG16: 0 | AH16: 0 | AI16: 25000 | AJ16: 0 | AK16: 0 | AL16: 0 | AM16: 0 | AN16: 0 | AO16: 0 | AP16: 0 | AQ16: 0 | AR16: 0 | AS16: 0 | AT16: 0 | AU16: 0 | AV16: 0 | AW16: 0 | AX16: 0 | AY16: 0 | AZ16: 0 | BA16: 0 | BB16: 60000 | BC16: 60000 | BD16: 0 | BE16: 0 | BF16: 0 | BG16: 0 | BH16: 500000 | BI16: 500000 | BJ16: 0 | BK16: 0 | BL16: 0 | BM16: 1000 | BN16: 0 | BO16: 0 | BP16: 0 | BQ16: 0 | BR16: 0 | BS16: 0 | BT16: 0 | BU16: 0 | BV16: 0 | BW16: 0 | BX16: 0 | BY16: 0 | BZ16: 0 | CA16: 0 | CB16: 0 | CC16: 0 | CD16: 14250 | CE16: 11212.37 | CF16: 3591.14 | CG16: 7621.23 | CH16: 5995.51 | CI16: 0 | CJ16: 171000 | CK16: 134548.47 | CL16: 43093.65 | CM16: 91454.82 | CN16: 71946.06 | CO16: 0 | CP16: 14250 | CQ16: 11212.37 | CR16: 3591.14 | CS16: 7621.23 | CT16: 7337.65 | CU16: 0 | CV16: 171000 | CW16: 134548.47 | CX16: 43093.65 | CY16: 91454.82 | CZ16: 88051.75 | DA16: 0 | DB16: 1.27 | DC16: 0.4207372106 | DD16: PASS | DE16: 1.03 | DF16: 0.514922508 | DG16: PASS | DH16: 1000000 | DI16: 14250 | DJ16: 11212.37 | DK16: 3591.14 | DL16: 7621.23 | DM16: 5995.51 | DN16: 0 | DO16: 171000 | DP16: 134548.47 | DQ16: 43093.65 | DR16: 91454.82 | DS16: 71946.06 | DT16: 0 | DU16: 14250 | DV16: 11212.37 | DW16: 3591.14 | DX16: 7621.23 | DY16: 7337.65 | DZ16: 0 | EA16: 171000 | EB16: 134548.47 | EC16: 43093.65 | ED16: 91454.82 | EE16: 88051.75 | EF16: 0 | EG16: 1.27 | EH16: 0.4207372106 | EI16: PASS | EJ16: 1.03 | EK16: 0.514922508 | EL16: PASS | EM16: 1000000 | EN16: Pass | EO16: Y | EP16: 2023-08-09T16:33:21 | ER16: Case 15 | ES16: Neil
A17: 200000 | B17: 0.05 | C17: 30 | D17: 0 | E17: Individual (Single) | Q17: 1 | W17: 107000 | X17: 0 | Y17: 0 | Z17: 0 | AA17: 0 | AB17: 0 | AC17: 0 | AD17: 0 | AE17: 0 | AF17: 0 | AG17: 0 | AH17: 0 | AI17: 0 | AJ17: 0 | AK17: 0 | AL17: 0 | AM17: 0 | AN17: 0 | AO17: 0 | AP17: 0 | AQ17: 0 | AR17: 0 | AS17: 0 | AT17: 0 | AU17: 0 | AV17: 0 | AW17: 0 | AX17: 0 | AY17: 0 | AZ17: 0 | BA17: 0 | BB17: 0 | BC17: 0 | BD17: 0 | BE17: 0 | BF17: 0 | BG17: 0 | BH17: 0 | BI17: 0 | BJ17: 0 | BK17: 0 | BL17: 0 | BM17: 100 | BN17: 0 | BO17: 0 | BP17: 0 | BQ17: 0 | BR17: 0 | BS17: 0 | BT17: 0 | BU17: 0 | BV17: 0 | BW17: 0 | BX17: 0 | BY17: 0 | BZ17: 0 | CA17: 10000 | CB17: 1000 | CC17: 1000 | CD17: 8916.67 | CE17: 6606.91 | CF17: 1923.35 | CG17: 4683.56 | CH17: 1073.64 | CI17: 2630 | CJ17: 107000 | CK17: 79282.93 | CL17: 23080.26 | CM17: 56202.67 | CN17: 12883.72 | CO17: 31560 | CP17: 8916.67 | CQ17: 6606.91 | CR17: 1923.35 | CS17: 4683.56 | CT17: 1330.61 | CU17: 2630 | CV17: 107000 | CW17: 79282.93 | CX17: 23080.26 | CY17: 56202.67 | CZ17: 15967.26 | DA17: 31560 | DB17: 1.26 | DC17: 0.4153618594 | DD17: PASS | DE17: 1.18 | DF17: 0.4441799989 | DG17: PASS | DH17: 200000 | DI17: 8916.67 | DJ17: 6606.91 | DK17: 1923.35 | DL17: 4683.56 | DM17: 1073.64 | DN17: 2630 | DO17: 107000 | DP17: 79282.93 | DQ17: 23080.26 | DR17: 56202.67 | DS17: 12883.72 | DT17: 31560 | DU17: 8916.67 | DV17: 6606.91 | DW17: 1923.35 | DX17: 4683.56 | DY17: 1330.61 | DZ17: 2630 | EA17: 107000 | EB17: 79282.93 | EC17: 23080.26 | ED17: 56202.67 | EE17: 15967.26 | EF17: 31560 | EG17: 1.26 | EH17: 0.4153618594 | EI17: PASS | EJ17: 1.18 | EK17: 0.4441799989 | EL17: PASS | EM17: 200000 | EN17: Pass | EO17: Y | EP17: 2023-08-09T16:33:23 | ER17: Case 16 | ES17: Neil
A18: 200000 | B18: 0.05 | C18: 30 | D18: 0 | E18: Individual (Single) | Q18: 1 | W18: 107000 | X18: 0 | Y18: 0 | Z18: 0 | AA18: 0 | AB18: 0 | AC18: 25000 | AD18: 0 | AE18: 0 | AF18: 0 | AG18: 0 | AH18: 0 | AI18: 0 | AJ18: 0 | AK18: 0 | AL18: 0 | AM18: 0 | AN18: 0 | AO18: 0 | AP18: 0 | AQ18: 0 | AR18: 0 | AS18: 0 | AT18: 0 | AU18: 0 | AV18: 0 | AW18: 0 | AX18: 0 | AY18: 0 | AZ18: 0 | BA18: 0 | BB18: 0 | BC18: 0 | BD18: 0 | BE18: 0 | BF18: 0 | BG18: 0 | BH18: 0 | BI18: 0 | BJ18: 0 | BK18: 0 | BL18: 0 | BM18: 100 | BN18: 0 | BO18: 0 | BP18: 0 | BQ18: 0 | BR18: 0 | BS18: 0 | BT18: 0 | BU18: 0 | BV18: 0 | BW18: 0 | BX18: 0 | BY18: 0 | BZ18: 0 | CA18: 10000 | CB18: 1000 | CC18: 1000 | CD18: 11000 | CE18: 8690.24 | CF18: 2076.75 | CG18: 6613.49 | CH18: 1073.64 | CI18: 2630 | CJ18: 132000 | CK18: 104282.93 | CL18: 24921.05 | CM18: 79361.88 | CN18: 12883.72 | CO18: 31560 | CP18: 11000 | CQ18: 8690.24 | CR18: 2076.75 | CS18: 6613.49 | CT18: 1330.61 | CU18: 2630 | CV18: 132000 | CW18: 104282.93 | CX18: 24921.05 | CY18: 79361.88 | CZ18: 15967.26 | DA18: 31560 | DB18: 1.78 | DC18: 0.3366948405 | DD18: PASS | DE18: 1.66 | DF18: 0.3600549991 | DG18: PASS | DH18: 200000 | DI18: 11000 | DJ18: 8690.24 | DK18: 2076.75 | DL18: 6613.49 | DM18: 1073.64 | DN18: 2630 | DO18: 132000 | DP18: 104282.93 | DQ18: 24921.05 | DR18: 79361.88 | DS18: 12883.72 | DT18: 31560 | DU18: 11000 | DV18: 8690.24 | DW18: 2076.75 | DX18: 6613.49 | DY18: 1330.61 | DZ18: 2630 | EA18: 132000 | EB18: 104282.93 | EC18: 24921.05 | ED18: 79361.88 | EE18: 15967.26 | EF18: 31560 | EG18: 1.78 | EH18: 0.3366948405 | EI18: PASS | EJ18: 1.66 | EK18: 0.3600549991 | EL18: PASS | EM18: 200000 | EN18: Pass | EO18: Y | EP18: 2023-08-09T16:33:24 | ER18: Case 17 | ES18: Neil
A19: 2500000 | B19: 0.0679 | C19: 40 | D19: 5 | E19: Company | F19: Individual (Single) | G19: Individual (Couple) | H19: Individual (Couple) | I19: Individual (Couple) | J19: Individual (Single) | M19: Non-loan Party | N19: Applicant 5 | O19: Applicant 4 | W19: 0 | X19: 0 | Y19: 80000 | Z19: 0 | AA19: 0 | AB19: 300000 | AC19: 0 | AD19: 0 | AE19: 0 | AF19: 0 | AG19: 0 | AH19: 0 | AI19: 535000 | AJ19: 150000 | AK19: 0 | AL19: 0 | AM19: 0 | AN19: 0 | AO19: 75000 | AP19: 0 | AQ19: 0 | AR19: 0 | AS19: 0 | AT19: 0 | AU19: 0 | AV19: 0 | AW19: 0 | AX19: 0 | AY19: 0 | AZ19: 0 | BA19: 0 | BB19: 0 | BC19: 0 | BD19: 50000 | BE19: 50000 | BF19: 0 | BG19: 0 | BH19: 0 | BI19: 0 | BJ19: 1000000 | BK19: 1000000 | BL19: 0 | BM19: 0 | BN19: 0 | BO19: 0 | BP19: 0 | BQ19: 0 | BR19: 0 | BS19: 0 | BT19: 0 | BU19: 0 | BV19: 0 | BW19: 0 | BX19: 0 | BY19: 20000 | BZ19: 0 | CA19: 50000 | CB19: 15000 | CC19: 0 | CD19: 101666.67 | CE19: 74568.49 | CF19: 20000 | CG19: 54568.49 | CH19: 15604.88 | CI19: 20650 | CJ19: 1220000 | CK19: 894821.88 | CL19: 240000 | CM19: 654821.88 | CN19: 187258.53 | CO19: 247800 | CP19: 101666.67 | CQ19: 74568.49 | CR19: 20000 | CS19: 54568.49 | CT19: 19208.39 | CU19: 20650 | CV19: 1220000 | CW19: 894821.88 | CX19: 240000 | CY19: 654821.88 | CZ19: 230500.65 | DA19: 247800 | DB19: 1.5 | DC19: 0.3566053563 | DD19: PASS | DE19: 1.36 | DF19: 0.392049717 | DG19: PASS | DH19: 2500000 | DI19: 101666.67 | DJ19: 74568.49 | DK19: 20000 | DL19: 54568.49 | DM19: 15604.88 | DN19: 20650 | DO19: 1220000 | DP19: 894821.88 | DQ19: 240000 | DR19: 654821.88 | DS19: 187258.53 | DT19: 247800 | DU19: 101666.67 | DV19: 74568.49 | DW19: 20000 | DX19: 54568.49 | DY19: 19208.39 | DZ19: 20650 | EA19: 1220000 | EB19: 894821.88 | EC19: 240000 | ED19: 654821.88 | EE19: 230500.65 | EF19: 247800 | EG19: 1.5 | EH19: 0.3566053563 | EI19: PASS | EJ19: 1.36 | EK19: 0.392049717 | EL19: PASS | EM19: 2500000 | EN19: Pass | EO19: Y | EP19: 2023-08-09T16:33:25 | ER19: Case 18 | ES19: Neil
A20: 2500000 | B20: 0.0679 | C20: 40 | D20: 5 | E20: Company | F20: Individual (Single) | G20: Individual (Couple) | H20: Individual (Couple) | I20: Individual (Couple) | J20: Individual (Single) | M20: Non-loan Party | N20: Applicant 5 | O20: Applicant 4 | W20: 0 | X20: 0 | Y20: 80000 | Z20: 30000 | AA20: 40000 | AB20: 0 | AC20: 0 | AD20: 0 | AE20: 0 | AF20: 0 | AG20: 0 | AH20: 75000 | AI20: 0 | AJ20: 150000 | AK20: 0 | AL20: 0 | AM20: 0 | AN20: 0 | AO20: 75000 | AP20: 0 | AQ20: 0 | AR20: 0 | AS20: 0 | AT20: 0 | AU20: 535000 | AV20: 0 | AW20: 0 | AX20: 0 | AY20: 0 | AZ20: 0 | BA20: 0 | BB20: 0 | BC20: 0 | BD20: 50000 | BE20: 50000 | BF20: 0 | BG20: 0 | BH20: 0 | BI20: 0 | BJ20: 1000000 | BK20: 1000000 | BL20: 0 | BM20: 0 | BN20: 0 | BO20: 0 | BP20: 0 | BQ20: 0 | BR20: 0 | BS20: 0 | BT20: 0 | BU20: 0 | BV20: 0 | BW20: 0 | BX20: 0 | BY20: 20000 | BZ20: 0 | CA20: 50000 | CB20: 15000 | CC20: 0 | CD20: 88750 | CE20: 68403.24 | CF20: 20000 | CG20: 48403.24 | CH20: 15604.88 | CI20: 20650 | CJ20: 1065000 | CK20: 820838.87 | CL20: 240000 | CM20: 580838.87 | CN20: 187258.53 | CO20: 247800 | CP20: 88750 | CQ20: 68403.24 | CR20: 20000 | CS20: 48403.24 | CT20: 19208.39 | CU20: 20650 | CV20: 1065000 | CW20: 820838.87 | CX20: 240000 | CY20: 580838.87 | CZ20: 230500.65 | DA20: 247800 | DB20: 1.33 | DC20: 0.4085056664 | DD20: PASS | DE20: 1.21 | DF20: 0.449108596 | DG20: PASS | DH20: 2500000 | DI20: 88750 | DJ20: 68403.24 | DK20: 20000 | DL20: 48403.24 | DM20: 15604.88 | DN20: 20650 | DO20: 1065000 | DP20: 820838.87 | DQ20: 240000 | DR20: 580838.87 | DS20: 187258.53 | DT20: 247800 | DU20: 88750 | DV20: 68403.24 | DW20: 20000 | DX20: 48403.24 | DY20: 19208.39 | DZ20: 20650 | EA20: 1065000 | EB20: 820838.87 | EC20: 240000 | ED20: 580838.87 | EE20: 230500.65 | EF20: 247800 | EG20: 1.33 | EH20: 0.4085056664 | EI20: PASS | EJ20: 1.21 | EK20: 0.449108596 | EL20: PASS | EM20: 2500000 | EN20: Pass | EO20: Y | EP20: 2023-08-09T16:33:26 | ER20: Case 19 | ES20: Neil
A21: 2500000 | B21: 0.0679 | C21: 40 | D21: 5 | E21: Company | F21: Individual (Single) | G21: Individual (Couple) | H21: Individual (Couple) | I21: Individual (Couple) | J21: Individual (Single) | M21: Non-loan Party | N21: Applicant 5 | O21: Applicant 4 | W21: 0 | X21: 0 | Y21: 80000 | Z21: 30000 | AA21: 40000 | AB21: 0 | AC21: 0 | AD21: 0 | AE21: 0 | AF21: 0 | AG21: 0 | AH21: 75000 | AI21: 535000 | AJ21: 150000 | AK21: 0 | AL21: 0 | AM21: 0 | AN21: 0 | AO21: 75000 | AP21: 0 | AQ21: 0 | AR21: 0 | AS21: 0 | AT21: 0 | AU21: 0 | AV21: 0 | AW21: 0 | AX21: 0 | AY21: 0 | AZ21: 0 | BA21: 0 | BB21: 0 | BC21: 0 | BD21: 50000 | BE21: 50000 | BF21: 0 | BG21: 0 | BH21: 0 | BI21: 0 | BJ21: 1000000 | BK21: 1000000 | BL21: 0 | BM21: 0 | BN21: 0 | BO21: 0 | BP21: 0 | BQ21: 0 | BR21: 0 | BS21: 0 | BT21: 0 | BU21: 0 | BV21: 0 | BW21: 0 | BX21: 0 | BY21: 20000 | BZ21: 0 | CA21: 50000 | CB21: 15000 | CC21: 0 | CD21: 88750 | CE21: 68403.24 | CF21: 20000 | CG21: 48403.24 | CH21: 15604.88 | CI21: 20650 | CJ21: 1065000 | CK21: 820838.87 | CL21: 240000 | CM21: 580838.87 | CN21: 187258.53 | CO21: 247800 | CP21: 88750 | CQ21: 68403.24 | CR21: 20000 | CS21: 48403.24 | CT21: 19208.39 | CU21: 20650 | CV21: 1065000 | CW21: 820838.87 | CX21: 240000 | CY21: 580838.87 | CZ21: 230500.65 | DA21: 247800 | DB21: 1.33 | DC21: 0.4085056664 | DD21: PASS | DE21: 1.21 | DF21: 0.449108596 | DG21: PASS | DH21: 2500000 | DI21: 88750 | DJ21: 68403.24 | DK21: 20000 | DL21: 48403.24 | DM21: 15604.88 | DN21: 20650 | DO21: 1065000 | DP21: 820838.87 | DQ21: 240000 | DR21: 580838.87 | DS21: 187258.53 | DT21: 247800 | DU21: 88750 | DV21: 68403.24 | DW21: 20000 | DX21: 48403.24 | DY21: 19208.39 | DZ21: 20650 | EA21: 1065000 | EB21: 820838.87 | EC21: 240000 | ED21: 580838.87 | EE21: 230500.65 | EF21: 247800 | EG21: 1.33 | EH21: 0.4085056664 | EI21: PASS | EJ21: 1.21 | EK21: 0.449108596 | EL21: PASS | EM21: 2500000 | EN21: Pass | EO21: Y | EP21: 2023-08-09T16:33:27 | ER21: Case 20 | ES21: Neil
A22: 2500000 | B22: 0.0679 | C22: 40 | D22: 5 | E22: Company | F22: Individual (Single) | G22: Individual (Couple) | H22: Individual (Couple) | I22: Individual (Couple) | J22: Individual (Single) | M22: Non-loan Party | N22: Applicant 5 | O22: Applicant 4 | W22: 0 | X22: 0 | Y22: 80000 | Z22: 30000 | AA22: 40000 | AB22: 0 | AC22: 0 | AD22: 0 | AE22: 0 | AF22: 0 | AG22: 0 | AH22: 409501 | AI22: 535000 | AJ22: 150000 | AK22: 0 | AL22: 0 | AM22: 0 | AN22: 0 | AO22: 75000 | AP22: 0 | AQ22: 0 | AR22: 0 | AS22: 0 | AT22: 0 | AU22: 0 | AV22: 0 | AW22: 0 | AX22: 0 | AY22: 0 | AZ22: 0 | BA22: 0 | BB22: 0 | BC22: 0 | BD22: 50000 | BE22: 50000 | BF22: 0 | BG22: 0 | BH22: 0 | BI22: 0 | BJ22: 1000000 | BK22: 1000000 | BL22: 0 | BM22: 0 | BN22: 0 | BO22: 0 | BP22: 0 | BQ22: 0 | BR22: 0 | BS22: 0 | BT22: 0 | BU22: 0 | BV22: 0 | BW22: 0 | BX22: 0 | BY22: 20000 | BZ22: 0 | CA22: 50000 | CB22: 15000 | CC22: 0 | CD22: 116625.08 | CE22: 96278.32 | CF22: 20000 | CG22: 76278.32 | CH22: 15604.88 | CI22: 20650 | CJ22: 1399501 | CK22: 1155339.87 | CL22: 240000 | CM22: 915339.87 | CN22: 187258.53 | CO22: 247800 | CP22: 116625.08 | CQ22: 96278.32 | CR22: 20000 | CS22: 76278.32 | CT22: 19208.39 | CU22: 20650 | CV22: 1399501 | CW22: 1155339.87 | CX22: 240000 | CY22: 915339.87 | CZ22: 230500.65 | DA22: 247800 | DB22: 2.1 | DC22: 0.3108668981 | DD22: PASS | DE22: 1.91 | DF22: 0.3417651397 | DG22: PASS | DH22: 2500000 | DI22: 116625.08 | DJ22: 96278.32 | DK22: 20000 | DL22: 76278.32 | DM22: 15604.88 | DN22: 20650 | DO22: 1399501 | DP22: 1155339.87 | DQ22: 240000 | DR22: 915339.87 | DS22: 187258.53 | DT22: 247800 | DU22: 116625.08 | DV22: 96278.32 | DW22: 20000 | DX22: 76278.32 | DY22: 19208.39 | DZ22: 20650 | EA22: 1399501 | EB22: 1155339.87 | EC22: 240000 | ED22: 915339.87 | EE22: 230500.65 | EF22: 247800 | EG22: 2.1 | EH22: 0.3108668981 | EI22: PASS | EJ22: 1.91 | EK22: 0.3417651397 | EL22: PASS | EM22: 2500000 | EN22: Pass | EO22: Y | EP22: 2023-08-09T16:33:28 | ER22: Case 21 | ES22: Neil
A23: 2500000 | B23: 0.0679 | C23: 40 | D23: 5 | E23: Company | F23: Individual (Single) | G23: Individual (Couple) | H23: Individual (Couple) | I23: Individual (Couple) | J23: Individual (Single) | M23: Non-loan Party | N23: Applicant 5 | O23: Applicant 4 | W23: 0 | X23: 0 | Y23: 80000 | Z23: 30000 | AA23: 40000 | AB23: 1 | AC23: 0 | AD23: 0 | AE23: 0 | AF23: 0 | AG23: 0 | AH23: 0 | AI23: 535000 | AJ23: 150000 | AK23: 0 | AL23: 0 | AM23: 0 | AN23: 0 | AO23: 75000 | AP23: 0 | AQ23: 0 | AR23: 0 | AS23: 0 | AT23: 0 | AU23: 0 | AV23: 0 | AW23: 0 | AX23: 0 | AY23: 0 | AZ23: 0 | BA23: 0 | BB23: 0 | BC23: 0 | BD23: 50000 | BE23: 50000 | BF23: 0 | BG23: 0 | BH23: 0 | BI23: 0 | BJ23: 1000000 | BK23: 1000000 | BL23: 0 | BM23: 0 | BN23: 0 | BO23: 0 | BP23: 0 | BQ23: 0 | BR23: 0 | BS23: 0 | BT23: 0 | BU23: 0 | BV23: 0 | BW23: 0 | BX23: 0 | BY23: 20000 | BZ23: 0 | CA23: 50000 | CB23: 15000 | CC23: 0 | CD23: 82500.08 | CE23: 62153.31 | CF23: 20000 | CG23: 42153.31 | CH23: 15604.88 | CI23: 20650 | CJ23: 990001 | CK23: 745839.75 | CL23: 240000 | CM23: 505839.75 | CN23: 187258.53 | CO23: 247800 | CP23: 82500.08 | CQ23: 62153.31 | CR23: 20000 | CS23: 42153.31 | CT23: 19208.39 | CU23: 20650 | CV23: 990001 | CW23: 745839.75 | CX23: 240000 | CY23: 505839.75 | CZ23: 230500.65 | DA23: 247800 | DB23: 1.16 | DC23: 0.4394526215 | DD23: PASS | DE23: 1.05 | DF23: 0.4831314865 | DG23: PASS | DH23: 2500000 | DI23: 82500.08 | DJ23: 62153.31 | DK23: 20000 | DL23: 42153.31 | DM23: 15604.88 | DN23: 20650 | DO23: 990001 | DP23: 745839.75 | DQ23: 240000 | DR23: 505839.75 | DS23: 187258.53 | DT23: 247800 | DU23: 82500.08 | DV23: 62153.31 | DW23: 20000 | DX23: 42153.31 | DY23: 19208.39 | DZ23: 20650 | EA23: 990001 | EB23: 745839.75 | EC23: 240000 | ED23: 505839.75 | EE23: 230500.65 | EF23: 247800 | EG23: 1.16 | EH23: 0.4394526215 | EI23: PASS | EJ23: 1.05 | EK23: 0.4831314865 | EL23: PASS | EM23: 2500000 | EN23: Pass | EO23: Y | EP23: 2023-08-09T16:33:29 | ER23: Case 22 | ES23: Neil
A24: 2500000 | B24: 0.0679 | C24: 40 | D24: 5 | E24: Company | F24: Individual (Single) | G24: Individual (Couple) | H24: Individual (Couple) | I24: Individual (Couple) | J24: Individual (Single) | M24: Non-loan Party | N24: Applicant 5 | O24: Applicant 4 | W24: 0 | X24: 0 | Y24: 80000 | Z24: 30000 | AA24: 40000 | AB24: 1 | AC24: 0 | AD24: 0 | AE24: 0 | AF24: 0 | AG24: 0 | AH24: 500000 | AI24: 0 | AJ24: 1 | AK24: 0 | AL24: 0 | AM24: 0 | AN24: 0 | AO24: 75000 | AP24: 0 | AQ24: 0 | AR24: 0 | AS24: 0 | AT24: 0 | AU24: 35000 | AV24: 0 | AW24: 0 | AX24: 0 | AY24: 0 | AZ24: 0 | BA24: 0 | BB24: 0 | BC24: 0 | BD24: 50000 | BE24: 50000 | BF24: 0 | BG24: 0 | BH24: 0 | BI24: 0 | BJ24: 1000000 | BK24: 1000000 | BL24: 0 | BM24: 0 | BN24: 0 | BO24: 0 | BP24: 0 | BQ24: 0 | BR24: 0 | BS24: 0 | BT24: 0 | BU24: 0 | BV24: 0 | BW24: 0 | BX24: 0 | BY24: 20000 | BZ24: 0 | CA24: 50000 | CB24: 15000 | CC24: 0 | CD24: 70000.17 | CE24: 64862.12 | CF24: 20000 | CG24: 44862.12 | CH24: 15604.88 | CI24: 20650 | CJ24: 840002 | CK24: 778345.41 | CL24: 240000 | CM24: 538345.41 | CN24: 187258.53 | CO24: 247800 | CP24: 70000.17 | CQ24: 64862.12 | CR24: 20000 | CS24: 44862.12 | CT24: 19208.39 | CU24: 20650 | CV24: 840002 | CW24: 778345.41 | CX24: 240000 | CY24: 538345.41 | CZ24: 230500.65 | DA24: 247800 | DB24: 1.23 | DC24: 0.5179255939 | DD24: FAIL | DE24: 1.12 | DF24: 0.5694041857 | DG24: FAIL | DH24: 1983378.31 | DI24: 70000.17 | DJ24: 64862.12 | DK24: 20000 | DL24: 44862.12 | DM24: 15604.88 | DN24: 20650 | DO24: 840002 | DP24: 778345.41 | DQ24: 240000 | DR24: 538345.41 | DS24: 187258.53 | DT24: 247800 | DU24: 70000.17 | DV24: 64862.12 | DW24: 20000 | DX24: 44862.12 | DY24: 19208.39 | DZ24: 20650 | EA24: 840002 | EB24: 778345.41 | EC24: 240000 | ED24: 538345.41 | EE24: 230500.65 | EF24: 247800 | EG24: 1.23 | EH24: 0.5179255939 | EI24: FAIL | EJ24: 1.12 | EK24: 0.5694041857 | EL24: FAIL | EM24: 1983378.31 | EN24: Pass | EO24: Y | EP24: 2023-08-09T16:33:30 | ER24: Case 23 | ES24: Neil
A25: 2000000 | B25: 0.0529 | C25: 30 | D25: 3 | E25: Company | F25: Individual (Single) | W25: 0 | X25: 0 | Y25: 0 | Z25: 0 | AA25: 0 | AB25: 0 | AC25: 0 | AD25: 30000 | AE25: 0 | AF25: 0 | AG25: 0 | AH25: 0 | AI25: 0 | AJ25: 0 | AK25: 0 | AL25: 0 | AM25: 0 | AN25: 0 | AO25: 0 | AP25: 0 | AQ25: 0 | AR25: 0 | AS25: 0 | AT25: 0 | AU25: 300000 | AV25: 0 | AW25: 0 | AX25: 0 | AY25: 0 | AZ25: 0 | BA25: 0 | BB25: 0 | BC25: 0 | BD25: 0 | BE25: 0 | BF25: 0 | BG25: 0 | BH25: 0 | BI25: 0 | BJ25: 0 | BK25: 0 | BL25: 0 | BM25: 0 | BN25: 0 | BO25: 0 | BP25: 0 | BQ25: 0 | BR25: 0 | BS25: 0 | BT25: 0 | BU25: 0 | BV25: 0 | BW25: 0 | BX25: 0 | BY25: 0 | BZ25: 0 | CA25: 0 | CB25: 0 | CC25: 0 | CD25: 27500 | CE25: 20500 | CF25: 1016.04 | CG25: 19483.96 | CH25: 11608.05 | CI25: 0 | CJ25: 330000 | CK25: 246000 | CL25: 12192.44 | CM25: 233807.56 | CN25: 139296.62 | CO25: 0 | CP25: 27500 | CQ25: 20500 | CR25: 1016.04 | CS25: 19483.96 | CT25: 14136.59 | CU25: 0 | CV25: 330000 | CW25: 246000 | CX25: 12192.44 | CY25: 233807.56 | CZ25: 169639.12 | DA25: 0 | DB25: 1.67 | DC25: 0.4221109787 | DD25: PASS | DE25: 1.37 | DF25: 0.5140579424 | DG25: PASS | DH25: 2000000 | DI25: 27500 | DJ25: 20500 | DK25: 1016.04 | DL25: 19483.96 | DM25: 11608.05 | DN25: 0 | DO25: 330000 | DP25: 246000 | DQ25: 12192.44 | DR25: 233807.56 | DS25: 139296.62 | DT25: 0 | DU25: 27500 | DV25: 20500 | DW25: 1016.04 | DX25: 19483.96 | DY25: 14136.59 | DZ25: 0 | EA25: 330000 | EB25: 246000 | EC25: 12192.44 | ED25: 233807.56 | EE25: 169639.12 | EF25: 0 | EG25: 1.67 | EH25: 0.4221109787 | EI25: PASS | EJ25: 1.37 | EK25: 0.5140579424 | EL25: PASS | EM25: 2000000 | EN25: Pass | EO25: Y | EP25: 2023-08-09T16:33:31 | ER25: Case 24 | ES25: Neil
A26: 2000000 | B26: 0.0529 | C26: 30 | D26: 3 | E26: Individual (Single) | F26: Individual (Single) | W26: 0 | X26: 1 | Y26: 0 | Z26: 0 | AA26: 0 | AB26: 0 | AC26: 0 | AD26: 30000 | AE26: 0 | AF26: 0 | AG26: 0 | AH26: 0 | AI26: 330000 | AJ26: 0 | AK26: 0 | AL26: 0 | AM26: 0 | AN26: 0 | AO26: 0 | AP26: 0 | AQ26: 0 | AR26: 0 | AS26: 0 | AT26: 0 | AU26: 0 | AV26: 0 | AW26: 0 | AX26: 0 | AY26: 0 | AZ26: 0 | BA26: 0 | BB26: 0 | BC26: 0 | BD26: 0 | BE26: 0 | BF26: 0 | BG26: 0 | BH26: 0 | BI26: 0 | BJ26: 0 | BK26: 0 | BL26: 0 | BM26: 0 | BN26: 0 | BO26: 0 | BP26: 0 | BQ26: 0 | BR26: 0 | BS26: 0 | BT26: 0 | BU26: 0 | BV26: 0 | BW26: 0 | BX26: 0 | BY26: 0 | BZ26: 0 | CA26: 0 | CB26: 0 | CC26: 0 | CD26: 30000.08 | CE26: 20549.51 | CF26: 2687.2 | CG26: 17862.32 | CH26: 11608.05 | CI26: 0 | CJ26: 360001 | CK26: 246594.17 | CL26: 32246.38 | CM26: 214347.79 | CN26: 139296.62 | CO26: 0 | CP26: 30000.08 | CQ26: 20549.51 | CR26: 2687.2 | CS26: 17862.32 | CT26: 14136.59 | CU26: 0 | CV26: 360001 | CW26: 246594.17 | CX26: 32246.38 | CY26: 214347.79 | CZ26: 169639.12 | DA26: 0 | DB26: 1.53 | DC26: 0.386933989 | DD26: PASS | DE26: 1.26 | DF26: 0.4712184716 | DG26: PASS | DH26: 2000000 | DI26: 30000.08 | DJ26: 20549.51 | DK26: 2687.2 | DL26: 17862.32 | DM26: 11608.05 | DN26: 0 | DO26: 360001 | DP26: 246594.17 | DQ26: 32246.38 | DR26: 214347.79 | DS26: 139296.62 | DT26: 0 | DU26: 30000.08 | DV26: 20549.51 | DW26: 2687.2 | DX26: 17862.32 | DY26: 14136.59 | DZ26: 0 | EA26: 360001 | EB26: 246594.17 | EC26: 32246.38 | ED26: 214347.79 | EE26: 169639.12 | EF26: 0 | EG26: 1.53 | EH26: 0.386933989 | EI26: PASS | EJ26: 1.26 | EK26: 0.4712184716 | EL26: PASS | EM26: 2000000 | EN26: Pass | EO26: Y | EP26: 2023-08-09T16:33:32 | ER26: Case 25 | ES26: Neil
A27: 1500000 | B27: 0.06 | C27: 30 | D27: 0 | E27: Individual (Couple) | F27: Individual (Couple) | G27: Individual (Single) | H27: Individual (Single) | K27: Applicant 2 | L27: Applicant 1 | W27: 36000 | X27: 10000 | Y27: 0 | Z27: 0 | AA27: 0 | AB27: 0 | AC27: 35000 | AD27: 0 | AE27: 35000 | AF27: 100000 | AG27: 0 | AH27: 0 | AI27: 0 | AJ27: 0 | AK27: 0 | AL27: 0 | AM27: 0 | AN27: 0 | AO27: 10000 | AP27: 0 | AQ27: 0 | AR27: 0 | AS27: 0 | AT27: 0 | AU27: 0 | AV27: 0 | AW27: 0 | AX27: 0 | AY27: 0 | AZ27: 0 | BA27: 0 | BB27: 0 | BC27: 0 | BD27: 0 | BE27: 0 | BF27: 0 | BG27: 0 | BH27: 0 | BI27: 0 | BJ27: 0 | BK27: 0 | BL27: 0 | BM27: 100 | BN27: 0 | BO27: 0 | BP27: 0 | BQ27: 0 | BR27: 0 | BS27: 0 | BT27: 0 | BU27: 0 | BV27: 0 | BW27: 0 | BX27: 0 | BY27: 0 | BZ27: 0 | CA27: 0 | CB27: 0 | CC27: 0 | CD27: 18833.33 | CE27: 18249.22 | CF27: 4644.87 | CG27: 13604.35 | CH27: 8993.26 | CI27: 0 | CJ27: 226000 | CK27: 218990.67 | CL27: 55738.48 | CM27: 163252.19 | CN27: 107919.09 | CO27: 0 | CP27: 18833.33 | CQ27: 18249.22 | CR27: 4644.87 | CS27: 13604.35 | CT27: 11006.47 | CU27: 0 | CV27: 226000 | CW27: 218990.67 | CX27: 55738.48 | CY27: 163252.19 | CZ27: 132077.62 | DA27: 0 | DB27: 1.51 | DC27: 0.4775181174 | DD27: PASS | DE27: 1.23 | DF27: 0.5844142624 | DG27: FAIL | DH27: 1483173.27 | DI27: 18833.33 | DJ27: 18249.22 | DK27: 4644.87 | DL27: 13604.35 | DM27: 8993.26 | DN27: 0 | DO27: 226000 | DP27: 218990.67 | DQ27: 55738.48 | DR27: 163252.19 | DS27: 107919.09 | DT27: 0 | DU27: 18833.33 | DV27: 18249.22 | DW27: 4644.87 | DX27: 13604.35 | DY27: 11006.47 | DZ27: 0 | EA27: 226000 | EB27: 218990.67 | EC27: 55738.48 | ED27: 163252.19 | EE27: 132077.62 | EF27: 0 | EG27: 1.51 | EH27: 0.4775181174 | EI27: PASS | EJ27: 1.23 | EK27: 0.5844142624 | EL27: FAIL | EM27: 1483173.27 | EN27: Pass | EO27: Y | EP27: 2023-08-09T16:33:34 | ER27: Case 26 | ES27: Neil
A28: 1000000 | B28: 0.06 | C28: 30 | D28: 0 | E28: Individual (Single) | F28: Individual (Couple) | G28: Individual (Couple) | L28: Applicant 3 | M28: Applicant 2 | W28: 0 | X28: 50000 | Y28: 0 | Z28: 0 | AA28: 0 | AB28: 0 | AC28: 0 | AD28: 0 | AE28: 0 | AF28: 0 | AG28: 0 | AH28: 0 | AI28: 25000 | AJ28: 0 | AK28: 0 | AL28: 0 | AM28: 0 | AN28: 0 | AO28: 0 | AP28: 0 | AQ28: 0 | AR28: 0 | AS28: 0 | AT28: 0 | AU28: 0 | AV28: 0 | AW28: 0 | AX28: 0 | AY28: 0 | AZ28: 0 | BA28: 0 | BB28: 60000 | BC28: 60000 | BD28: 0 | BE28: 0 | BF28: 0 | BG28: 0 | BH28: 500000 | BI28: 500000 | BJ28: 0 | BK28: 0 | BL28: 0 | BM28: 100 | BN28: 0 | BO28: 0 | BP28: 0 | BQ28: 0 | BR28: 0 | BS28: 0 | BT28: 0 | BU28: 0 | BV28: 0 | BW28: 0 | BX28: 0 | BY28: 0 | BZ28: 0 | CA28: 0 | CB28: 0 | CC28: 0 | CD28: 14250 | CE28: 11212.37 | CF28: 3591.14 | CG28: 7621.23 | CH28: 5995.51 | CI28: 0 | CJ28: 171000 | CK28: 134548.47 | CL28: 43093.65 | CM28: 91454.82 | CN28: 71946.06 | CO28: 0 | CP28: 14250 | CQ28: 11212.37 | CR28: 3591.14 | CS28: 7621.23 | CT28: 7337.65 | CU28: 0 | CV28: 171000 | CW28: 134548.47 | CX28: 43093.65 | CY28: 91454.82 | CZ28: 88051.75 | DA28: 0 | DB28: 1.27 | DC28: 0.4207372106 | DD28: PASS | DE28: 1.03 | DF28: 0.514922508 | DG28: PASS | DH28: 1000000 | DI28: 14250 | DJ28: 11212.37 | DK28: 3591.14 | DL28: 7621.23 | DM28: 5995.51 | DN28: 0 | DO28: 171000 | DP28: 134548.47 | DQ28: 43093.65 | DR28: 91454.82 | DS28: 71946.06 | DT28: 0 | DU28: 14250 | DV28: 11212.37 | DW28: 3591.14 | DX28: 7621.23 | DY28: 7337.65 | DZ28: 0 | EA28: 171000 | EB28: 134548.47 | EC28: 43093.65 | ED28: 91454.82 | EE28: 88051.75 | EF28: 0 | EG28: 1.27 | EH28: 0.4207372106 | EI28: PASS | EJ28: 1.03 | EK28: 0.514922508 | EL28: PASS | EM28: 1000000 | EN28: Pass | EO28: Y | EP28: 2023-08-09T16:33:35 | ER28: Case 27 | ES28: Neil
A29: 1000000 | B29: 0.05 | C29: 30 | D29: 0 | E29: Individual (Couple) | F29: Individual (Couple) | K29: Applicant 2 | L29: Applicant 1 | W29: 0 | X29: 0 | Y29: 0 | Z29: 0 | AA29: 0 | AB29: 0 | AC29: 0 | AD29: 0 | AE29: 0 | AF29: 0 | AG29: 0 | AH29: 0 | AI29: 0 | AJ29: 0 | AK29: 0 | AL29: 0 | AM29: 0 | AN29: 0 | AO29: 0 | AP29: 0 | AQ29: 0 | AR29: 0 | AS29: 0 | AT29: 0 | AU29: 0 | AV29: 0 | AW29: 0 | AX29: 0 | AY29: 0 | AZ29: 0 | BA29: 200000 | BB29: 0 | BC29: 0 | BD29: 0 | BE29: 0 | BF29: 0 | BG29: 1000000 | BH29: 0 | BI29: 0 | BJ29: 0 | BK29: 0 | BL29: 0 | BM29: 100 | BN29: 0 | BO29: 0 | BP29: 0 | BQ29: 0 | BR29: 0 | BS29: 0 | BT29: 0 | BU29: 0 | BV29: 0 | BW29: 0 | BX29: 0 | BY29: 0 | BZ29: 0 | CA29: 0 | CB29: 0 | CC29: 0 | CD29: 13333.33 | CE29: 9504.69 | CF29: 2687.38 | CG29: 6817.31 | CH29: 5368.22 | CI29: 0 | CJ29: 160000 | CK29: 114056.23 | CL29: 32248.54 | CM29: 81807.69 | CN29: 64418.59 | CO29: 0 | CP29: 13333.33 | CQ29: 9504.69 | CR29: 2687.38 | CS29: 6817.31 | CT29: 6653.03 | CU29: 0 | CV29: 160000 | CW29: 114056.23 | CX29: 32248.54 | CY29: 81807.69 | CZ29: 79836.3 | DA29: 0 | DB29: 1.26 | DC29: 0.4026162173 | DD29: PASS | DE29: 1.02 | DF29: 0.4989768714 | DG29: PASS | DH29: 1000000 | DI29: 13333.33 | DJ29: 9504.69 | DK29: 2687.38 | DL29: 6817.31 | DM29: 5368.22 | DN29: 0 | DO29: 160000 | DP29: 114056.23 | DQ29: 32248.54 | DR29: 81807.69 | DS29: 64418.59 | DT29: 0 | DU29: 13333.33 | DV29: 9504.69 | DW29: 2687.38 | DX29: 6817.31 | DY29: 6653.03 | DZ29: 0 | EA29: 160000 | EB29: 114056.23 | EC29: 32248.54 | ED29: 81807.69 | EE29: 79836.3 | EF29: 0 | EG29: 1.26 | EH29: 0.4026162173 | EI29: PASS | EJ29: 1.02 | EK29: 0.4989768714 | EL29: PASS | EM29: 1000000 | EN29: Pass | EO29: Y | EP29: 2023-08-09T16:33:36 | ER29: Case 28 | ES29: Neil
A30: 1500000 | B30: 0.06 | C30: 30 | D30: 0 | E30: Individual (Couple) | F30: Individual (Couple) | G30: Individual (Single) | K30: Applicant 2 | L30: Applicant 1 | W30: 300000 | X30: 10000 | Y30: 0 | Z30: 0 | AA30: 0 | AB30: 0 | AC30: 35000 | AD30: 0 | AE30: 35000 | AF30: 0 | AG30: 0 | AH30: 0 | AI30: 116000 | AJ30: 0 | AK30: 0 | AL30: 0 | AM30: 0 | AN30: 0 | AO30: 15000 | AP30: 0 | AQ30: 0 | AR30: 0 | AS30: 0 | AT30: 0 | AU30: 0 | AV30: 0 | AW30: 0 | AX30: 0 | AY30: 0 | AZ30: 0 | BA30: 0 | BB30: 0 | BC30: 0 | BD30: 0 | BE30: 0 | BF30: 0 | BG30: 0 | BH30: 0 | BI30: 0 | BJ30: 0 | BK30: 0 | BL30: 0 | BM30: 100 | BN30: 0 | BO30: 0 | BP30: 0 | BQ30: 0 | BR30: 0 | BS30: 0 | BT30: 0 | BU30: 0 | BV30: 0 | BW30: 0 | BX30: 0 | BY30: 0 | BZ30: 0 | CA30: 0 | CB30: 0 | CC30: 0 | CD30: 42583.33 | CE30: 30139.07 | CF30: 4052.37 | CG30: 26086.7 | CH30: 8993.26 | CI30: 0 | CJ30: 511000 | CK30: 361668.89 | CL30: 48628.49 | CM30: 313040.39 | CN30: 107919.09 | CO30: 0 | CP30: 42583.33 | CQ30: 30139.07 | CR30: 4052.37 | CS30: 26086.7 | CT30: 11006.47 | CU30: 0 | CV30: 511000 | CW30: 361668.89 | CX30: 48628.49 | CY30: 313040.39 | CZ30: 132077.62 | DA30: 0 | DB30: 2.9 | DC30: 0.2111919658 | DD30: PASS | DE30: 2.37 | DF30: 0.2584689301 | DG30: PASS | DH30: 1500000 | DI30: 42583.33 | DJ30: 30139.07 | DK30: 4052.37 | DL30: 26086.7 | DM30: 8993.26 | DN30: 0 | DO30: 511000 | DP30: 361668.89 | DQ30: 48628.49 | DR30: 313040.39 | DS30: 107919.09 | DT30: 0 | DU30: 42583.33 | DV30: 30139.07 | DW30: 4052.37 | DX30: 26086.7 | DY30: 11006.47 | DZ30: 0 | EA30: 511000 | EB30: 361668.89 | EC30: 48628.49 | ED30: 313040.39 | EE30: 132077.62 | EF30: 0 | EG30: 2.9 | EH30: 0.2111919658 | EI30: PASS | EJ30: 2.37 | EK30: 0.2584689301 | EL30: PASS | EM30: 1500000 | EN30: Pass | EO30: Y | EP30: 2023-08-09T16:33:37 | ER30: Case 29 | ES30: Neil
A31: 200000 | B31: 0.05 | C31: 30 | D31: 0 | E31: Individual (Single) | Q31: 1 | W31: 107000 | X31: 0 | Y31: 0 | Z31: 0 | AA31: 0 | AB31: 0 | AC31: 25000 | AD31: 0 | AE31: 0 | AF31: 0 | AG31: 0 | AH31: 0 | AI31: 0 | AJ31: 0 | AK31: 0 | AL31: 0 | AM31: 0 | AN31: 0 | AO31: 0 | AP31: 0 | AQ31: 0 | AR31: 0 | AS31: 0 | AT31: 0 | AU31: 0 | AV31: 0 | AW31: 0 | AX31: 0 | AY31: 0 | AZ31: 0 | BA31: 0 | BB31: 0 | BC31: 0 | BD31: 0 | BE31: 0 | BF31: 0 | BG31: 0 | BH31: 0 | BI31: 0 | BJ31: 0 | BK31: 0 | BL31: 0 | BM31: 100 | BN31: 0 | BO31: 0 | BP31: 0 | BQ31: 0 | BR31: 0 | BS31: 0 | BT31: 0 | BU31: 0 | BV31: 0 | BW31: 0 | BX31: 0 | BY31: 0 | BZ31: 0 | CA31: 10000 | CB31: 1000 | CC31: 1000 | CD31: 11000 | CE31: 8690.24 | CF31: 2076.75 | CG31: 6613.49 | CH31: 1073.64 | CI31: 2630 | CJ31: 132000 | CK31: 104282.93 | CL31: 24921.05 | CM31: 79361.88 | CN31: 12883.72 | CO31: 31560 | CP31: 11000 | CQ31: 8690.24 | CR31: 2076.75 | CS31: 6613.49 | CT31: 1330.61 | CU31: 2630 | CV31: 132000 | CW31: 104282.93 | CX31: 24921.05 | CY31: 79361.88 | CZ31: 15967.26 | DA31: 31560 | DB31: 1.78 | DC31: 0.3366948405 | DD31: PASS | DE31: 1.66 | DF31: 0.3600549991 | DG31: PASS | DH31: 200000 | DI31: 11000 | DJ31: 8690.24 | DK31: 2076.75 | DL31: 6613.49 | DM31: 1073.64 | DN31: 2630 | DO31: 132000 | DP31: 104282.93 | DQ31: 24921.05 | DR31: 79361.88 | DS31: 12883.72 | DT31: 31560 | DU31: 11000 | DV31: 8690.24 | DW31: 2076.75 | DX31: 6613.49 | DY31: 1330.61 | DZ31: 2630 | EA31: 132000 | EB31: 104282.93 | EC31: 24921.05 | ED31: 79361.88 | EE31: 15967.26 | EF31: 31560 | EG31: 1.78 | EH31: 0.3366948405 | EI31: PASS | EJ31: 1.66 | EK31: 0.3600549991 | EL31: PASS | EM31: 200000 | EN31: Pass | EO31: Y | EP31: 2023-08-09T16:33:38 | ER31: Case 30 | ES31: Neil
A32: 200000 | B32: 0.05 | C32: 30 | D32: 0 | E32: Individual (Single) | Q32: 1 | W32: 107000 | X32: 0 | Y32: 0 | Z32: 0 | AA32: 0 | AB32: 0 | AC32: 0 | AD32: 0 | AE32: 0 | AF32: 0 | AG32: 0 | AH32: 0 | AI32: 0 | AJ32: 0 | AK32: 0 | AL32: 0 | AM32: 0 | AN32: 0 | AO32: 0 | AP32: 0 | AQ32: 0 | AR32: 0 | AS32: 0 | AT32: 0 | AU32: 0 | AV32: 0 | AW32: 0 | AX32: 0 | AY32: 0 | AZ32: 0 | BA32: 0 | BB32: 0 | BC32: 0 | BD32: 0 | BE32: 0 | BF32: 0 | BG32: 0 | BH32: 0 | BI32: 0 | BJ32: 0 | BK32: 0 | BL32: 0 | BM32: 100 | BN32: 0 | BO32: 0 | BP32: 0 | BQ32: 0 | BR32: 0 | BS32: 0 | BT32: 0 | BU32: 0 | BV32: 0 | BW32: 0 | BX32: 0 | BY32: 0 | BZ32: 0 | CA32: 10000 | CB32: 1000 | CC32: 1000 | CD32: 8916.67 | CE32: 6606.91 | CF32: 1923.35 | CG32: 4683.56 | CH32: 1073.64 | CI32: 2630 | CJ32: 107000 | CK32: 79282.93 | CL32: 23080.26 | CM32: 56202.67 | CN32: 12883.72 | CO32: 31560 | CP32: 8916.67 | CQ32: 6606.91 | CR32: 1923.35 | CS32: 4683.56 | CT32: 1330.61 | CU32: 2630 | CV32: 107000 | CW32: 79282.93 | CX32: 23080.26 | CY32: 56202.67 | CZ32: 15967.26 | DA32: 31560 | DB32: 1.26 | DC32: 0.4153618594 | DD32: PASS | DE32: 1.18 | DF32: 0.4441799989 | DG32: PASS | DH32: 200000 | DI32: 8916.67 | DJ32: 6606.91 | DK32: 1923.35 | DL32: 4683.56 | DM32: 1073.64 | DN32: 2630 | DO32: 107000 | DP32: 79282.93 | DQ32: 23080.26 | DR32: 56202.67 | DS32: 12883.72 | DT32: 31560 | DU32: 8916.67 | DV32: 6606.91 | DW32: 1923.35 | DX32: 4683.56 | DY32: 1330.61 | DZ32: 2630 | EA32: 107000 | EB32: 79282.93 | EC32: 23080.26 | ED32: 56202.67 | EE32: 15967.26 | EF32: 31560 | EG32: 1.26 | EH32: 0.4153618594 | EI32: PASS | EJ32: 1.18 | EK32: 0.4441799989 | EL32: PASS | EM32: 200000 | EN32: Pass | EO32: Y | EP32: 2023-08-09T16:33:39 | ER32: Case 31 | ES32: Neil
A33: 1500000 | B33: 0.06 | C33: 30 | D33: 0 | E33: Individual (Couple) | F33: Individual (Couple) | G33: Individual (Single) | H33: Individual (Single) | K33: Applicant 2 | L33: Applicant 1 | W33: 36000 | X33: 10000 | Y33: 0 | Z33: 0 | AA33: 0 | AB33: 0 | AC33: 35000 | AD33: 0 | AE33: 35000 | AF33: 100000 | AG33: 0 | AH33: 0 | AI33: 0 | AJ33: 0 | AK33: 0 | AL33: 0 | AM33: 0 | AN33: 0 | AO33: 10000 | AP33: 0 | AQ33: 0 | AR33: 0 | AS33: 0 | AT33: 0 | AU33: 0 | AV33: 0 | AW33: 0 | AX33: 0 | AY33: 0 | AZ33: 0 | BA33: 0 | BB33: 0 | BC33: 0 | BD33: 0 | BE33: 0 | BF33: 0 | BG33: 0 | BH33: 0 | BI33: 0 | BJ33: 0 | BK33: 0 | BL33: 0 | BM33: 100 | BN33: 0 | BO33: 0 | BP33: 0 | BQ33: 0 | BR33: 0 | BS33: 0 | BT33: 0 | BU33: 0 | BV33: 0 | BW33: 0 | BX33: 0 | BY33: 0 | BZ33: 0 | CA33: 0 | CB33: 0 | CC33: 0 | CD33: 18833.33 | CE33: 18249.22 | CF33: 4644.87 | CG33: 13604.35 | CH33: 8993.26 | CI33: 0 | CJ33: 226000 | CK33: 218990.67 | CL33: 55738.48 | CM33: 163252.19 | CN33: 107919.09 | CO33: 0 | CP33: 18833.33 | CQ33: 18249.22 | CR33: 4644.87 | CS33: 13604.35 | CT33: 11006.47 | CU33: 0 | CV33: 226000 | CW33: 218990.67 | CX33: 55738.48 | CY33: 163252.19 | CZ33: 132077.62 | DA33: 0 | DB33: 1.51 | DC33: 0.4775181174 | DD33: PASS | DE33: 1.23 | DF33: 0.5844142624 | DG33: FAIL | DH33: 1483173.27 | DI33: 18833.33 | DJ33: 18249.22 | DK33: 4644.87 | DL33: 13604.35 | DM33: 8993.26 | DN33: 0 | DO33: 226000 | DP33: 218990.67 | DQ33: 55738.48 | DR33: 163252.19 | DS33: 107919.09 | DT33: 0 | DU33: 18833.33 | DV33: 18249.22 | DW33: 4644.87 | DX33: 13604.35 | DY33: 11006.47 | DZ33: 0 | EA33: 226000 | EB33: 218990.67 | EC33: 55738.48 | ED33: 163252.19 | EE33: 132077.62 | EF33: 0 | EG33: 1.51 | EH33: 0.4775181174 | EI33: PASS | EJ33: 1.23 | EK33: 0.5844142624 | EL33: FAIL | EM33: 1483173.27 | EN33: Pass | EO33: Y | EP33: 2023-08-09T16:33:40 | ER33: Case 32 | ES33: Neil
A34: 3000000 | B34: 0.07 | C34: 40 | D34: 5 | E34: Company | F34: Individual (Single) | W34: 0 | X34: 0 | Y34: 0 | Z34: 0 | AA34: 0 | AB34: 0 | AC34: 0 | AD34: 225000 | AE34: 0 | AF34: 0 | AG34: 0 | AH34: 0 | AI34: 87500 | AJ34: 87500 | AK34: 0 | AL34: 0 | AM34: 0 | AN34: 0 | AO34: 22500 | AP34: 22500 | AQ34: 0 | AR34: 0 | AS34: 0 | AT34: 0 | AU34: 0 | AV34: 0 | AW34: 0 | AX34: 0 | AY34: 0 | AZ34: 0 | BA34: 0 | BB34: 0 | BC34: 0 | BD34: 0 | BE34: 0 | BF34: 0 | BG34: 0 | BH34: 0 | BI34: 0 | BJ34: 0 | BK34: 0 | BL34: 0 | BM34: 0 | BN34: 0 | BO34: 0 | BP34: 0 | BQ34: 0 | BR34: 0 | BS34: 0 | BT34: 0 | BU34: 0 | BV34: 0 | BW34: 4000 | BX34: 0 | BY34: 0 | BZ34: 0 | CA34: 0 | CB34: 0 | CC34: 0 | CD34: 37083.33 | CE34: 33290.75 | CF34: 5671.16 | CG34: 27619.59 | CH34: 19165.69 | CI34: 0 | CJ34: 445000 | CK34: 399488.98 | CL34: 68053.94 | CM34: 331435.04 | CN34: 229988.29 | CO34: 0 | CP34: 37083.33 | CQ34: 33290.75 | CR34: 5671.16 | CS34: 27619.59 | CT34: 23519.79 | CU34: 0 | CV34: 445000 | CW34: 399488.98 | CX34: 68053.94 | CY34: 331435.04 | CZ34: 282237.47 | DA34: 0 | DB34: 1.44 | DC34: 0.5168276159 | DD34: PASS | DE34: 1.17 | DF34: 0.6342415062 | DG34: FAIL | DH34: 2818265.06 | DI34: 37083.33 | DJ34: 33290.75 | DK34: 5671.16 | DL34: 27619.59 | DM34: 19165.69 | DN34: 0 | DO34: 445000 | DP34: 399488.98 | DQ34: 68053.94 | DR34: 331435.04 | DS34: 229988.29 | DT34: 0 | DU34: 37083.33 | DV34: 33290.75 | DW34: 5671.16 | DX34: 27619.59 | DY34: 23519.79 | DZ34: 0 | EA34: 445000 | EB34: 399488.98 | EC34: 68053.94 | ED34: 331435.04 | EE34: 282237.47 | EF34: 0 | EG34: 1.44 | EH34: 0.5168276159 | EI34: PASS | EJ34: 1.17 | EK34: 0.6342415062 | EL34: FAIL | EM34: 2818265.06 | EN34: =IF(AND(CD34=DI34,CE34=DJ34,CF34=DK34,CG34=DL34,CH34=DM34,CI34=DN34,CJ34=DO34,CK34=DP34,CL34=DQ34,CM34=DR34,CN34=DS34,CO34=DT34,CP34=DU34,CQ34=DV34,CR34=DW34,CS34=DX34,CT34=DY34,CU34=DZ34,CV34=EA34,CW34=EB34,CX34=EC34,CY34=ED34,CZ34=EE34,DA34=EF34,DB34=EG34,DC34=EH34,DD34=EI34,DE34=EJ34,DF34=EK34,DG34=EL34,DH34=EM34),"Pass","Fail") -> Pass | EO34: Y | EP34: 2023-08-09T16:33:42 | ER34: Case 33 | ES34: Neil
A35: 3000000 | B35: 0.07 | C35: 40 | D35: 5 | E35: Company | F35: Individual (Single) | W35: 0 | X35: 0 | Y35: 0 | Z35: 0 | AA35: 0 | AB35: 0 | AC35: 0 | AD35: 200000 | AE35: 0 | AF35: 0 | AG35: 0 | AH35: 0 | AI35: 87500 | AJ35: 87500 | AK35: 0 | AL35: 0 | AM35: 0 | AN35: 0 | AO35: 22500 | AP35: 22500 | AQ35: 0 | AR35: 0 | AS35: 0 | AT35: 0 | AU35: 0 | AV35: 0 | AW35: 0 | AX35: 0 | AY35: 0 | AZ35: 0 | BA35: 0 | BB35: 0 | BC35: 0 | BD35: 0 | BE35: 0 | BF35: 0 | BG35: 0 | BH35: 0 | BI35: 0 | BJ35: 0 | BK35: 0 | BL35: 0 | BM35: 0 | BN35: 0 | BO35: 0 | BP35: 0 | BQ35: 0 | BR35: 0 | BS35: 0 | BT35: 0 | BU35: 0 | BV35: 0 | BW35: 4000 | BX35: 0 | BY35: 0 | BZ35: 0 | CA35: 0 | CB35: 0 | CC35: 0 | CD35: 35000 | CE35: 31207.41 | CF35: 5671.16 | CG35: 25536.25 | CH35: 19165.69 | CI35: 0 | CJ35: 420000 | CK35: 374488.98 | CL35: 68053.94 | CM35: 306435.04 | CN35: 229988.29 | CO35: 0 | CP35: 35000 | CQ35: 31207.41 | CR35: 5671.16 | CS35: 25536.25 | CT35: 23519.79 | CU35: 0 | CV35: 420000 | CW35: 374488.98 | CX35: 68053.94 | CY35: 306435.04 | CZ35: 282237.47 | DA35: 0 | DB35: 1.33 | DC35: 0.5475911645 | DD35: PASS | DE35: 1.08 | DF35: 0.6719939768 | DG35: PASS | DH35: 3000000 | DI35: 35000 | DJ35: 31207.41 | DK35: 5671.16 | DL35: 25536.25 | DM35: 19165.69 | DN35: 0 | DO35: 420000 | DP35: 374488.98 | DQ35: 68053.94 | DR35: 306435.04 | DS35: 229988.29 | DT35: 0 | DU35: 35000 | DV35: 31207.41 | DW35: 5671.16 | DX35: 25536.25 | DY35: 23519.79 | DZ35: 0 | EA35: 420000 | EB35: 374488.98 | EC35: 68053.94 | ED35: 306435.04 | EE35: 282237.47 | EF35: 0 | EG35: 1.33 | EH35: 0.5475911645 | EI35: PASS | EJ35: 1.08 | EK35: 0.6719939768 | EL35: PASS | EM35: 3000000 | EN35: Pass | EO35: Y | EP35: 2023-08-09T16:33:43 | ER35: Case 34 | ES35: Neil
A36: 3000000 | B36: 0.07 | C36: 40 | D36: 5 | E36: Company | F36: Individual (Single) | G36: Individual (Couple) | H36: Individual (Couple) | M36: Applicant 4 | N36: Applicant 3 | S36: 2 | T36: 0 | W36: 0 | X36: 225000 | Y36: 100000 | Z36: 80000 | AA36: 0 | AB36: 0 | AC36: 0 | AD36: 0 | AE36: 0 | AF36: 0 | AG36: 0 | AH36: 0 | AI36: 87500 | AJ36: 87500 | AK36: 37500 | AL36: 12500 | AM36: 0 | AN36: 0 | AO36: 22500 | AP36: 22500 | AQ36: 52500 | AR36: 17500 | AS36: 0 | AT36: 0 | AU36: 0 | AV36: 0 | AW36: 0 | AX36: 0 | AY36: 0 | AZ36: 0 | BA36: 0 | BB36: 0 | BC36: 20000 | BD36: 20000 | BE36: 0 | BF36: 0 | BG36: 0 | BH36: 0 | BI36: 500000 | BJ36: 500000 | BK36: 0 | BL36: 0 | BM36: 0 | BN36: 0 | BO36: 0 | BP36: 0 | BQ36: 0 | BR36: 0 | BS36: 0 | BT36: 0 | BU36: 0 | BV36: 0 | BW36: 15000 | BX36: 0 | BY36: 0 | BZ36: 0 | CA36: 25000 | CB36: 5000 | CC36: 3000 | CD36: 64750 | CE36: 47851.68 | CF36: 21174.28 | CG36: 26677.4 | CH36: 19165.69 | CI36: 10200 | CJ36: 777000 | CK36: 574220.19 | CL36: 254091.37 | CM36: 320128.81 | CN36: 229988.29 | CO36: 122400 | CP36: 64750 | CQ36: 47851.68 | CR36: 21174.28 | CS36: 26677.4 | CT36: 23519.79 | CU36: 10200 | CV36: 777000 | CW36: 574220.19 | CX36: 254091.37 | CY36: 320128.81 | CZ36: 282237.47 | DA36: 122400 | DB36: 0.9 | DC36: 0.4535241816 | DD36: FAIL | DE36: 0.79 | DF36: 0.520768945 | DG36: FAIL | DH36: 2101677 | DI36: 64750 | DJ36: 47851.68 | DK36: 21174.28 | DL36: 26677.4 | DM36: 19165.69 | DN36: 10200 | DO36: 777000 | DP36: 574220.19 | DQ36: 254091.37 | DR36: 320128.81 | DS36: 229988.29 | DT36: 122400 | DU36: 64750 | DV36: 47851.68 | DW36: 21174.28 | DX36: 26677.4 | DY36: 23519.79 | DZ36: 10200 | EA36: 777000 | EB36: 574220.19 | EC36: 254091.37 | ED36: 320128.81 | EE36: 282237.47 | EF36: 122400 | EG36: 0.9 | EH36: 0.4535241816 | EI36: FAIL | EJ36: 0.79 | EK36: 0.520768945 | EL36: FAIL | EM36: 2101677 | EN36: Pass | EO36: Y | EP36: 2023-08-09T16:33:44 | ER36: Case 35 | ES36: Neil
A37: 1500000 | B37: 0.0599 | C37: 30 | D37: 0 | E37: Individual (Single) | F37: Individual (Couple) | G37: Company | H37: Company | L37: Non-loan party | R37: 3 | W37: 0 | X37: 95000 | Y37: 0 | Z37: 25000 | AA37: 0 | AB37: 0 | AC37: 85000 | AD37: 0 | AE37: 0 | AF37: 0 | AG37: 0 | AH37: 0 | AI37: 0 | AJ37: 0 | AK37: 0 | AL37: 0 | AM37: 0 | AN37: 0 | AO37: 0 | AP37: 0 | AQ37: 0 | AR37: 20000 | AS37: 0 | AT37: 0 | AU37: 0 | AV37: 0 | AW37: 0 | AX37: 0 | AY37: 0 | AZ37: 0 | BA37: 0 | BB37: 30000 | BC37: 30000 | BD37: 0 | BE37: 0 | BF37: 0 | BG37: 0 | BH37: 0 | BI37: 1000000 | BJ37: 0 | BK37: 0 | BL37: 0 | BM37: 1 | BN37: 0 | BO37: 0 | BP37: 0 | BQ37: 0 | BR37: 0 | BS37: 0 | BT37: 0 | BU37: 0 | BV37: 0 | BW37: 0 | BX37: 0 | BY37: 0 | BZ37: 0 | CA37: 0 | CB37: 1000 | CC37: 0 | CD37: 22750 | CE37: 18953.01 | CF37: 5520.86 | CG37: 13432.15 | CH37: 8983.62 | CI37: 1250 | CJ37: 273000 | CK37: 227436.13 | CL37: 66250.38 | CM37: 161185.75 | CN37: 107803.4 | CO37: 15000 | CP37: 22750 | CQ37: 18953.01 | CR37: 5520.86 | CS37: 13432.15 | CT37: 10996.01 | CU37: 1250 | CV37: 273000 | CW37: 227436.13 | CX37: 66250.38 | CY37: 161185.75 | CZ37: 131952.16 | DA37: 15000 | DB37: 1.31 | DC37: 0.4498292905 | DD37: PASS | DE37: 1.09 | DF37: 0.5382863126 | DG37: PASS | DH37: 1500000 | DI37: 22750 | DJ37: 18953.01 | DK37: 5520.86 | DL37: 13432.15 | DM37: 8983.62 | DN37: 1250 | DO37: 273000 | DP37: 227436.13 | DQ37: 66250.38 | DR37: 161185.75 | DS37: 107803.4 | DT37: 15000 | DU37: 22750 | DV37: 18953.01 | DW37: 5520.86 | DX37: 13432.15 | DY37: 10996.01 | DZ37: 1250 | EA37: 273000 | EB37: 227436.13 | EC37: 66250.38 | ED37: 161185.75 | EE37: 131952.16 | EF37: 15000 | EG37: 1.31 | EH37: 0.4498292905 | EI37: PASS | EJ37: 1.09 | EK37: 0.5382863126 | EL37: PASS | EM37: 1500000 | EN37: Pass | EO37: Y | EP37: 2023-08-09T16:33:45 | ER37: Case 36 | ES37: Neil
A38: 300000 | B38: 0.0509 | C38: 30 | D38: 0 | E38: Individual (Couple) | F38: Individual (Couple) | K38: Non-loan Party | L38: Non-loan party | Q38: 3 | W38: 72735 | X38: 0 | Y38: 0 | Z38: 0 | AA38: 0 | AB38: 0 | AC38: 0 | AD38: 0 | AE38: 0 | AF38: 0 | AG38: 0 | AH38: 0 | AI38: 0 | AJ38: 0 | AK38: 0 | AL38: 0 | AM38: 0 | AN38: 0 | AO38: 0 | AP38: 0 | AQ38: 0 | AR38: 0 | AS38: 0 | AT38: 0 | AU38: 0 | AV38: 0 | AW38: 0 | AX38: 0 | AY38: 0 | AZ38: 0 | BA38: 0 | BB38: 0 | BC38: 0 | BD38: 0 | BE38: 0 | BF38: 0 | BG38: 0 | BH38: 0 | BI38: 0 | BJ38: 0 | BK38: 0 | BL38: 0 | BM38: 285 | BN38: 291 | BO38: 0 | BP38: 260 | BQ38: 1100 | BR38: 400 | BS38: 700 | BT38: 0 | BU38: 69 | BV38: 48 | BW38: 0 | BX38: 0 | BY38: 0 | BZ38: 1275 | CA38: 32500 | CB38: 1275 | CC38: 0 | CD38: 6061.25 | CE38: 4733.47 | CF38: 5166.3 | CG38: -432.83 | CH38: 1627.01 | CI38: 4103.75 | CJ38: 72735 | CK38: 56801.66 | CL38: 61995.61 | CM38: -5193.95 | CN38: 19524.08 | CO38: 49245 | CP38: 6061.25 | CQ38: 4733.47 | CR38: 5166.3 | CS38: -432.83 | CT38: 2014.07 | CU38: 4103.75 | CV38: 72735 | CW38: 56801.66 | CX38: 61995.61 | CY38: -5193.95 | CZ38: 24168.88 | DA38: 49245 | DB38: -0.07 | DC38: 0.7351217012 | DD38: FAIL | DE38: -0.07 | DF38: 0.7989809706 | DG38: FAIL | DH38: 0 | DI38: 6061.25 | DJ38: 4733.47 | DK38: 5166.3 | DL38: -432.83 | DM38: 1627.01 | DN38: 4103.75 | DO38: 72735 | DP38: 56801.66 | DQ38: 61995.61 | DR38: -5193.95 | DS38: 19524.08 | DT38: 49245 | DU38: 6061.25 | DV38: 4733.47 | DW38: 5166.3 | DX38: -432.83 | DY38: 2014.07 | DZ38: 4103.75 | EA38: 72735 | EB38: 56801.66 | EC38: 61995.61 | ED38: -5193.95 | EE38: 24168.88 | EF38: 49245 | EG38: -0.07 | EH38: 0.7351217012 | EI38: FAIL | EJ38: -0.07 | EK38: 0.7989809706 | EL38: FAIL | EM38: 0 | EN38: Pass | EO38: Y | EP38: 2023-08-09T16:33:46 | ER38: Case 37 | ES38: Neil
A39: 300000 | B39: 0.06 | C39: 40 | D39: 0 | E39: Individual (Single) | F39: Individual (Single) | W39: 0 | X39: 1 | Y39: 0 | Z39: 0 | AA39: 0 | AB39: 0 | AC39: 0 | AD39: 0 | AE39: 0 | AF39: 0 | AG39: 0 | AH39: 0 | AI39: 0 | AJ39: 0 | AK39: 0 | AL39: 0 | AM39: 0 | AN39: 0 | AO39: 0 | AP39: 0 | AQ39: 0 | AR39: 0 | AS39: 0 | AT39: 0 | AU39: 0 | AV39: 0 | AW39: 0 | AX39: 0 | AY39: 0 | AZ39: 0 | BA39: 0 | BB39: 0 | BC39: 0 | BD39: 0 | BE39: 0 | BF39: 0 | BG39: 0 | BH39: 0 | BI39: 0 | BJ39: 0 | BK39: 0 | BL39: 0 | BM39: 1 | BN39: 1 | BO39: 1 | BP39: 1 | BQ39: 1 | BR39: 1 | BS39: 1 | BT39: 1 | BU39: 1 | BV39: 1 | BW39: 1 | BX39: 1 | BY39: 1 | BZ39: 0 | CA39: 0 | CB39: 0 | CC39: 0 | CD39: 0.08 | CE39: 0.07 | CF39: 1392.21 | CG39: -1392.14 | CH39: 1650.64 | CI39: 0 | CJ39: 1 | CK39: 0.88 | CL39: 16706.52 | CM39: -16705.64 | CN39: 19807.69 | CO39: 0 | CP39: 0.08 | CQ39: 0.07 | CR39: 1392.21 | CS39: -1392.14 | CT39: 2085.94 | CU39: 0 | CV39: 1 | CW39: 0.88 | CX39: 16706.52 | CY39: -16705.64 | CZ39: 25031.22 | DA39: 0 | DB39: -0.84 | DC39: 19807.69106 | DD39: FAIL | DE39: -0.66 | DF39: 25031.22083 | DG39: FAIL | DH39: 0 | DI39: 0.08 | DJ39: 0.07 | DK39: 1392.21 | DL39: -1392.14 | DM39: 1650.64 | DN39: 0 | DO39: 1 | DP39: 0.88 | DQ39: 16706.52 | DR39: -16705.64 | DS39: 19807.69 | DT39: 0 | DU39: 0.08 | DV39: 0.07 | DW39: 1392.21 | DX39: -1392.14 | DY39: 2085.94 | DZ39: 0 | EA39: 1 | EB39: 0.88 | EC39: 16706.52 | ED39: -16705.64 | EE39: 25031.22 | EF39: 0 | EG39: -0.84 | EH39: 19807.69106 | EI39: FAIL | EJ39: -0.66 | EK39: 25031.22083 | EL39: FAIL | EM39: 0 | EN39: Pass | EO39: Y | EP39: 2023-08-09T16:33:47 | ER39: Case 38 | ES39: Neil
A40: 100000 | B40: 0.065 | C40: 20 | D40: 0 | E40: Individual (Couple) | K40: Non-loan Party | W40: 25000 | X40: 0 | Y40: 0 | Z40: 0 | AA40: 0 | AB40: 0 | AC40: 0 | AD40: 0 | AE40: 0 | AF40: 0 | AG40: 0 | AH40: 0 | AI40: 0 | AJ40: 0 | AK40: 0 | AL40: 0 | AM40: 0 | AN40: 0 | AO40: 0 | AP40: 0 | AQ40: 0 | AR40: 0 | AS40: 0 | AT40: 0 | AU40: 0 | AV40: 0 | AW40: 0 | AX40: 0 | AY40: 0 | AZ40: 0 | BA40: 0 | BB40: 0 | BC40: 0 | BD40: 0 | BE40: 0 | BF40: 0 | BG40: 0 | BH40: 0 | BI40: 0 | BJ40: 0 | BK40: 0 | BL40: 0 | BM40: 1 | BN40: 1000 | BO40: 1 | BP40: 50 | BQ40: 1 | BR40: 100 | BS40: 200 | BT40: 1 | BU40: 500 | BV40: 1 | BW40: 1 | BX40: 1 | BY40: 1 | BZ40: 0 | CA40: 0 | CB40: 0 | CC40: 0 | CD40: 2083.33 | CE40: 1771.46 | CF40: 1858 | CG40: -86.54 | CH40: 745.57 | CI40: 0 | CJ40: 25000 | CK40: 21257.57 | CL40: 22296 | CM40: -1038.43 | CN40: 8946.88 | CO40: 0 | CP40: 2083.33 | CQ40: 1771.46 | CR40: 1858 | CS40: -86.54 | CT40: 867.82 | CU40: 0 | CV40: 25000 | CW40: 21257.57 | CX40: 22296 | CY40: -1038.43 | CZ40: 10413.88 | DA40: 0 | DB40: -0.11 | DC40: 0.357875105 | DD40: FAIL | DE40: -0.09 | DF40: 0.416555152 | DG40: FAIL | DH40: 0 | DI40: 2083.33 | DJ40: 1771.46 | DK40: 1858 | DL40: -86.54 | DM40: 745.57 | DN40: 0 | DO40: 25000 | DP40: 21257.57 | DQ40: 22296 | DR40: -1038.43 | DS40: 8946.88 | DT40: 0 | DU40: 2083.33 | DV40: 1771.46 | DW40: 1858 | DX40: -86.54 | DY40: 867.82 | DZ40: 0 | EA40: 25000 | EB40: 21257.57 | EC40: 22296 | ED40: -1038.43 | EE40: 10413.88 | EF40: 0 | EG40: -0.11 | EH40: 0.357875105 | EI40: FAIL | EJ40: -0.09 | EK40: 0.416555152 | EL40: FAIL | EM40: 0 | EN40: Pass | EO40: Y | EP40: 2023-08-09T16:33:48 | ER40: Case 39 | ES40: Neil
A41: 100000 | B41: 0.065 | C41: 20 | D41: 0 | E41: Individual (Couple) | K41: Non-loan Party | W41: 50000 | X41: 0 | Y41: 0 | Z41: 0 | AA41: 0 | AB41: 0 | AC41: 0 | AD41: 0 | AE41: 0 | AF41: 0 | AG41: 0 | AH41: 0 | AI41: 0 | AJ41: 0 | AK41: 0 | AL41: 0 | AM41: 0 | AN41: 0 | AO41: 0 | AP41: 0 | AQ41: 0 | AR41: 0 | AS41: 0 | AT41: 0 | AU41: 0 | AV41: 0 | AW41: 0 | AX41: 0 | AY41: 0 | AZ41: 0 | BA41: 0 | BB41: 0 | BC41: 0 | BD41: 0 | BE41: 0 | BF41: 0 | BG41: 0 | BH41: 0 | BI41: 0 | BJ41: 0 | BK41: 0 | BL41: 0 | BM41: 1 | BN41: 1000 | BO41: 1 | BP41: 50 | BQ41: 1 | BR41: 100 | BS41: 200 | BT41: 1 | BU41: 500 | BV41: 1 | BW41: 1 | BX41: 1 | BY41: 1 | BZ41: 0 | CA41: 0 | CB41: 0 | CC41: 0 | CD41: 4166.67 | CE41: 3440.43 | CF41: 2097.31 | CG41: 1343.12 | CH41: 745.57 | CI41: 0 | CJ41: 50000 | CK41: 41285.2 | CL41: 25167.73 | CM41: 16117.46 | CN41: 8946.88 | CO41: 0 | CP41: 4166.67 | CQ41: 3440.43 | CR41: 2097.31 | CS41: 1343.12 | CT41: 867.82 | CU41: 0 | CV41: 50000 | CW41: 41285.2 | CX41: 25167.73 | CY41: 16117.46 | CZ41: 10413.88 | DA41: 0 | DB41: 1.8 | DC41: 0.1789375525 | DD41: PASS | DE41: 1.54 | DF41: 0.208277576 | DG41: PASS | DH41: 100000 | DI41: 4166.67 | DJ41: 3440.43 | DK41: 2097.31 | DL41: 1343.12 | DM41: 745.57 | DN41: 0 | DO41: 50000 | DP41: 41285.2 | DQ41: 25167.73 | DR41: 16117.46 | DS41: 8946.88 | DT41: 0 | DU41: 4166.67 | DV41: 3440.43 | DW41: 2097.31 | DX41: 1343.12 | DY41: 867.82 | DZ41: 0 | EA41: 50000 | EB41: 41285.2 | EC41: 25167.73 | ED41: 16117.46 | EE41: 10413.88 | EF41: 0 | EG41: 1.8 | EH41: 0.1789375525 | EI41: PASS | EJ41: 1.54 | EK41: 0.208277576 | EL41: PASS | EM41: 100000 | EN41: Pass | EO41: Y | EP41: 2023-08-09T16:33:49 | ER41: Case 40 | ES41: Neil
A42: 300000 | B42: 0.065 | C42: 20 | D42: 0 | E42: Individual (Couple) | F42: Individual (Couple) | K42: Applicant 2 | L42: Applicant 1 | W42: 85000 | X42: 45000 | Y42: 0 | Z42: 0 | AA42: 0 | AB42: 0 | AC42: 0 | AD42: 0 | AE42: 0 | AF42: 0 | AG42: 0 | AH42: 0 | AI42: 0 | AJ42: 0 | AK42: 0 | AL42: 0 | AM42: 0 | AN42: 0 | AO42: 0 | AP42: 0 | AQ42: 0 | AR42: 0 | AS42: 0 | AT42: 0 | AU42: 0 | AV42: 0 | AW42: 0 | AX42: 0 | AY42: 0 | AZ42: 0 | BA42: 0 | BB42: 0 | BC42: 0 | BD42: 0 | BE42: 0 | BF42: 0 | BG42: 0 | BH42: 0 | BI42: 0 | BJ42: 0 | BK42: 0 | BL42: 0 | BM42: 1 | BN42: 1000 | BO42: 500 | BP42: 50 | BQ42: 1 | BR42: 100 | BS42: 200 | BT42: 500 | BU42: 500 | BV42: 1 | BW42: 1 | BX42: 1 | BY42: 1 | BZ42: 0 | CA42: 0 | CB42: 0 | CC42: 0 | CD42: 10833.33 | CE42: 8527.36 | CF42: 2856 | CG42: 5671.36 | CH42: 2236.72 | CI42: 0 | CJ42: 130000 | CK42: 102328.3 | CL42: 34272 | CM42: 68056.3 | CN42: 26840.63 | CO42: 0 | CP42: 10833.33 | CQ42: 8527.36 | CR42: 2856 | CS42: 5671.36 | CT42: 2603.47 | CU42: 0 | CV42: 130000 | CW42: 102328.3 | CX42: 34272 | CY42: 68056.3 | CZ42: 31241.64 | DA42: 0 | DB42: 2.53 | DC42: 0.2064664068 | DD42: PASS | DE42: 2.17 | DF42: 0.24032028 | DG42: PASS | DH42: 300000 | DI42: 10833.33 | DJ42: 8527.36 | DK42: 2856 | DL42: 5671.36 | DM42: 2236.72 | DN42: 0 | DO42: 130000 | DP42: 102328.3 | DQ42: 34272 | DR42: 68056.3 | DS42: 26840.63 | DT42: 0 | DU42: 10833.33 | DV42: 8527.36 | DW42: 2856 | DX42: 5671.36 | DY42: 2603.47 | DZ42: 0 | EA42: 130000 | EB42: 102328.3 | EC42: 34272 | ED42: 68056.3 | EE42: 31241.64 | EF42: 0 | EG42: 2.53 | EH42: 0.2064664068 | EI42: PASS | EJ42: 2.17 | EK42: 0.24032028 | EL42: PASS | EM42: 300000 | EN42: Pass | EO42: Y | EP42: 2023-08-09T16:33:51 | ER42: Case 41 | ES42: Neil
A43: 300000 | B43: 0.065 | C43: 20 | D43: 0 | E43: Individual (Couple) | F43: Individual (Couple) | K43: Applicant 2 | L43: Applicant 1 | W43: 85000 | X43: 45000 | Y43: 0 | Z43: 0 | AA43: 0 | AB43: 0 | AC43: 0 | AD43: 0 | AE43: 0 | AF43: 0 | AG43: 0 | AH43: 0 | AI43: 0 | AJ43: 0 | AK43: 0 | AL43: 0 | AM43: 0 | AN43: 0 | AO43: 0 | AP43: 0 | AQ43: 0 | AR43: 0 | AS43: 0 | AT43: 0 | AU43: 0 | AV43: 0 | AW43: 0 | AX43: 0 | AY43: 0 | AZ43: 0 | BA43: 0 | BB43: 0 | BC43: 0 | BD43: 0 | BE43: 0 | BF43: 0 | BG43: 0 | BH43: 0 | BI43: 0 | BJ43: 0 | BK43: 0 | BL43: 0 | BM43: 1 | BN43: 1000 | BO43: 500 | BP43: 50 | BQ43: 1 | BR43: 100 | BS43: 200 | BT43: 500 | BU43: 500 | BV43: 200 | BW43: 1 | BX43: 400 | BY43: 1 | BZ43: 0 | CA43: 0 | CB43: 1800 | CC43: 0 | CD43: 10833.33 | CE43: 8527.36 | CF43: 3454 | CG43: 5073.36 | CH43: 2236.72 | CI43: 2250 | CJ43: 130000 | CK43: 102328.3 | CL43: 41448 | CM43: 60880.3 | CN43: 26840.63 | CO43: 27000 | CP43: 10833.33 | CQ43: 8527.36 | CR43: 3454 | CS43: 5073.36 | CT43: 2603.47 | CU43: 2250 | CV43: 130000 | CW43: 102328.3 | CX43: 41448 | CY43: 60880.3 | CZ43: 31241.64 | DA43: 27000 | DB43: 1.13 | DC43: 0.4141587145 | DD43: PASS | DE43: 1.04 | DF43: 0.4480125877 | DG43: PASS | DH43: 300000 | DI43: 10833.33 | DJ43: 8527.36 | DK43: 3454 | DL43: 5073.36 | DM43: 2236.72 | DN43: 2250 | DO43: 130000 | DP43: 102328.3 | DQ43: 41448 | DR43: 60880.3 | DS43: 26840.63 | DT43: 27000 | DU43: 10833.33 | DV43: 8527.36 | DW43: 3454 | DX43: 5073.36 | DY43: 2603.47 | DZ43: 2250 | EA43: 130000 | EB43: 102328.3 | EC43: 41448 | ED43: 60880.3 | EE43: 31241.64 | EF43: 27000 | EG43: 1.13 | EH43: 0.4141587145 | EI43: PASS | EJ43: 1.04 | EK43: 0.4480125877 | EL43: PASS | EM43: 300000 | EN43: Pass | EO43: Y | EP43: 2023-08-09T16:33:52 | ER43: Case 42 | ES43: Neil
A44: 700000 | B44: 0.065 | C44: 30 | D44: 0 | E44: Individual (Couple) | F44: Individual (Couple) | K44: Applicant 2 | L44: Applicant 1 | W44: 100000 | X44: 45000 | Y44: 0 | Z44: 0 | AA44: 0 | AB44: 0 | AC44: 0 | AD44: 0 | AE44: 0 | AF44: 0 | AG44: 0 | AH44: 0 | AI44: 0 | AJ44: 0 | AK44: 0 | AL44: 0 | AM44: 0 | AN44: 0 | AO44: 0 | AP44: 0 | AQ44: 0 | AR44: 0 | AS44: 0 | AT44: 0 | AU44: 0 | AV44: 0 | AW44: 0 | AX44: 0 | AY44: 0 | AZ44: 0 | BA44: 0 | BB44: 0 | BC44: 0 | BD44: 0 | BE44: 0 | BF44: 0 | BG44: 0 | BH44: 0 | BI44: 0 | BJ44: 0 | BK44: 0 | BL44: 0 | BM44: 1 | BN44: 1 | BO44: 1 | BP44: 50 | BQ44: 1 | BR44: 100 | BS44: 200 | BT44: 500 | BU44: 500 | BV44: 200 | BW44: 1 | BX44: 400 | BY44: 1 | BZ44: 0 | CA44: 0 | CB44: 1800 | CC44: 0 | CD44: 12083.33 | CE44: 9347.48 | CF44: 3176.1 | CG44: 6171.38 | CH44: 4424.48 | CI44: 2250 | CJ44: 145000 | CK44: 112169.8 | CL44: 38113.2 | CM44: 74056.59 | CN44: 53093.71 | CO44: 27000 | CP44: 12083.33 | CQ44: 9347.48 | CR44: 3176.1 | CS44: 6171.38 | CT44: 5382.39 | CU44: 2250 | CV44: 145000 | CW44: 112169.8 | CX44: 38113.2 | CY44: 74056.59 | CZ44: 64588.73 | DA44: 27000 | DB44: 0.92 | DC44: 0.5523704412 | DD44: FAIL | DE44: 0.8 | DF44: 0.6316464319 | DG44: FAIL | DH44: 509940.34 | DI44: 12083.33 | DJ44: 9347.48 | DK44: 3176.1 | DL44: 6171.38 | DM44: 4424.48 | DN44: 2250 | DO44: 145000 | DP44: 112169.8 | DQ44: 38113.2 | DR44: 74056.59 | DS44: 53093.71 | DT44: 27000 | DU44: 12083.33 | DV44: 9347.48 | DW44: 3176.1 | DX44: 6171.38 | DY44: 5382.39 | DZ44: 2250 | EA44: 145000 | EB44: 112169.8 | EC44: 38113.2 | ED44: 74056.59 | EE44: 64588.73 | EF44: 27000 | EG44: 0.92 | EH44: 0.5523704412 | EI44: FAIL | EJ44: 0.8 | EK44: 0.6316464319 | EL44: FAIL | EM44: 509940.34 | EN44: Pass | EO44: Y | EP44: 2023-08-09T16:33:53 | ER44: Case 43 | ES44: Neil
A45: 160000 | B45: 0.065 | C45: 30 | D45: 0 | E45: Individual (Couple) | F45: Individual (Couple) | K45: Applicant 2 | L45: Applicant 1 | W45: 56000 | X45: 35000 | Y45: 0 | Z45: 0 | AA45: 0 | AB45: 0 | AC45: 0 | AD45: 0 | AE45: 0 | AF45: 0 | AG45: 0 | AH45: 0 | AI45: 0 | AJ45: 0 | AK45: 0 | AL45: 0 | AM45: 0 | AN45: 0 | AO45: 0 | AP45: 0 | AQ45: 0 | AR45: 0 | AS45: 0 | AT45: 0 | AU45: 0 | AV45: 0 | AW45: 0 | AX45: 0 | AY45: 0 | AZ45: 0 | BA45: 0 | BB45: 0 | BC45: 0 | BD45: 0 | BE45: 0 | BF45: 0 | BG45: 0 | BH45: 0 | BI45: 0 | BJ45: 0 | BK45: 0 | BL45: 0 | BM45: 600 | BN45: 1 | BO45: 50 | BP45: 300 | BQ45: 41 | BR45: 100 | BS45: 200 | BT45: 480 | BU45: 500 | BV45: 120 | BW45: 1 | BX45: 350 | BY45: 1 | BZ45: 0 | CA45: 0 | CB45: 1800 | CC45: 0 | CD45: 7583.33 | CE45: 6230.86 | CF45: 2795.6 | CG45: 3435.27 | CH45: 1011.31 | CI45: 2250 | CJ45: 91000 | CK45: 74770.37 | CL45: 33547.17 | CM45: 41223.2 | CN45: 12135.71 | CO45: 27000 | CP45: 7583.33 | CQ45: 6230.86 | CR45: 2795.6 | CS45: 3435.27 | CT45: 1230.26 | CU45: 2250 | CV45: 91000 | CW45: 74770.37 | CX45: 33547.17 | CY45: 41223.2 | CZ45: 14763.14 | DA45: 27000 | DB45: 1.05 | DC45: 0.4300627039 | DD45: PASS | DE45: 0.98 | DF45: 0.4589355921 | DG45: FAIL | DH45: 154113.57 | DI45: 7583.33 | DJ45: 6230.86 | DK45: 2795.6 | DL45: 3435.27 | DM45: 1011.31 | DN45: 2250 | DO45: 91000 | DP45: 74770.37 | DQ45: 33547.17 | DR45: 41223.2 | DS45: 12135.71 | DT45: 27000 | DU45: 7583.33 | DV45: 6230.86 | DW45: 2795.6 | DX45: 3435.27 | DY45: 1230.26 | DZ45: 2250 | EA45: 91000 | EB45: 74770.37 | EC45: 33547.17 | ED45: 41223.2 | EE45: 14763.14 | EF45: 27000 | EG45: 1.05 | EH45: 0.4300627039 | EI45: PASS | EJ45: 0.98 | EK45: 0.4589355921 | EL45: FAIL | EM45: 154113.57 | EN45: Pass | EO45: Y | EP45: 2023-08-09T16:33:54 | ER45: Case 44 | ES45: Neil
A46: 160000 | B46: 0.065 | C46: 30 | D46: 0 | E46: Individual (Couple) | F46: Individual (Couple) | K46: Applicant 2 | L46: Applicant 1 | W46: 58000 | X46: 35000 | Y46: 0 | Z46: 0 | AA46: 0 | AB46: 0 | AC46: 0 | AD46: 0 | AE46: 0 | AF46: 0 | AG46: 0 | AH46: 0 | AI46: 0 | AJ46: 0 | AK46: 0 | AL46: 0 | AM46: 0 | AN46: 0 | AO46: 0 | AP46: 0 | AQ46: 0 | AR46: 0 | AS46: 0 | AT46: 0 | AU46: 0 | AV46: 0 | AW46: 0 | AX46: 0 | AY46: 0 | AZ46: 0 | BA46: 0 | BB46: 0 | BC46: 0 | BD46: 0 | BE46: 0 | BF46: 0 | BG46: 0 | BH46: 0 | BI46: 0 | BJ46: 0 | BK46: 0 | BL46: 0 | BM46: 600 | BN46: 1 | BO46: 300 | BP46: 50 | BQ46: 1 | BR46: 100 | BS46: 200 | BT46: 480 | BU46: 500 | BV46: 200 | BW46: 1 | BX46: 400 | BY46: 1 | BZ46: 0 | CA46: 0 | CB46: 1800 | CC46: 0 | CD46: 7750 | CE46: 6345.21 | CF46: 2925.6 | CG46: 3419.62 | CH46: 1011.31 | CI46: 2250 | CJ46: 93000 | CK46: 76142.57 | CL46: 35107.17 | CM46: 41035.4 | CN46: 12135.71 | CO46: 27000 | CP46: 7750 | CQ46: 6345.21 | CR46: 2925.6 | CS46: 3419.62 | CT46: 1230.26 | CU46: 2250 | CV46: 93000 | CW46: 76142.57 | CX46: 35107.17 | CY46: 41035.4 | CZ46: 14763.14 | DA46: 27000 | DB46: 1.04 | DC46: 0.4208140436 | DD46: PASS | DE46: 0.98 | DF46: 0.4490660095 | DG46: FAIL | DH46: 152032.71 | DI46: 7750 | DJ46: 6345.21 | DK46: 2925.6 | DL46: 3419.62 | DM46: 1011.31 | DN46: 2250 | DO46: 93000 | DP46: 76142.57 | DQ46: 35107.17 | DR46: 41035.4 | DS46: 12135.71 | DT46: 27000 | DU46: 7750 | DV46: 6345.21 | DW46: 2925.6 | DX46: 3419.62 | DY46: 1230.26 | DZ46: 2250 | EA46: 93000 | EB46: 76142.57 | EC46: 35107.17 | ED46: 41035.4 | EE46: 14763.14 | EF46: 27000 | EG46: 1.04 | EH46: 0.4208140436 | EI46: PASS | EJ46: 0.98 | EK46: 0.4490660095 | EL46: FAIL | EM46: 152032.71 | EN46: Pass | EO46: Y | EP46: 2023-08-09T16:33:55 | ER46: Case 45 | ES46: Neil
A47: 100000 | B47: 0.065 | C47: 20 | D47: 0 | E47: Individual (Couple) | K47: Non-loan Party | W47: 41000 | X47: 0 | Y47: 0 | Z47: 0 | AA47: 0 | AB47: 0 | AC47: 0 | AD47: 0 | AE47: 0 | AF47: 0 | AG47: 0 | AH47: 0 | AI47: 0 | AJ47: 0 | AK47: 0 | AL47: 0 | AM47: 0 | AN47: 0 | AO47: 0 | AP47: 0 | AQ47: 0 | AR47: 0 | AS47: 0 | AT47: 0 | AU47: 0 | AV47: 0 | AW47: 0 | AX47: 0 | AY47: 0 | AZ47: 0 | BA47: 0 | BB47: 0 | BC47: 0 | BD47: 0 | BE47: 0 | BF47: 0 | BG47: 0 | BH47: 0 | BI47: 0 | BJ47: 0 | BK47: 0 | BL47: 0 | BM47: 1 | BN47: 1000 | BO47: 1 | BP47: 50 | BQ47: 1 | BR47: 100 | BS47: 200 | BT47: 1 | BU47: 500 | BV47: 1 | BW47: 1 | BX47: 1 | BY47: 1 | BZ47: 0 | CA47: 0 | CB47: 0 | CC47: 0 | CD47: 3416.67 | CE47: 2852.93 | CF47: 1970.35 | CG47: 882.58 | CH47: 745.57 | CI47: 0 | CJ47: 41000 | CK47: 34235.17 | CL47: 23644.22 | CM47: 10590.95 | CN47: 8946.88 | CO47: 0 | CP47: 3416.67 | CQ47: 2852.93 | CR47: 1970.35 | CS47: 882.58 | CT47: 867.82 | CU47: 0 | CV47: 41000 | CW47: 34235.17 | CX47: 23644.22 | CY47: 10590.95 | CZ47: 10413.88 | DA47: 0 | DB47: 1.18 | DC47: 0.2182165275 | DD47: PASS | DE47: 1.01 | DF47: 0.2539970439 | DG47: PASS | DH47: 100000 | DI47: 3416.67 | DJ47: 2852.93 | DK47: 1970.35 | DL47: 882.58 | DM47: 745.57 | DN47: 0 | DO47: 41000 | DP47: 34235.17 | DQ47: 23644.22 | DR47: 10590.95 | DS47: 8946.88 | DT47: 0 | DU47: 3416.67 | DV47: 2852.93 | DW47: 1970.35 | DX47: 882.58 | DY47: 867.82 | DZ47: 0 | EA47: 41000 | EB47: 34235.17 | EC47: 23644.22 | ED47: 10590.95 | EE47: 10413.88 | EF47: 0 | EG47: 1.18 | EH47: 0.2182165275 | EI47: PASS | EJ47: 1.01 | EK47: 0.2539970439 | EL47: PASS | EM47: 100000 | EN47: Pass | EO47: Y | EP47: 2023-08-09T16:33:56 | ER47: Case 46 | ES47: Neil
A48: 145000 | B48: 0.065 | C48: 20 | D48: 0 | E48: Individual (Couple) | K48: Non-loan Party | W48: 51000 | X48: 0 | Y48: 0 | Z48: 0 | AA48: 0 | AB48: 0 | AC48: 0 | AD48: 0 | AE48: 0 | AF48: 0 | AG48: 0 | AH48: 0 | AI48: 0 | AJ48: 0 | AK48: 0 | AL48: 0 | AM48: 0 | AN48: 0 | AO48: 0 | AP48: 0 | AQ48: 0 | AR48: 0 | AS48: 0 | AT48: 0 | AU48: 0 | AV48: 0 | AW48: 0 | AX48: 0 | AY48: 0 | AZ48: 0 | BA48: 0 | BB48: 0 | BC48: 0 | BD48: 0 | BE48: 0 | BF48: 0 | BG48: 0 | BH48: 0 | BI48: 0 | BJ48: 0 | BK48: 0 | BL48: 0 | BM48: 1 | BN48: 1000 | BO48: 1 | BP48: 250 | BQ48: 1 | BR48: 100 | BS48: 200 | BT48: 1 | BU48: 500 | BV48: 1 | BW48: 200 | BX48: 1 | BY48: 1 | BZ48: 0 | CA48: 0 | CB48: 0 | CC48: 0 | CD48: 4250 | CE48: 3497.61 | CF48: 2296.31 | CG48: 1201.3 | CH48: 1081.08 | CI48: 0 | CJ48: 51000 | CK48: 41971.3 | CL48: 27555.73 | CM48: 14415.56 | CN48: 12972.97 | CO48: 0 | CP48: 4250 | CQ48: 3497.61 | CR48: 2296.31 | CS48: 1201.3 | CT48: 1258.34 | CU48: 0 | CV48: 51000 | CW48: 41971.3 | CX48: 27555.73 | CY48: 14415.56 | CZ48: 15100.12 | DA48: 0 | DB48: 1.11 | DC48: 0.2543720109 | DD48: PASS | DE48: 0.95 | DF48: 0.2960808679 | DG48: FAIL | DH48: 138392.24 | DI48: 4250 | DJ48: 3497.61 | DK48: 2296.31 | DL48: 1201.3 | DM48: 1081.08 | DN48: 0 | DO48: 51000 | DP48: 41971.3 | DQ48: 27555.73 | DR48: 14415.56 | DS48: 12972.97 | DT48: 0 | DU48: 4250 | DV48: 3497.61 | DW48: 2296.31 | DX48: 1201.3 | DY48: 1258.34 | DZ48: 0 | EA48: 51000 | EB48: 41971.3 | EC48: 27555.73 | ED48: 14415.56 | EE48: 15100.12 | EF48: 0 | EG48: 1.11 | EH48: 0.2543720109 | EI48: PASS | EJ48: 0.95 | EK48: 0.2960808679 | EL48: FAIL | EM48: 138392.24 | EN48: Pass | EO48: Y | EP48: 2023-08-09T16:33:57 | ER48: Case 47 | ES48: Neil
A49: 300000 | B49: 0.0544 | C49: 30 | D49: 0 | E49: Individual (Single) | W49: 80000 | X49: 0 | Y49: 0 | Z49: 0 | AA49: 0 | AB49: 0 | AC49: 0 | AD49: 0 | AE49: 0 | AF49: 0 | AG49: 0 | AH49: 0 | AI49: 0 | AJ49: 0 | AK49: 0 | AL49: 0 | AM49: 0 | AN49: 0 | AO49: 0 | AP49: 0 | AQ49: 0 | AR49: 0 | AS49: 0 | AT49: 0 | AU49: 0 | AV49: 0 | AW49: 0 | AX49: 0 | AY49: 0 | AZ49: 0 | BA49: 0 | BB49: 0 | BC49: 0 | BD49: 0 | BE49: 0 | BF49: 0 | BG49: 0 | BH49: 0 | BI49: 0 | BJ49: 0 | BK49: 0 | BL49: 0 | BM49: 1 | BN49: 1 | BO49: 1 | BP49: 1 | BQ49: 100 | BR49: 50 | BS49: 60 | BT49: 50 | BU49: 20 | BV49: 45 | BW49: 60 | BX49: 1 | BY49: 1 | BZ49: 0 | CA49: 0 | CB49: 0 | CC49: 0 | CD49: 6666.67 | CE49: 5130.69 | CF49: 1335.79 | CG49: 3794.9 | CH49: 1692.09 | CI49: 0 | CJ49: 80000 | CK49: 61568.23 | CL49: 16029.46 | CM49: 45538.76 | CN49: 20305.09 | CO49: 0 | CP49: 6666.67 | CQ49: 5130.69 | CR49: 1335.79 | CS49: 3794.9 | CT49: 2085.33 | CU49: 0 | CV49: 80000 | CW49: 61568.23 | CX49: 16029.46 | CY49: 45538.76 | CZ49: 25023.98 | DA49: 0 | DB49: 2.24 | DC49: 0.2538136098 | DD49: PASS | DE49: 1.81 | DF49: 0.3127997703 | DG49: PASS | DH49: 300000 | DI49: 6666.67 | DJ49: 5130.69 | DK49: 1335.79 | DL49: 3794.9 | DM49: 1692.09 | DN49: 0 | DO49: 80000 | DP49: 61568.23 | DQ49: 16029.46 | DR49: 45538.76 | DS49: 20305.09 | DT49: 0 | DU49: 6666.67 | DV49: 5130.69 | DW49: 1335.79 | DX49: 3794.9 | DY49: 2085.33 | DZ49: 0 | EA49: 80000 | EB49: 61568.23 | EC49: 16029.46 | ED49: 45538.76 | EE49: 25023.98 | EF49: 0 | EG49: 2.24 | EH49: 0.2538136098 | EI49: PASS | EJ49: 1.81 | EK49: 0.3127997703 | EL49: PASS | EM49: 300000 | EN49: Pass | EO49: Y | EP49: 2023-08-09T16:33:58 | ER49: Case 48 | ES49: Neil
A50: 300000 | B50: 0.0544 | C50: 30 | D50: 0 | E50: Individual (Single) | W50: 60000 | X50: 0 | Y50: 0 | Z50: 0 | AA50: 0 | AB50: 0 | AC50: 0 | AD50: 0 | AE50: 0 | AF50: 0 | AG50: 0 | AH50: 0 | AI50: 0 | AJ50: 0 | AK50: 0 | AL50: 0 | AM50: 0 | AN50: 0 | AO50: 0 | AP50: 0 | AQ50: 0 | AR50: 0 | AS50: 0 | AT50: 0 | AU50: 0 | AV50: 0 | AW50: 0 | AX50: 0 | AY50: 0 | AZ50: 0 | BA50: 0 | BB50: 0 | BC50: 0 | BD50: 0 | BE50: 0 | BF50: 0 | BG50: 0 | BH50: 0 | BI50: 0 | BJ50: 0 | BK50: 0 | BL50: 0 | BM50: 1 | BN50: 1 | BO50: 1 | BP50: 1 | BQ50: 100 | BR50: 50 | BS50: 60 | BT50: 50 | BU50: 20 | BV50: 45 | BW50: 60 | BX50: 1 | BY50: 1 | BZ50: 0 | CA50: 0 | CB50: 0 | CC50: 0 | CD50: 5000 | CE50: 4012.18 | CF50: 1292.8 | CG50: 2719.39 | CH50: 1692.09 | CI50: 0 | CJ50: 60000 | CK50: 48146.2 | CL50: 15513.55 | CM50: 32632.65 | CN50: 20305.09 | CO50: 0 | CP50: 5000 | CQ50: 4012.18 | CR50: 1292.8 | CS50: 2719.39 | CT50: 2085.33 | CU50: 0 | CV50: 60000 | CW50: 48146.2 | CX50: 15513.55 | CY50: 32632.65 | CZ50: 25023.98 | DA50: 0 | DB50: 1.6 | DC50: 0.3384181464 | DD50: PASS | DE50: 1.3 | DF50: 0.4170663604 | DG50: PASS | DH50: 300000 | DI50: 5000 | DJ50: 4012.18 | DK50: 1292.8 | DL50: 2719.39 | DM50: 1692.09 | DN50: 0 | DO50: 60000 | DP50: 48146.2 | DQ50: 15513.55 | DR50: 32632.65 | DS50: 20305.09 | DT50: 0 | DU50: 5000 | DV50: 4012.18 | DW50: 1292.8 | DX50: 2719.39 | DY50: 2085.33 | DZ50: 0 | EA50: 60000 | EB50: 48146.2 | EC50: 15513.55 | ED50: 32632.65 | EE50: 25023.98 | EF50: 0 | EG50: 1.6 | EH50: 0.3384181464 | EI50: PASS | EJ50: 1.3 | EK50: 0.4170663604 | EL50: PASS | EM50: 300000 | EN50: Pass | EO50: Y | EP50: 2023-08-09T16:33:59 | ER50: Case 49 | ES50: Neil
A51: 300000 | B51: 0.054 | C51: 30 | D51: 0 | E51: Individual (Single) | F51: Individual (Single) | W51: 45000 | X51: 45000 | Y51: 0 | Z51: 0 | AA51: 0 | AB51: 0 | AC51: 0 | AD51: 0 | AE51: 0 | AF51: 0 | AG51: 0 | AH51: 0 | AI51: 0 | AJ51: 0 | AK51: 0 | AL51: 0 | AM51: 0 | AN51: 0 | AO51: 0 | AP51: 0 | AQ51: 0 | AR51: 0 | AS51: 0 | AT51: 0 | AU51: 0 | AV51: 0 | AW51: 0 | AX51: 0 | AY51: 0 | AZ51: 0 | BA51: 0 | BB51: 0 | BC51: 0 | BD51: 0 | BE51: 0 | BF51: 0 | BG51: 0 | BH51: 0 | BI51: 0 | BJ51: 0 | BK51: 0 | BL51: 0 | BM51: 100 | BN51: 100 | BO51: 100 | BP51: 100 | BQ51: 100 | BR51: 100 | BS51: 500 | BT51: 10 | BU51: 100 | BV51: 500 | BW51: 300 | BX51: 100 | BY51: 100 | BZ51: 0 | CA51: 0 | CB51: 0 | CC51: 0 | CD51: 7500 | CE51: 6246.6 | CF51: 3065.34 | CG51: 3181.25 | CH51: 1684.59 | CI51: 0 | CJ51: 90000 | CK51: 74959.14 | CL51: 36784.11 | CM51: 38175.03 | CN51: 20215.11 | CO51: 0 | CP51: 7500 | CQ51: 6246.6 | CR51: 3065.34 | CS51: 3181.25 | CT51: 2077.14 | CU51: 0 | CV51: 90000 | CW51: 74959.14 | CX51: 36784.11 | CY51: 38175.03 | CZ51: 24925.67 | DA51: 0 | DB51: 1.88 | DC51: 0.2246123167 | DD51: PASS | DE51: 1.53 | DF51: 0.27695192 | DG51: PASS | DH51: 300000 | DI51: 7500 | DJ51: 6246.6 | DK51: 3065.34 | DL51: 3181.25 | DM51: 1684.59 | DN51: 0 | DO51: 90000 | DP51: 74959.14 | DQ51: 36784.11 | DR51: 38175.03 | DS51: 20215.11 | DT51: 0 | DU51: 7500 | DV51: 6246.6 | DW51: 3065.34 | DX51: 3181.25 | DY51: 2077.14 | DZ51: 0 | EA51: 90000 | EB51: 74959.14 | EC51: 36784.11 | ED51: 38175.03 | EE51: 24925.67 | EF51: 0 | EG51: 1.88 | EH51: 0.2246123167 | EI51: PASS | EJ51: 1.53 | EK51: 0.27695192 | EL51: PASS | EM51: 300000 | EN51: Pass | EO51: Y | EP51: 2023-08-09T16:34:00 | ER51: Case 50 | ES51: Neil
A52: 300000 | B52: 0.054 | C52: 30 | D52: 0 | E52: Individual (Single) | F52: Individual (Single) | W52: 45000 | X52: 25000 | Y52: 0 | Z52: 0 | AA52: 0 | AB52: 0 | AC52: 0 | AD52: 0 | AE52: 0 | AF52: 0 | AG52: 0 | AH52: 0 | AI52: 0 | AJ52: 0 | AK52: 0 | AL52: 0 | AM52: 0 | AN52: 0 | AO52: 0 | AP52: 0 | AQ52: 0 | AR52: 0 | AS52: 0 | AT52: 0 | AU52: 0 | AV52: 0 | AW52: 0 | AX52: 0 | AY52: 0 | AZ52: 0 | BA52: 0 | BB52: 0 | BC52: 0 | BD52: 0 | BE52: 0 | BF52: 0 | BG52: 0 | BH52: 0 | BI52: 0 | BJ52: 0 | BK52: 0 | BL52: 0 | BM52: 100 | BN52: 100 | BO52: 100 | BP52: 100 | BQ52: 100 | BR52: 100 | BS52: 500 | BT52: 10 | BU52: 100 | BV52: 500 | BW52: 300 | BX52: 100 | BY52: 100 | BZ52: 0 | CA52: 0 | CB52: 0 | CC52: 0 | CD52: 5833.33 | CE52: 4894.76 | CF52: 2998.71 | CG52: 1896.05 | CH52: 1684.59 | CI52: 0 | CJ52: 70000 | CK52: 58737.14 | CL52: 35984.5 | CM52: 22752.64 | CN52: 20215.11 | CO52: 0 | CP52: 5833.33 | CQ52: 4894.76 | CR52: 2998.71 | CS52: 1896.05 | CT52: 2077.14 | CU52: 0 | CV52: 70000 | CW52: 58737.14 | CX52: 35984.5 | CY52: 22752.64 | CZ52: 24925.67 | DA52: 0 | DB52: 1.12 | DC52: 0.2887872644 | DD52: PASS | DE52: 0.91 | DF52: 0.35608104 | DG52: FAIL | DH52: 273838.14 | DI52: 5833.33 | DJ52: 4894.76 | DK52: 2998.71 | DL52: 1896.05 | DM52: 1684.59 | DN52: 0 | DO52: 70000 | DP52: 58737.14 | DQ52: 35984.5 | DR52: 22752.64 | DS52: 20215.11 | DT52: 0 | DU52: 5833.33 | DV52: 4894.76 | DW52: 2998.71 | DX52: 1896.05 | DY52: 2077.14 | DZ52: 0 | EA52: 70000 | EB52: 58737.14 | EC52: 35984.5 | ED52: 22752.64 | EE52: 24925.67 | EF52: 0 | EG52: 1.12 | EH52: 0.2887872644 | EI52: PASS | EJ52: 0.91 | EK52: 0.35608104 | EL52: FAIL | EM52: 273838.14 | EN52: Pass | EO52: Y | EP52: 2023-08-09T16:34:02 | ER52: Case 51 | ES52: Neil
A53: 3000000 | B53: 0.07 | C53: 40 | D53: 5 | E53: Company | F53: Individual (Single) | G53: Individual (Couple) | H53: Individual (Couple) | M53: Applicant 4 | N53: Applicant 3 | S53: 2 | T53: 0 | W53: 0 | X53: 225000 | Y53: 100000 | Z53: 80000 | AA53: 0 | AB53: 0 | AC53: 0 | AD53: 0 | AE53: 0 | AF53: 0 | AG53: 0 | AH53: 0 | AI53: 87500 | AJ53: 87500 | AK53: 37500 | AL53: 12500 | AM53: 0 | AN53: 0 | AO53: 22500 | AP53: 22500 | AQ53: 52500 | AR53: 17500 | AS53: 0 | AT53: 0 | AU53: 0 | AV53: 0 | AW53: 0 | AX53: 0 | AY53: 0 | AZ53: 0 | BA53: 0 | BB53: 0 | BC53: 10000 | BD53: 10000 | BE53: 0 | BF53: 0 | BG53: 0 | BH53: 0 | BI53: 500000 | BJ53: 500000 | BK53: 0 | BL53: 0 | BM53: 0 | BN53: 0 | BO53: 0 | BP53: 0 | BQ53: 0 | BR53: 0 | BS53: 0 | BT53: 0 | BU53: 0 | BV53: 0 | BW53: 15000 | BX53: 0 | BY53: 0 | BZ53: 0 | CA53: 25000 | CB53: 5000 | CC53: 3000 | CD53: 63416.67 | CE53: 46976.88 | CF53: 21174.28 | CG53: 25802.6 | CH53: 19165.69 | CI53: 10200 | CJ53: 761000 | CK53: 563722.59 | CL53: 254091.37 | CM53: 309631.21 | CN53: 229988.29 | CO53: 122400 | CP53: 63416.67 | CQ53: 46976.88 | CR53: 21174.28 | CS53: 25802.6 | CT53: 23519.79 | CU53: 10200 | CV53: 761000 | CW53: 563722.59 | CX53: 254091.37 | CY53: 309631.21 | CZ53: 282237.47 | DA53: 122400 | DB53: 0.87 | DC53: 0.4630595126 | DD53: FAIL | DE53: 0.76 | DF53: 0.531718095 | DG53: FAIL | DH53: 1990068.86 | DI53: 63416.67 | DJ53: 46976.88 | DK53: 21174.28 | DL53: 25802.6 | DM53: 19165.69 | DN53: 10200 | DO53: 761000 | DP53: 563722.59 | DQ53: 254091.37 | DR53: 309631.21 | DS53: 229988.29 | DT53: 122400 | DU53: 63416.67 | DV53: 46976.88 | DW53: 21174.28 | DX53: 25802.6 | DY53: 23519.79 | DZ53: 10200 | EA53: 761000 | EB53: 563722.59 | EC53: 254091.37 | ED53: 309631.21 | EE53: 282237.47 | EF53: 122400 | EG53: 0.87 | EH53: 0.4630595126 | EI53: FAIL | EJ53: 0.76 | EK53: 0.531718095 | EL53: FAIL | EM53: 1990068.86 | EN53: Pass | EO53: Y | EP53: 2023-08-09T16:34:03 | ER53: Case 52 | ES53: Neil
A54: 3000000 | B54: 0.01 | C54: 40 | D54: 5 | E54: Company | F54: Individual (Single) | G54: Individual (Couple) | H54: Individual (Couple) | M54: Applicant 4 | N54: Applicant 3 | S54: 2 | T54: 0 | W54: 0 | X54: 225000 | Y54: 100000 | Z54: 80000 | AA54: 0 | AB54: 0 | AC54: 0 | AD54: 0 | AE54: 0 | AF54: 0 | AG54: 0 | AH54: 0 | AI54: 87500 | AJ54: 87500 | AK54: 37500 | AL54: 12500 | AM54: 0 | AN54: 0 | AO54: 22500 | AP54: 22500 | AQ54: 52500 | AR54: 17500 | AS54: 0 | AT54: 0 | AU54: 0 | AV54: 0 | AW54: 0 | AX54: 0 | AY54: 0 | AZ54: 0 | BA54: 0 | BB54: 0 | BC54: 10000 | BD54: 10000 | BE54: 0 | BF54: 0 | BG54: 0 | BH54: 0 | BI54: 500000 | BJ54: 500000 | BK54: 0 | BL54: 0 | BM54: 0 | BN54: 0 | BO54: 0 | BP54: 0 | BQ54: 0 | BR54: 0 | BS54: 0 | BT54: 0 | BU54: 0 | BV54: 0 | BW54: 15000 | BX54: 0 | BY54: 0 | BZ54: 0 | CA54: 25000 | CB54: 5000 | CC54: 3000 | CD54: 63416.67 | CE54: 46976.88 | CF54: 21174.28 | CG54: 25802.6 | CH54: 8468.57 | CI54: 10200 | CJ54: 761000 | CK54: 563722.59 | CL54: 254091.37 | CM54: 309631.21 | CN54: 101622.85 | CO54: 122400 | CP54: 63416.67 | CQ54: 46976.88 | CR54: 21174.28 | CS54: 25802.6 | CT54: 11545.51 | CU54: 10200 | CV54: 761000 | CW54: 563722.59 | CX54: 254091.37 | CY54: 309631.21 | CZ54: 138546.07 | DA54: 122400 | DB54: 1.38 | DC54: 0.2943795685 | DD54: PASS | DE54: 1.18 | DF54: 0.3428989072 | DG54: PASS | DH54: 3000000 | DI54: 63416.67 | DJ54: 46976.88 | DK54: 21174.28 | DL54: 25802.6 | DM54: 8468.57 | DN54: 10200 | DO54: 761000 | DP54: 563722.59 | DQ54: 254091.37 | DR54: 309631.21 | DS54: 101622.85 | DT54: 122400 | DU54: 63416.67 | DV54: 46976.88 | DW54: 21174.28 | DX54: 25802.6 | DY54: 11545.51 | DZ54: 10200 | EA54: 761000 | EB54: 563722.59 | EC54: 254091.37 | ED54: 309631.21 | EE54: 138546.07 | EF54: 122400 | EG54: 1.38 | EH54: 0.2943795685 | EI54: PASS | EJ54: 1.18 | EK54: 0.3428989072 | EL54: PASS | EM54: 3000000 | EN54: =IF(AND(CD54=DI54,CE54=DJ54,CF54=DK54,CG54=DL54,CH54=DM54,CI54=DN54,CJ54=DO54,CK54=DP54,CL54=DQ54,CM54=DR54,CN54=DS54,CO54=DT54,CP54=DU54,CQ54=DV54,CR54=DW54,CS54=DX54,CT54=DY54,CU54=DZ54,CV54=EA54,CW54=EB54,CX54=EC54,CY54=ED54,CZ54=EE54,DA54=EF54,DB54=EG54,DC54=EH54,DD54=EI54,DE54=EJ54,DF54=EK54,DG54=EL54,DH54=EM54),"Pass","Fail") -> Pass | EO54: Y | EP54: 2023-08-09T16:34:04 | ER54: Case 53 | ES54: Neil

Sheet Inputs (hidden)
A1: Inputs
A3: Baseline Assessment Rate | B3: 0
A5: Assessment Loading | B5: 0.02
A7: Credit Card Commitments | B7: 0.038
A9: Workings for Negative Gearing | B9: 0
A11: Other Mortgage Repayment Buffer | B11: 1.25
A13: Rental Income Shading | B13: 0.8
A15: Company Tax | B15: 0.28
A17: NumberOfWeeksInAYear | B17: 52
A18: NumberOfMonthsInAYear | B18: 12
A20: Acceptable NSR For LVR > 90% | B20: 1.35
A21: Acceptable NSR For Applicants with majority income as Government Allowances | B21: 1.25
A22: Acceptable NSR for All other applicants | B22: 1
A24: Allowable Government Allowance over Total Income Limitation | B24: 0.5
A27: Interest rate buffer options
B28: 0.02
B29: 0.01
B30: 0
A32: CRE
B33: Full Doc | C33: Alt Doc | D33: Lease Doc
A34: Minimum ICR | B34: 1.5 | C34: 1.75 | D34: 1.75
A35: Minimum DSCR | B35: 1.25 | C35: 1.25 | D35: 1.25
A38: Residenital
A39: Minimum Loan Term in Years | B39: 10
A40: Maximum Loan Term In years | B40: 40
A41: Maximum Loan Term In Years For Prime Loans | B41: 30
A43: Minimum Interest Only Loan term in Years | B43: 0
A44: Maximum Interest Only Loan term in Years | B44: 5
B48: Company
B49: Trust

Sheet Tax Table (hidden)
A4: Medicare Levy 2017 - 2018 | D4: 1 | E4: Tax offset for Low income earners
A5: Threshold | B5: Value | C5: Rate | E5: Thresholds | F5: Max Tax Offset
A6: Minimum for partial levy | B6: 0 | C6: 0 | E6: 0 | F6: 0
A7: Minimum for full levy | B7: 0 | C7: 0 | E7: 0
A9: Tax 2021-2022
A10: Tax Bracket Min | B10: Tax For Bracket | C10: Tax Rate | E10: Reduced By over 37000K | F10: 0
A11: 0 | B11: 0 | C11: =10.5%+1.39% -> 0.1189
A12: 14001 | B12: =(A12-A11)*C11 -> 1664.7189 | C12: =17.5%+1.39% -> 0.1889 | D12: 2 | E12: Tax offset for Low income earners
A13: 48001 | B13: =(A12-A11)*C11+(A13-A12)*C12 -> 8087.3189 | C13: =30%+1.39% -> 0.3139 | E13: Thresholds | F13: Tax Offset $ | G13: Tax Offset%
A14: 70001 | B14: =(A12-A11)*C11+(A13-A12)*C12+(A14-A13)*C13 -> 14993.1189 | C14: =33%+1.39% -> 0.3439 | E14: 0 | F14: 0 | G14: 0
A15: 180001 | B15: =(A12-A11)*C11+(A13-A12)*C12+(A14-A13)*C13+(A15-A14)*C14 -> 52822.1189 | C15: 0.4039 | E15: 0 | F15: 0 | G15: 0
A16: 999999999 | E16: 0 | F16: 0 | G16: 0
E17: 0 | F17: 0 | G17: 0
E18: 0 | F18: 0 | G18: 0

Sheet HEM Table (hidden)
A1: Combined Couple Gross Income | C1: =B2 -> 0 | D1: =C2 -> 12000 | E1: =D2 -> 24000 | F1: 36000 | G1: 48000 | H1: 60000 | I1: 72000 | J1: 84000 | K1: 96000 | L1: 108000 | M1: 120000 | N1: 150000 | O1: 180000 | P1: 240000 | Q1: 300000
A2: NZ 2023 HEB CCCFA benchmark | C2: 12000 | D2: 24000 | E2: 36000 | F2: 48000 | G2: 60000 | H2: 72000 | I2: 84000 | J2: 96000 | K2: 108000 | L2: 120000 | M2: 150000 | N2: 180000 | O2: 240000 | P2: 300000 | Q2: 999999999
C3: 1 | D3: 2 | E3: 3 | F3: 4 | G3: 5 | H3: 6 | I3: 7 | J3: 8 | K3: 9 | L3: 10 | M3: 11 | N3: 12 | O3: 13 | P3: 14 | Q3: 15
A4: Pepper - Weekly
A5: Single | B5: P-S | C5: =F22*12/52 -> 160.2934715 | D5: =F23*12/52 -> 203.5820764 | E5: =F24*12/52 -> 234.4700514 | F5: =F25*12/52 -> 249.8472422 | G5: =F26*12/52 -> 262.7127048 | H5: =F27*12/52 -> 273.8759446 | I5: =F28*12/52 -> 283.797337 | J5: =F29*12/52 -> 292.7663777 | K5: =F30*12/52 -> 300.9782005 | L5: =F31*12/52 -> 308.5712255 | M5: =F32*12/52 -> 325.4584933 | N5: =F33*12/52 -> 340.1114154 | O5: =F34*12/52 -> 364.9070883 | P5: =F35*12/52 -> 385.6526072 | Q5: =F35*12/52 -> 385.6526072
A6: Couple | B6: P-C | C6: =L22*12/52 -> 280.9906831 | D6: =L23*12/52 -> 356.5203229 | E6: =L24*12/52 -> 410.4795535 | F6: =L25*12/52 -> 454.0042249 | G6: =L26*12/52 -> 483.3025819 | H6: =L27*12/52 -> 503.0421774 | I6: =L28*12/52 -> 520.5858544 | J6: =L29*12/52 -> 536.4455187 | K6: =L30*12/52 -> 550.9662191 | L6: =L31*12/52 -> 564.3927194 | M6: =L32*12/52 -> 594.2539286 | N6: =L33*12/52 -> 620.1642163 | O6: =L34*12/52 -> 664.0096021 | P6: =L35*12/52 -> 700.6932317 | Q6: =L35*12/52 -> 700.6932317
A7: Single parent with 1 child (per child) | B7: P-SD1 | C7: =($G$22-$F$22)*12/52 -> 68.95497516 | D7: =($G$23-$F$23)*12/52 -> 87.20907771 | E7: =($G$24-$F$24)*12/52 -> 100.2760263 | F7: =($G$25-$F$25)*12/52 -> 120.0657679 | G7: =($G$26-$F$26)*12/52 -> 125.8044542 | H7: =($G$27-$F$27)*12/52 -> 130.7838579 | I7: =($G$28-$F$28)*12/52 -> 135.209331 | J7: =($G$29-$F$29)*12/52 -> 139.2100042 | K7: =($G$30-$F$30)*12/52 -> 142.8729175 | L7: =($G$31-$F$31)*12/52 -> 146.2598139 | M7: =($G$32-$F$32)*12/52 -> 153.7924411 | N7: =($G$33-$F$33)*12/52 -> 160.3284302 | O7: =($G$34-$F$34)*12/52 -> 171.3886301 | P7: =($G$35-$F$35)*12/52 -> 180.6422442 | Q7: =($G$35-$F$35)*12/52 -> 180.6422442
A8: Single parent with 2 children (per child) | B8: P-SD2 | C8: =(($H$22-$F$22)/2)*12/52 -> 66.65967885 | D8: =(($H$23-$F$23)/2)*12/52 -> 84.29134804 | E8: =(($H$24-$F$24)/2)*12/52 -> 96.87860046 | F8: =(($H$25-$F$25)/2)*12/52 -> 111.7858347 | G8: =(($H$26-$F$26)/2)*12/52 -> 124.115379 | H8: =(($H$27-$F$27)/2)*12/52 -> 128.9361704 | I8: =(($H$28-$F$28)/2)*12/52 -> 133.220676 | J8: =(($H$29-$F$29)/2)*12/52 -> 137.0939131 | K8: =(($H$30-$F$30)/2)*12/52 -> 140.6401492 | L8: =(($H$31-$F$31)/2)*12/52 -> 143.9191606 | M8: =(($H$32-$F$32)/2)*12/52 -> 151.211846 | N8: =(($H$33-$F$33)/2)*12/52 -> 157.5396399 | O8: =(($H$34-$F$34)/2)*12/52 -> 168.2475319 | P8: =(($H$35-$F$35)/2)*12/52 -> 177.2063845 | Q8: =(($H$35-$F$35)/2)*12/52 -> 177.2063845
A9: Single parent with 3 children (per child) | B9: P-SD3 | C9: =(($I$22-$F$22)/3)*12/52 -> 64.84445608 | D9: =(($I$23-$F$23)/3)*12/52 -> 81.98377743 | E9: =(($I$24-$F$24)/3)*12/52 -> 94.20722446 | F9: =(($I$25-$F$25)/3)*12/52 -> 107.2283491 | G9: =(($I$26-$F$26)/3)*12/52 -> 118.4138524 | H9: =(($I$27-$F$27)/3)*12/52 -> 128.3298704 | I9: =(($I$28-$F$28)/3)*12/52 -> 133.0737679 | J9: =(($I$29-$F$29)/3)*12/52 -> 136.8462615 | K9: =(($I$30-$F$30)/3)*12/52 -> 140.3002595 | L9: =(($I$31-$F$31)/3)*12/52 -> 143.4939832 | M9: =(($I$32-$F$32)/3)*12/52 -> 150.5969846 | N9: =(($I$33-$F$33)/3)*12/52 -> 156.7601915 | O9: =(($I$34-$F$34)/3)*12/52 -> 167.1895696 | P9: =(($I$35-$F$35)/3)*12/52 -> 175.9154009 | Q9: =(($I$35-$F$35)/3)*12/52 -> 175.9154009
A10: Single parent with 4 or more children (per child) | B10: P-SD4+ | C10: =(($J$22-$F$22)/4)*12/52 -> 63.34372296 | D10: =(($J$23-$F$23)/4)*12/52 -> 80.07600801 | E10: =(($J$24-$F$24)/4)*12/52 -> 92.0024142 | F10: =(($J$25-$F$25)/4)*12/52 -> 103.987497 | G10: =(($J$26-$F$26)/4)*12/52 -> 114.2664863 | H10: =(($J$27-$F$27)/4)*12/52 -> 123.3672439 | I10: =(($J$28-$F$28)/4)*12/52 -> 130.5121075 | J10: =(($J$29-$F$29)/4)*12/52 -> 134.201307 | K10: =(($J$30-$F$30)/4)*12/52 -> 137.579043 | L10: =(($J$31-$F$31)/4)*12/52 -> 140.7022515 | M10: =(($J$32-$F$32)/4)*12/52 -> 147.6484235 | N10: =(($J$33-$F$33)/4)*12/52 -> 153.675551 | O10: =(($J$34-$F$34)/4)*12/52 -> 163.8746554 | P10: =(($J$35-$F$35)/4)*12/52 -> 172.4078263 | Q10: =(($J$35-$F$35)/4)*12/52 -> 172.4078263
A11: Couple with 1 child (per child) | B11: P-CD1 | C11: =(($M$22-$L$22)*12/52) -> 61.75303687 | D11: =(($M$23-$L$23)*12/52) -> 78.03802557 | E11: =(($M$24-$L$24)*12/52) -> 89.62480226 | F11: =(($M$25-$L$25)*12/52) -> 98.94590429 | G11: =(($M$26-$L$26)*12/52) -> 114.7268116 | H11: =(($M$27-$L$27)*12/52) -> 125.5915472 | I11: =(($M$28-$L$28)*12/52) -> 129.5816054 | J11: =(($M$29-$L$29)*12/52) -> 133.188659 | K11: =(($M$30-$L$30)*12/52) -> 136.4911845 | L11: =(($M$31-$L$31)*12/52) -> 139.5448498 | M11: =(($M$32-$L$32)*12/52) -> 146.3363544 | N11: =(($M$33-$L$33)*12/52) -> 152.2292785 | O11: =(($M$34-$L$34)*12/52) -> 162.2012838 | P11: =(($M$35-$L$35)*12/52) -> 170.5444503 | Q11: =(($M$35-$L$35)*12/52) -> 170.5444503
A12: Couple with 2 children (per child) | B12: P-CD2 | C12: =(($N$22-$L$22)/2*12/52) -> 60.50583654 | D12: =(($N$23-$L$23)/2*12/52) -> 76.45436345 | E12: =(($N$24-$L$24)/2*12/52) -> 87.8005843 | F12: =(($N$25-$L$25)/2*12/52) -> 96.9275518 | G12: =(($N$26-$L$26)/2*12/52) -> 108.6212827 | H12: =(($N$27-$L$27)/2*12/52) -> 121.9696201 | I12: =(($N$28-$L$28)/2*12/52) -> 129.0753394 | J12: =(($N$29-$L$29)/2*12/52) -> 132.6124699 | K12: =(($N$30-$L$30)/2*12/52) -> 135.8509754 | L12: =(($N$31-$L$31)/2*12/52) -> 138.8454451 | M12: =(($N$32-$L$32)/2*12/52) -> 145.5052955 | N12: =(($N$33-$L$33)/2*12/52) -> 151.2839844 | O12: =(($N$34-$L$34)/2*12/52) -> 161.0626812 | P12: =(($N$35-$L$35)/2*12/52) -> 169.2441143 | Q12: =(($N$35-$L$35)/2*12/52) -> 169.2441143
A13: Couple with 3 children (per child) | B13: P-CD3 | C13: =(($O$22-$L$22)/3*12/52) -> 59.43419682 | D13: =(($O$23-$L$23)/3*12/52) -> 75.09352128 | E13: =(($O$24-$L$24)/3*12/52) -> 86.23295934 | F13: =(($O$25-$L$25)/3*12/52) -> 95.19303987 | G13: =(($O$26-$L$26)/3*12/52) -> 105.4371505 | H13: =(($O$27-$L$27)/3*12/52) -> 116.4911327 | I13: =(($O$28-$L$28)/3*12/52) -> 126.5232566 | J13: =(($O$29-$L$29)/3*12/52) -> 132.8350334 | K13: =(($O$30-$L$30)/3*12/52) -> 136.0185671 | L13: =(($O$31-$L$31)/3*12/52) -> 138.9622071 | M13: =(($O$32-$L$32)/3*12/52) -> 145.50901 | N13: =(($O$33-$L$33)/3*12/52) -> 151.1896088 | O13: =(($O$34-$L$34)/3*12/52) -> 160.8023173 | P13: =(($O$35-$L$35)/3*12/52) -> 168.8448748 | Q13: =(($O$35-$L$35)/3*12/52) -> 168.8448748
A14: Couple with 4 or more children (per child) | B14: P-CD4+ | C14: =(($P$22-$L$22)/4*12/52) -> 58.49450866 | D14: =(($P$23-$L$23)/4*12/52) -> 73.90019266 | E14: =(($P$24-$L$24)/4*12/52) -> 84.85826795 | F14: =(($P$25-$L$25)/4*12/52) -> 93.67197331 | G14: =(($P$26-$L$26)/4*12/52) -> 103.1375472 | H14: =(($P$27-$L$27)/4*12/52) -> 112.9969576 | I14: =(($P$28-$L$28)/4*12/52) -> 121.932512 | J14: =(($P$29-$L$29)/4*12/52) -> 130.1483942 | K14: =(($P$30-$L$30)/4*12/52) -> 137.1679911 | L14: =(($P$31-$L$31)/4*12/52) -> 140.0670759 | M14: =(($P$32-$L$32)/4*12/52) -> 146.5147857 | N14: =(($P$33-$L$33)/4*12/52) -> 152.1094022 | O14: =(($P$34-$L$34)/4*12/52) -> 161.5766117 | P14: =(($P$35-$L$35)/4*12/52) -> 169.4974362 | Q14: =(($P$35-$L$35)/4*12/52) -> 169.4974362
F18: CCCFA Prototype Benchmark Central estimates
F19: Household composition: number of adults and number of children
F20: 1 | G20: 1 | H20: 1 | I20: 1 | J20: 1 | K20: 1 | L20: 2 | M20: 2 | N20: 2 | O20: 2 | P20: 2 | Q20: 2 | R20: Adults
A21: Region | B21: Year | D21: Pre-tax monthly income | E21: Annual pre-tax income | F21: 0 | G21: 1 | H21: 2 | I21: 3 | J21: 4 | K21: 5 | L21: 0 | M21: 1 | N21: 2 | O21: 3 | P21: 4 | Q21: 5 | R21: Children
A22: New Zealand | B22: 2023 | D22: 1000 | E22: =D22*12 -> 12000 | F22: 694.6050433 | G22: 993.4099356 | H22: 1272.32226 | I22: 1537.582972 | J22: 1792.562908 | K22: 2039.358845 | L22: 1217.626293 | M22: 1485.222786 | N22: 1742.01021 | O22: 1990.270852 | P22: 2231.53111 | Q22: 2466.879121
A23: New Zealand | B23: 2023 | D23: 2000 | E23: =D23*12 -> 24000 | F23: 882.1889976 | G23: 1260.095001 | H23: 1612.714014 | I23: 1947.978104 | J23: 2270.173136 | K23: 2581.965458 | L23: 1544.921399 | M23: 1883.086177 | N23: 2207.525882 | O23: 2521.137176 | P23: 2825.858072 | Q23: 3123.070459
A24: New Zealand | B24: 2023 | D24: 3000 | E24: 36000 | F24: 1016.036889 | G24: 1450.566337 | H24: 1855.651427 | I24: 2240.730807 | J24: 2610.745402 | K24: 2968.769364 | L24: 1778.744732 | M24: 2167.118875 | N24: 2539.683129 | O24: 2899.773203 | P24: 3249.621376 | Q24: 3590.819587
A25: New Zealand | B25: 2023 | D25: 4000 | E25: 48000 | F25: 1082.671383 | G25: 1602.956377 | H25: 2051.48195 | I25: 2476.639922 | J25: 2885.121331 | K25: 3280.329751 | L25: 1967.351641 | M25: 2396.117227 | N25: 2807.390424 | O25: 3204.86116 | P25: 3590.999179 | Q25: 3967.565951
A26: New Zealand | B26: 2023 | D26: 5000 | E26: 60000 | F26: 1138.421721 | G26: 1683.574356 | H26: 2214.088339 | I26: 2677.801802 | J26: 3119.040816 | K26: 3545.911593 | L26: 2094.311188 | M26: 2591.460705 | N26: 3035.695638 | O26: 3464.994145 | P26: 3882.028674 | Q26: 4288.705428
A27: New Zealand | B27: 2023 | D27: 6000 | E27: 72000 | F27: 1186.79576 | G27: 1753.525811 | H27: 2304.24257 | I27: 2855.084076 | J27: 3325.161321 | K27: 3779.903839 | L27: 2179.849436 | M27: 2724.079474 | N27: 3236.919476 | O27: 3694.234161 | P27: 4138.463368 | Q27: 4571.640974
A28: New Zealand | B28: 2023 | D28: 7000 | E28: 84000 | F28: 1229.78846 | G28: 1815.695561 | H28: 2384.367652 | I28: 2959.747444 | J28: 3491.998324 | K28: 3967.570399 | L28: 2255.872036 | M28: 2817.392326 | N28: 3374.524977 | O28: 3900.674371 | P28: 4369.36891 | Q28: 4799.699171
A29: New Zealand | B29: 2023 | D29: 8000 | E29: 96000 | F29: 1268.654303 | G29: 1871.897655 | H29: 2456.80155 | I29: 3047.655703 | J29: 3594.810291 | K29: 4084.831458 | L29: 2324.597248 | M29: 2901.748104 | N29: 3473.90532 | O29: 4051.452682 | P29: 4580.502747 | Q29: 4941.605865
A30: New Zealand | B30: 2023 | D30: 9000 | E30: 108000 | F30: 1304.238869 | G30: 1923.354845 | H30: 2523.120162 | I30: 3128.142242 | J30: 3688.942281 | K30: 4192.192666 | L30: 2387.520283 | M30: 2978.982082 | N30: 3564.895403 | O30: 4155.761655 | P30: 4765.098796 | Q30: 5071.531981
A31: New Zealand | B31: 2023 | D31: 10000 | E31: 120000 | F31: 1337.141977 | G31: 1970.934504 | H31: 2584.441368 | I31: 3202.563758 | J31: 3775.981002 | K31: 4291.463724 | L31: 2445.701784 | M31: 3050.396133 | N31: 3649.028975 | O31: 4252.210477 | P31: 4873.5311 | Q31: 5191.667579
A32: New Zealand | B32: 2023 | D32: 12500 | E32: 150000 | F32: 1410.320138 | G32: 2076.754049 | H32: 2720.822803 | I32: 3368.080938 | J32: 3969.559478 | K32: 4512.247529 | L32: 2575.100357 | M32: 3209.22456 | N32: 3836.146251 | O32: 4466.717488 | P32: 5114.689976 | Q32: 5458.855167
A33: New Zealand | B33: 2023 | D33: 15000 | E33: 180000 | F33: 1473.816133 | G33: 2168.572664 | H33: 2839.159679 | I33: 3511.698623 | J33: 4137.525684 | K33: 4703.819541 | L33: 2687.378271 | M33: 3347.038477 | N33: 3998.506136 | O33: 4652.843185 | P33: 5323.941243 | Q33: 5690.691301
A34: New Zealand | B34: 2023 | D34: 20000 | E34: 240000 | F34: 1581.264049 | G34: 2323.948113 | H34: 3039.409326 | I34: 3754.728454 | J34: 4421.758076 | K34: 5027.997677 | L34: 2877.374942 | M34: 3580.247172 | N34: 4273.251513 | O34: 4967.805067 | P34: 5678.036212 | Q34: 6083.004379
A35: New Zealand | B35: 2023 | D35: 25000 | E35: 300000 | F35: 1671.161298 | G35: 2453.944356 | H35: 3206.949964 | I35: 3958.06151 | J35: 4659.563621 | K35: 5299.224179 | L35: 3036.337337 | M35: 3775.363289 | N35: 4503.119661 | O35: 5231.32071 | P35: 5974.292898 | Q35: 6411.236583
F38: Previous - CCCFA Prototype Benchmark Central estimates
B40: 2021 | D40: 1000 | E40: =D40*12 -> 12000 | F40: 616.6236373 | G40: 881.6026777 | H40: 1128.918524 | I40: 1364.112477 | J40: 1590.177763 | K40: 1808.976344 | L40: 1080.657155 | M40: 1317.913087 | N40: 1545.573994 | O40: 1765.66559 | P40: 1979.542805 | Q40: 2188.171593
B41: 2021 | D41: 2000 | E41: =D41*12 -> 24000 | F41: 783.8812025 | G41: 1119.29189 | H41: 1432.228124 | I41: 1729.739418 | J41: 2015.635169 | K41: 2292.285392 | L41: 1372.392375 | M41: 1672.465284 | N41: 1960.343331 | O41: 2238.599907 | P41: 2508.956917 | Q41: 2772.642232
B42: 2021 | D42: 3000 | E42: 36000 | F42: 890.0120624 | G42: 1289.207892 | H42: 1648.894648 | I42: 1990.789985 | J42: 2319.288126 | K42: 2637.123191 | L42: 1581.001054 | M42: 1925.806706 | N42: 2256.557016 | O42: 2576.21712 | P42: 2886.771515 | Q42: 3189.635528
B43: 2021 | D43: 4000 | E43: 48000 | F43: 948.6790751 | G43: 1404.098776 | H43: 1823.651262 | I43: 2201.275787 | J43: 2564.063358 | K43: 2915.04239 | L43: 1747.704346 | M43: 2130.181261 | N43: 2495.43532 | O43: 2848.413059 | P43: 3191.311011 | Q43: 3525.69589
B44: 2021 | D44: 5000 | E44: 60000 | F44: 997.7633498 | G44: 1475.077269 | H44: 1939.332661 | I44: 2380.838035 | J44: 2772.838292 | K44: 3152.051238 | L44: 1834.49848 | M44: 2293.571277 | N44: 2699.244669 | O44: 3080.602772 | P44: 3451.049114 | Q44: 3812.27971
B45: 2021 | D45: 6000 | E45: 72000 | F45: 1040.353309 | G45: 1536.664635 | H45: 2018.707159 | I45: 2506.963354 | J45: 2956.867345 | K45: 3360.931962 | L45: 1909.808926 | M45: 2386.010006 | N45: 2858.759256 | O45: 3285.29039 | P45: 3679.992734 | Q45: 4064.859252
B46: 2021 | D46: 7000 | E46: 84000 | F46: 1078.205376 | G46: 1591.400753 | H46: 2089.251691 | I46: 2592.578615 | J46: 3058.423648 | K46: 3475.134385 | L46: 1976.74151 | M46: 2468.165449 | N46: 2955.547363 | O46: 3447.796787 | P46: 3886.204961 | Q46: 4204.005074
B47: 2021 | D47: 8000 | E47: 96000 | F47: 1112.424033 | G47: 1640.882767 | H47: 2153.024674 | I47: 2669.97569 | J47: 3148.942396 | K47: 3578.37455 | L47: 2037.249254 | M47: 2542.434813 | N47: 3043.044806 | O47: 3548.101876 | P47: 4069.248826 | Q47: 4328.943996
B48: 2021 | D48: 9000 | E48: 108000 | F48: 1143.753755 | G48: 1686.187225 | H48: 2211.413575 | I48: 2740.838461 | J48: 3231.819032 | K48: 3672.898587 | L48: 2092.648587 | M48: 2610.433932 | N48: 3123.155213 | O48: 3639.938633 | P48: 4172.49603 | Q48: 4443.334857
B49: 2021 | D49: 10000 | E49: 120000 | F49: 1172.722641 | G49: 1728.077788 | H49: 2265.40261 | I49: 2806.361403 | J49: 3308.450541 | K49: 3760.299813 | L49: 2143.873332 | M49: 2673.30901 | N49: 3197.22894 | O49: 3724.855077 | P49: 4267.963093 | Q49: 4549.105852
B50: 2021 | D50: 12500 | E50: 150000 | F50: 1237.150896 | G50: 1821.244499 | H50: 2385.476927 | I50: 2952.087707 | J50: 3478.882854 | K50: 3954.684517 | L50: 2257.799728 | M50: 2813.146335 | N50: 3361.972619 | O50: 3913.713503 | P50: 4480.286622 | Q50: 4784.345842
B51: 2021 | D51: 15000 | E51: 180000 | F51: 1293.05468 | G51: 1902.08437 | H51: 2489.664273 | I51: 3078.533038 | J51: 3626.765354 | K51: 4123.350279 | L51: 2356.652581 | M51: 2934.481854 | N51: 3504.919146 | O51: 4077.584166 | P51: 4664.517733 | Q51: 4988.461349
B52: 2021 | D52: 20000 | E52: 240000 | F52: 1387.655058 | G52: 2038.88159 | H52: 2665.970087 | I52: 3292.503812 | J52: 3877.012104 | K52: 4408.766462 | L52: 2523.931366 | M52: 3139.805805 | N52: 3746.813241 | O52: 4354.886082 | P52: 4976.273596 | Q52: 5333.865584
B53: 2021 | D53: 25000 | E53: 300000 | F53: 1466.8033 | G53: 2153.334193 | H53: 2813.477904 | I53: 3471.524351 | J53: 4086.383259 | K53: 4647.562434 | L53: 2663.886641 | M53: 3311.591903 | N53: 3949.196074 | O53: 4586.893182 | P53: 5237.106895 | Q53: 5622.851091
F58: 1 | G58: 1 | H58: 1 | I58: 1 | J58: 1 | K58: 1 | L58: 2 | M58: 2 | N58: 2 | O58: 2 | P58: 2 | Q58: 2 | R58: Adults
D59: Pre-tax monthly income | E59: Annual pre-tax income | F59: 0 | G59: 1 | H59: 2 | I59: 3 | J59: 4 | K59: 5 | L59: 0 | M59: 1 | N59: 2 | O59: 3 | P59: 4 | Q59: 5 | R59: Children
F61: Change ($)
D63: 1000 | E63: =D63*12 -> 12000 | F63: =F22-F40 -> 77.98140593 | G63: =G22-G40 -> 111.8072579 | H63: 143.4037357 | I63: 173.4704954 | J63: 202.3851449 | K63: 230.3825017 | L63: 136.9691382 | M63: 167.3096999 | N63: 196.4362164 | O63: 224.6052616 | P63: 251.9883052 | Q63: 278.7075286
D64: 2000 | E64: =D64*12 -> 24000 | F64: =F23-F41 -> 98.30779514 | G64: 140.803111 | H64: 180.4858904 | I64: 218.2386861 | J64: 254.5379677 | K64: 289.6800661 | L64: 172.5290237 | M64: 210.6208923 | N64: 247.1825514 | O64: 282.5372693 | P64: 316.9011551 | Q64: 350.4282274
D65: 3000 | E65: 36000 | F65: =F24-F42 -> 126.0248271 | G65: 161.3584446 | H65: 206.7567786 | I65: 249.9408226 | J65: 291.4572759 | K65: 331.6461732 | L65: 197.7436782 | M65: 241.3121687 | N65: 283.1261129 | O65: 323.5560836 | P65: 362.8498617 | Q65: 401.1840591
D66: 4000 | E66: 48000 | F66: =F25-F43 -> 133.9923079 | G66: 198.8576015 | H66: 227.830688 | I66: 275.364135 | J66: 321.0579727 | K66: 365.2873603 | L66: 219.6472959 | M66: 265.9359656 | N66: 311.9551041 | O66: 356.4481007 | P66: 399.6881675 | Q66: 441.8700607
D67: 5000 | E67: 60000 | F67: =F26-F44 -> 140.6583712 | G67: 208.4970865 | H67: 274.7556778 | I67: 296.963767 | J67: 346.202524 | K67: 393.860355 | L67: 259.8127083 | M67: 297.8894279 | N67: 336.4509689 | O67: 384.3913727 | P67: 430.9795599 | Q67: 476.4257181
D68: 6000 | E68: 72000 | F68: =F27-F45 -> 146.442451 | G68: 216.8611762 | H68: 285.5354117 | I68: 348.1207218 | J68: 368.2939759 | K68: 418.9718773 | L68: 270.0405095 | M68: 338.0694671 | N68: 378.1602201 | O68: 408.9437705 | P68: 458.4706344 | Q68: 506.7817216
D69: 7000 | E69: 84000 | F69: =F28-F46 -> 151.5830846 | G69: 224.294808 | H69: 295.1159611 | I69: 367.168829 | J69: 433.5746766 | K69: 492.4360133 | L69: 279.1305254 | M69: 349.2268771 | N69: 418.9776147 | O69: 452.8775842 | P69: 483.1639492 | Q69: 595.6940976
D70: 8000 | E70: 96000 | F70: =F29-F47 -> 156.2302702 | G70: 231.0148877 | H70: 303.7768762 | I70: 377.6800122 | J70: 445.8678949 | K70: 506.4569084 | L70: 287.3479933 | M70: 359.3132904 | N70: 430.860514 | O70: 503.3508067 | P70: 511.2539208 | Q70: 612.6618691
D71: 9000 | E71: 108000 | F71: =F30-F48 -> 160.4851137 | G71: 237.1676196 | H71: 311.7065871 | I71: 387.303781 | J71: 457.1232491 | K71: 519.2940791 | L71: 294.8716954 | M71: 368.5481508 | N71: 441.7401907 | O71: 515.8230219 | P71: 592.6027655 | Q71: 628.1971239
D72: 10000 | E72: 120000 | F72: =F31-F49 -> 164.4193356 | G72: 242.8567155 | H72: 319.0387587 | I72: 396.2023555 | J72: 467.5304618 | K72: 531.1639113 | L72: 301.8284527 | M72: 377.0871229 | N72: 451.8000348 | O72: 527.3553995 | P72: 605.5680071 | Q72: 642.5617274
D73: 12500 | E73: 150000 | F73: =F32-F50 -> 173.1692422 | G73: 255.5095497 | H73: 335.3458754 | I73: 415.9932309 | J73: 490.676624 | K73: 557.5630125 | L73: 317.3006293 | M73: 396.0782246 | N73: 474.173632 | O73: 553.0039849 | P73: 634.4033538 | Q73: 674.5093251
D74: 15000 | E74: 180000 | F74: =F33-F51 -> 180.7614531 | G74: 266.4882939 | H74: 349.4954058 | I74: 433.1655856 | J74: 510.7603292 | K74: 580.469262 | L74: 330.72569 | M74: 412.5566233 | N74: 493.5869899 | O74: 575.2590191 | P74: 659.4235104 | Q74: 702.2299523
D75: 20000 | E75: 240000 | F75: =F34-F52 -> 193.6089915 | G75: 285.0665234 | H75: 373.4392395 | I75: 462.2246422 | J75: 544.7459728 | K75: 619.2312146 | L75: 353.4435763 | M75: 440.4413676 | N75: 526.4382718 | O75: 612.9189851 | P75: 701.7626164 | Q75: 749.1387944
D76: 25000 | E76: 300000 | F76: =F35-F53 -> 204.357998 | G76: 300.6101633 | H76: 393.4720596 | I76: 486.5371588 | J76: 573.1803619 | K76: 651.6617449 | L76: 372.4506966 | M76: 463.7713853 | N76: 553.9235872 | O76: 644.4275286 | P76: 737.1860037 | Q76: 788.3854917
F78: Change (%)
D79: 1000 | E79: =D79*12 -> 12000 | F79: =(F22-F40)/F40 -> 0.1264651583 | G79: =(G22-G40)/G40 -> 0.1268227295 | H79: 0.1270275335 | I79: 0.1271672962 | J79: 0.1272720256 | K79: 0.1273551766 | L79: 0.126746154 | M79: 0.1269504808 | N79: 0.1270959639 | O79: 0.1272071353 | P79: 0.1272962144 | Q79: 0.1273700515
D80: 2000 | E80: =D80*12 -> 24000 | F80: =(F23-F41)/F41 -> 0.1254115991 | G80: 0.1257965971 | H80: 0.1260175578 | I80: 0.1261685337 | J80: 0.1262817655 | K80: 0.126371728 | L80: 0.1257140646 | M80: 0.1259343882 | N80: 0.1260914593 | O80: 0.126211597 | P80: 0.1263079302 | Q80: 0.1263878272
D81: 3000 | E81: 36000 | F81: =(F24-F42)/F42 -> 0.1415990101 | G81: 0.125160919 | H81: 0.1253911394 | I81: 0.1255485634 | J81: 0.125666696 | K81: 0.1257605918 | L81: 0.1250749819 | M81: 0.1253044596 | N81: 0.1254681849 | O81: 0.125593484 | P81: 0.125694001 | Q81: 0.1257773986
D82: 4000 | E82: 48000 | F82: =(F25-F43)/F43 -> 0.1412409227 | G82: 0.1416265045 | H82: 0.1249310615 | I82: 0.1250929741 | J82: 0.1252145239 | K82: 0.1253111658 | L82: 0.1256776047 | M82: 0.1248419421 | N82: 0.1250102945 | O82: 0.1251391892 | P82: 0.1252426248 | Q82: 0.1253284669
D83: 5000 | E83: 60000 | F83: =(F26-F44)/F44 -> 0.14097368 | G83: 0.1413465524 | H83: 0.1416753728 | I83: 0.1247307724 | J83: 0.1248549275 | K83: 0.1249536652 | L83: 0.1416260145 | M83: 0.1298801702 | N83: 0.12464634 | O83: 0.124777974 | P83: 0.1248836356 | Q83: 0.1249713438
D84: 6000 | E84: 72000 | F84: =(F27-F45)/F45 -> 0.1407622293 | G84: 0.1411245963 | H84: 0.1414446917 | I84: 0.138861512 | J84: 0.1245554612 | K84: 0.1246594344 | L84: 0.1413966108 | M84: 0.1416882017 | N84: 0.1322812403 | O84: 0.1244772065 | P84: 0.1245846575 | Q84: 0.124673867
D85: 7000 | E85: 84000 | F85: =(F28-F46)/F46 -> 0.140588322 | G85: 0.1409417506 | H85: 0.1412543842 | I85: 0.1416230262 | J85: 0.1417641002 | K85: 0.1417027253 | L85: 0.1412073981 | M85: 0.1414924908 | N85: 0.1417597363 | O85: 0.1313527485 | P85: 0.1243279637 | Q85: 0.1416968075
D86: 8000 | E86: 96000 | F86: =(F29-F47)/F47 -> 0.1404412936 | G86: 0.1407869546 | H86: 0.141093077 | I86: 0.141454476 | J86: 0.1415929029 | K86: 0.1415326711 | L86: 0.141047048 | M86: 0.1413264515 | N86: 0.1415886198 | O86: 0.1418648123 | P86: 0.1256384022 | Q86: 0.1415268642
D87: 9000 | E87: 108000 | F87: =(F30-F48)/F48 -> 0.1403143929 | G87: 0.1406531944 | H87: 0.1409535469 | I87: 0.1413085034 | J87: 0.1414445687 | K87: 0.1413853573 | L87: 0.1409083671 | M87: 0.1411827154 | N87: 0.1414403578 | O87: 0.1417120105 | P87: 0.1420259627 | Q87: 0.1413796493
D88: 10000 | E88: 120000 | F88: =(F31-F49)/F49 -> 0.140203088 | G88: 0.1405357543 | H88: 0.140830931 | I88: 0.14118009 | J88: 0.1413140248 | K88: 0.1412557343 | L88: 0.1407865139 | M88: 0.1410563169 | N88: 0.1413098791 | O88: 0.1415774275 | P88: 0.1418868894 | Q88: 0.1412501156
D89: 12500 | E89: 150000 | F89: =(F32-F50)/F50 -> 0.1399742286 | G89: 0.1402939308 | H89: 0.1405781257 | I89: 0.1409149294 | J89: 0.1410443078 | K89: 0.1409879878 | L89: 0.1405353297 | M89: 0.1407954573 | N89: 0.1410403015 | O89: 0.1412990462 | P89: 0.1415988323 | Q89: 0.1409825601
D90: 15000 | E90: 180000 | F90: =(F33-F51)/F51 -> 0.1397941293 | G90: 0.1401032983 | H90: 0.140378528 | I90: 0.1407051931 | J90: 0.1408308174 | K90: 0.140776122 | L90: 0.1403370581 | M90: 0.1405892569 | N90: 0.1408269262 | O90: 0.1410783924 | P90: 0.1413701369 | Q90: 0.1407708516
D91: 20000 | E91: 240000 | F91: =(F34-F52)/F52 -> 0.1395224198 | G91: 0.1398151441 | H91: 0.1400763052 | I91: 0.1403869725 | J91: 0.1405066474 | K91: 0.1404545285 | L91: 0.1400369206 | M91: 0.1402766269 | N91: 0.1405029389 | O91: 0.1407428285 | P91: 0.1410217109 | Q91: 0.1404495075
D92: 25000 | E92: 300000 | F92: =(F35-F53)/F53 -> 0.1393220196 | G92: 0.1396021873 | H92: 0.1398525501 | I92: 0.1401508702 | J92: 0.1402659334 | K92: 0.140215813 | L92: 0.1398147695 | M92: 0.1400448482 | N92: 0.1402623665 | O92: 0.1404932496 | P92: 0.1407620693 | Q92: 0.1402109853

Sheet Assessment Notes - Residential (hidden)
A1: UNDERWRITER NOTES | D1: INSTRUCTIONS | G1: CONDITIONS
A2: Loan Amount - Requested: | D2: Loan amount requested by customer at application. | R2: Prime Fulldoc
A3: Loan Amount - Approved: | D3: Loan amount approved as a result of this assessment. | R3: Prime Fulldoc PLUS
A4: LPF / MRF: | D4: LPF or MRF applicable to the approved loan amount. | R4: Prime Fulldoc (Construction)
A5: Loan Amount - Final: | C5: =C3+C4 -> 0 | D5: Loan amount including any capitalised fees. This amount is to be entered into the Servicing Calculator for credit assessment purposes. | R5: Prime Fulldoc PLUS (Construction)
A6: Security Estimate: | D6: Security value amount used for LVR calculation. | R6: Prime Altdoc | AB6: Have adopted Pepper’s minimum living expenses allowance as considered more reasonable than borrower advised amount | AC6: Have adopted Pepper’s minimum living expenses allowance as considered more reasonable than borrower advised amount
A7: LVR - Initial: | C7: =C3/C6 ->  | D7: LVR based on loan amount before capitalised fees. | R7: Prime Altdoc PLUS
A8: LVR - Final: | C8: =C5/C6 ->  | D8: Total LVR based on loan amount plus capitalised fees. | R8: Prime Altdoc (Construction)
A9: Global Exposure if other loans held | D9: Total Loan Amount and Total LVR of all Pepper exposure held. If this is the only loan "No other exposure held" | R9: Prime Altdoc PLUS (Construction)
A10: NSR **Min. 1.35x when end LVR >90%**: | C10: =D10 -> 0 | D10: =ResiAssessmentNSR -> 0 | E10: NSR based on total loan amount (plus capitalised fees if applicable). Cannot be < 1x or where LVR > 90% cannot be < 1.35x or where income from government support is > 50% of total income cannot be <1.25x. | R10: Near Prime Fulldoc | AC10: PEP checks verified. Matches addressed and explained. If EDD was completed - what information was collected and how was it verified.
A11: Customers Requirements & Objectives: | D11: Comment on what the customers objective with the loan purpose is and whether the proposed loan meets the product requirements captured on the CRO form. | R11: Near Prime Fulldoc PLUS
A12: Customer Benefit: | D12: What advantage is the customer receiving from the loan purpose and does this match with the Customers Requirements and Objectives. | R12: Near Prime Altdoc
A13: Product: | D13: Product that is recommended for approval. If this is different to what the customer has applied for then comment as to why it still meets the Customers Requirements and Objectives. | G13: Can attach here your Rate Card, LPF Calc, Postcode search etc… | R13: Near Prime Altdoc PLUS | AA13: Rec for Approval. have made reasonable enquiries to verify that the product will not be unsuitable to the customers’ requirements and objectives and the loan will not cause the customer substantial hardship. This assessment is valid for 90 days. | AC13: Rec for Approval. have made reasonable enquiries to verify that the product will not be unsuitable to the customers’ requirements and objectives and the loan will not cause the customer substantial hardship. This assessment is valid for 90 days.
A14: Interest Only? (If O/O then document reason): | D14: Why the applicant is seeking interest only and whether the reasons are reasonable based on customers requirements and objectives, the purpose of the loan and the customers circumstances. | R14: Near Prime Fulldoc (Construction)
A15: Security Category: | D15: What is the security property location Category? If Prime and requires Metro category note here. | R15: Near Prime Altdoc (Construction)
A16: High Density Area? | D16: Is the security property a unit in a high density postcode with more than 35 units? | R16: Specialist Fulldoc | AC16: Prime Full Doc
A17: Fraud check: | D17: What is the outcome of the Equifax Fraud check in NextGen? If a match, to be referred to Senior or Team Leader to investigate the match. | R17: Specialist Fulldoc PLUS | AC17: Prime Alt Doc
A18: PEP & Sanctions check: | D18: Is the applicant confirmed as being on the PEP or Sanctions register (not a potential match). If a match refer to dedicated team member for enhanced search. | R18: Specialist Altdoc | AC18: Prime PLUS Full Doc
A19: ID document is clear and valid? | D19: Have the correct, clear identification documents and Customer Identification form been completed correctly, signed? | R19: Specialist Altdoc PLUS | AC19: Prime PLUS Alt Doc
A20: Company & Trust Loans (>25% Owned): | D20: Non-individual entities: Has the correct information and documentation been collected to verify the customer to ensure we meet our AML obligations including the verification of identity of beneficial owners.
A21: Company applications:
A22: Credit file summary: | D22: Comment on the credit bureau file. Where there is an adverse listing what is the reason and why is it accepted. If there are numerous inquiries and the customer has stated no liabilities - what investigations were done and what was the outcome. If there are items that don't match the profile of the customer e.g. customer aged 50 and new credit file, document investigations completed. Is the information on the credit file consistent with the information provided in the customer's application form e.g. in relation to liabilities. | AC22: Near Prime Full Doc
A23: Applicant 1 Income: | D23: Summary about the applicant, job, how long employed, income and what documents were used to verify that income and employment. Is income reasonable for the borrower's employment and age. If self employed what does the applicants business do. | AC23: Near Prime Alt Doc
A24: Applicant 2 Income: | D24: Summary about the applicant, job, how long employed, income and what documents were used to verify that income and employment. Is income reasonable for the borrower's employment and age. If self employed what does the applicants business do. | AC24: Specialist Full Doc
A25: Exit Strategy | D25: If the applicants are older than 50 years of age and the loan term exceeds the standard retirement age (67) of the oldest income reliant borrower an exit strategy of how the borower(s) will continue to meet their repayment obligations must be obtained. The borrower(s) exit strategy must be documented and the credit notes included as to why the exit strategy has been deemed reasonable and consistent with Customer's requirements and objectives. | AC25: Specialist Alt Doc
A26: Rental Income: | D26: Comment on what rental income is received and used in assessment and how was it verified. | AC26: Specialist PLUS Full Doc
A27: Conduct assessed (Refinance): | D27: Refinance: Comment on conduct of any loans that are being refinanced and where adverse conduct exists why and mitigation. Confirm that 6 months statements held. | AC27: Specialist PLUS Alt Doc
A28: Funds to complete (Purchase): | D28: Purchase: Comment on where the funds to complete are coming from and have been verified. Have 5% genuine savings been verified on Prime > 90%
A29: HEB Benchmark (using StatsNZ data to benchmark property costs, living expenses excluding insurance and education) | B29: =Residential!R40 -> 0 | D29: Comment on whether DLE or benchmark has been relied upon and assessment to be made as to whether or not the declared living expenses are realistic and if so why. Where a declared living expense appears unrealisitc, is zero, or the declared living expense are less than 80% of benchmark, additional inquiry must be made with the broker / borrower and subsequently assessed. If the ratio is substantially over 100%, check if applicant has not doubled up anywhere eg included finance cost on property categories. If bank statements are provided comment on how the transactions on those statement support the DLE.
A30: Declared Living Expense (HEB). For serviceability testing, this amount will be adjusted to the HEB benchmark if lower than same. | B30: =SUM(Residential!G50,Residential!G51,Residential!G52,Residential!G53,Residential!G54,Residential!G55,Residential!G56,Residential!G57,Residential!G58,Residential!G62)*12 -> 0
A31: Declared Living Exepnse (non-HEB) | B31: =SUM(Residential!G59:G61)*12 -> 0
A32: Declared Living Expense (HEB) % of Benchmark | B32: =B29/B30 -> 
A33: Living expense assessment: | B33: Property costs | D33: =Residential!G50 -> 0 | E33: =[1]Servicing_Calculator!B13 -> Owner occupied property utilities, rates & costs | F33: Include council rates, water, gas & electricity utility bills and body corporate fees where applicable for property owned by the applicant. Assessment should account for these expenses giving account to the type of property (location, house or unit and size).
D34: =Residential!G51 -> 0 | E34: =[1]Servicing_Calculator!B14 -> Investment property utilities, rates & costs
D35: =Residential!G52 -> 0 | E35: =[1]Servicing_Calculator!B15 -> Rented property costs | F35: Include water, gas & electricity bills if the applicant is renting. Assessment should account for these expenses giving account to the type of property (location and size).
B36: Living Expenses | D36: =Residential!G53 -> 0 | E36: =[1]Servicing_Calculator!B16 -> Telephone, Internet, pay TV & media streaming | F36: Unless an applicant has a mobile phone supplied by their employer, it is expected that each applicant would have a mobile phone expense. If they have a home phone number, they may have a ‘bundle’ with a telco which includes internet.
D37: =Residential!G54 -> 0 | E37: =[1]Servicing_Calculator!B17 -> Groceries | F37: It is expected that all applicants will have a grocery expense that is reasonable for their family unit size.
D38: =Residential!G55 -> 0 | E38: =[1]Servicing_Calculator!B18 -> Recreation & Entertainment | F38: It is expected that all applicants will have some form of recreation & entertainment cost. This includes alcohol, tobacco, gambling, restaurants and membership fees.
D39: =Residential!G56 -> 0 | E39: =[1]Servicing_Calculator!B19 -> Clothing & Personal Care | F39: It is expected that all applicants will have clothing and personal care expenses that is reasonable for their family unit size.
D40: =Residential!G57 -> 0 | E40: =[1]Servicing_Calculator!B20 -> Medical & Health | F40: As an applicant’s age increase it is expected that medical and health costs will increase. In some case this cost may be $0 however given the customers circumstance it should be understood why through additional inquiry.
D41: =Residential!G58 -> 0 | E41: =[1]Servicing_Calculator!B21 -> Transport | F41: It is expected that all applicants will have a transport cost that is reasonable for their assets and employment position. What are the running costs of each car owned including petrol and servicing or what are the costs of public transport where they commute for work. One exception may be where an applicant has one car only which is provided by their employer or running costs are already include in novated lease payments.
D42: =Residential!G59 -> 0 | E42: =[1]Servicing_Calculator!B24 -> Insurance | F42: Do the below insurances apply to the applicant(s) and have they been accounted for: - House owners with home insurance - Car owners (accounted for each car) - Private Health - particularly where income is > $90,000 and applicant is single or > $180,000 for families - Income and life insurance - Pet insurance
D43: =Residential!G60 -> 0 | E43: =[1]Servicing_Calculator!B25 -> Other | F43: This is to capture unique items not covered for in the above categories that may be applicable to the applicant(s).
B44: Children | D44: =Residential!G61 -> 0 | E44: =[1]Servicing_Calculator!B22 -> Education | F44: Where the applicant(s) has school aged children is the declared amount reasonable to cover schools fees, uniform costs and books (if high school). Does the affluency of the applicant indicate that their children may attend a private school, if so, has this been declared by the customer.
D45: =Residential!G62 -> 0 | E45: =[1]Servicing_Calculator!B23 -> Childcare | F45: Where the applicant(s) has pre-school aged children and all applicants work, has a child care cost been included that is reasonable for the location accounting for any rebate that may be due. Where this is applicable and declared expense is $0 additional inquiry needs to be made.
A46: Valuation: | D46: COS/Estimate $Amount Date VAL $Amount Date CAT Residential Zoning? Essential Repairs? Risk ratings XXXX Comp Sales XXXX Selling period within six months? Addressed to Pepper in Lender Specific Info? Comments Acceptable Security: Yes/No
A47: Other:
A48: Exceptions: | D48: Identify any exceptions and mitigation for the exception approval.
A49: Recommendation (if assessor is not the DCA approver): | D49: If approval recommendation: Recommend for Approval. I have made reasonable enquiries and verifications to recommend for approval that the product will not be unsuitable to the customers’ requirements and objectives and the loan will not cause the customer substantial hardship.
A50: Approval note: | D50: If assessor is the approver: Approval granted under my DCA. I have made the assessment and confirm that reasonable enquiries that the loan meets the customer's requirements and objectives, is not unsuitable and will not cause the customer substantial hardship. This approval is valid for 90 days. If approver was not the assessor: Approval granted under my DCA. I have reviewed the recommendation for approval and confirm that reasonable enquiries and verifications completed to make an assessment that the loan meets the customer's requirements and objectives, is not unsuitable and will not cause the customer substantial hardship. This approval is valid for 90 days. Final assessment made at the time of final approval: Approval granted under my DCA. I have confirmed that reasonable enquiries and verifications completed to make an assessment the customers financial situation and that the loan meets the customer's requirements and objectives, is not unsuitable and will not cause the customer substantial hardship. This approval is valid for 90 days.
A51: ABN search(s) | D51: Space for ABN search if not copied directly into NextGen.
A54: COMPLIANCE:
A55: Privacy Dec held:
A56: CRO & Features required:
A57: Customer Identification Form:
A59: SE CHECK COMPLETE:
A60: CUSTOMER ID'D:
A61: Confirm requirements and objectives and benefit: In reviewing the application, your requirements are (a) interest only payments, (b) lowest interest rate and objectives are to purchase the property at ......(address); or (b) refinance the debt with (lender); and/or (c) consolidate debt (i), (ii), (iii) etc . Is this correct? Are there any other requirements and objectives?
A62: Business operated and how long:
A63: Income confirmed: Do you expect an increase or decrease in your income over the next 3 years. If a decrease, describe events that would cause this and your strategy to maintain your repayments / details of your exit strategy.
A64: Confirm loan amount, product, interest rate & repayment with the borrower: If there is an indication on the application which suggests financials are avilable for the borrower, we need to question if they are availble, therefore advising they are entitled to a different product (Full Doc).
A65: Any other info:
B68: ACCOUNTANT CHECK COMPLETE:
B70: Called XXXX (verified on TPB - registration number XXXX) on phone number XXXX (internet site)
B71: Confirmed prepared accounts since year XXXX
B72: 20XX NPBT $___ Deductions $___
B73: 20XX NPBT $___ Deductions $___
B74: Other:

Sheet Version Control (hidden)
A1: Version | B1: Created date | C1: Date Effective | D1: Created By | E1: Approved By | F1: Change
A2: 0.1 | B2: 2019-02-22 | D2: Neil Culkin | F2: First draft Baselined from Australian calculator v5.0 - Company tax changed from 30% to 28% - NZ Personal tax and ACC rates included - NZ HEM included - Negative Gearing calculations removed - Floor rate reduced to 0% (ie no floor rate) - Commercial related worksheets deleted
A3: 0.2 | B3: 2019-04-16 | D3: Paul Dean | F3: HEM updated to Basic Central
A4: 0.3 | B4: 2019-04-23 | D4: Neil Culkin | F4: Second draft Re-baselined from Australian caculator v5.1 - Company tax changed from 30% to 28% - NZ Personal tax and ACC rates included - NZ HEM included (Basic Central) - Negative Gearing calculations removed - Floor rate reduced to 0% (ie no floor rate) - Commercial related worksheets deleted
A5: 0.3 | B5: 2019-05-01 | D5: Devika | F5: Remove the attestation to asking for " Bank statements"
A6: 1 | B6: 2019-05-15 | C6: 2019-05-15 | D6: Neil Culkin | E6: Neil Culkin | F6: First issuance
A7: 1.1 | B7: 2019-06-01 | C7: 2019-06-24 | D7: Neil Culkin | E7: MPL Credit Forum | F7: Include negative gearing by: - interest deduction on investment property loans @ 3.80% which is representitive of lowest market rate (see table opposite effective 17 June 2019) - investment property costs added also added as a gross income deduction - formula is the same as AU v5.1 - https://www.classic.ird.govt.nz/property/property-rental/claim-expenses/claiming-expenses.html
A8: 1.2 | B8: 2020-06-17 | C8: 2020-09-23 | D8: Neil Culkin | E8: Neil Culkin | F8: 1. Rental property expense tax deductions capped at the lower of gross rental income or sum of rental property expenses (investment property living expenses + interest on investment property loans). Formula amendment to cell E33. 2. Living Expense Benchmark updated to latest version of HES (2019 released June 2020)
A9: 1.3 | B9: 2021-04-13 | C9: 2021-06-07 | D9: Neil Culkin | E9: Neil Culkin | F9: Investment loan interest tax deductions removed - 'Working for Negative Gearing' amended from 3.8% to 0%
A10: 1.4 | B10: 2021-08-04 | C10: 2021-12-01 | D10: Neil Culkin | E10: Neil Culkin | F10: 1. DSR calculations (cell E76 & M76) updated to annualise the rental expense (cell M50) which is deducted as part of the numerator formula. Note this is not a Critical Data Element (CDE) 2. Adjusted Credit Card repayment from 3% of limit to 3.8% 3. Updating tax brackets to FYE2022 rates 4. Updating of the living expense benchmark to the 2021 HEB CCCFA benchmark 5. Update of living expenses compared to benchmark in cell R42 to exclude categories that are not included in the new benchmark (Insurance, Education, Other). New formula =(MAX(R40,SUM(G50:G58,G62)*12))+(SUM(G59:G61)*12)
A11: 1.4.1 | B11: 2021-01-07 | D11: Neil Culkin | E11: Neil Culkin | F11: 1. Loan Assessment notes: Addition of HEB description and explicit listing of HEB compared living expenses.
A12: 1.4.2 | B12: 2022-03-04 | C12: 2022-03-04 | D12: Neil Culkin | E12: Neil Culkin | F12: 1. Loan Assessment notes: Updating of the approval wording
A13: 1.5 | B13: 2022-05-24 | C13: 2022-07-01 | D13: Neil Culkin | E13: Neil Culkin | F13: 1. Interest rate buffer increased from 2% to 2.5%
A14: 1.6 | B14: 2023-08-09 | C14: 2023-08-13 | D14: Neil Culkin | E14: Neil Culkin | F14: 1. Updated of HEB to 2023 2. Interest rate buffer decreased from 2.5% to 2%
A15: 1.6a | B15: 2023-10-05 | C15: 2023-10-05 | D15: Neil Culkin | E15: Neil Culkin | F15: 1. Correction: Assessment Notes, HEB Benchmark (B28) updated to pick up benchmark (R40). Previously picking up total DLE (R41)
A16: 1.7 | B16: 2024-09-14 | C16: 2024-11-28 | D16: Neil Culkin | E16: Neil Culkin | F16: 1. Non-CCCFA serviceability calculator added 2. Introduced 1% interest rate buffer option (subject to eligiblity) 3. Introduced 0% interest rate buffer option (subject to eligiblity)
A17: 1.7a | B17: 2024-12-18 | C17: 2024-12-18 | D17: Neil Culkin | E17: Neil Culkin | F17: 1. Correction: NonCCCFA sheet update for cells G73 and O73 to be annual figures

Sheet SEIC
B1: Self-Employed Income Calculator
C3: Business 1 | N3: Business 2
D5: Most Recent Year | F5: Previous Year | O5: Most Recent Year | Q5: Previous Year
C6: Financial year end date (DD/MM/YYYY) | N6: Financial year end date (DD/MM/YYYY) | P6: 42551
C8: Gross Business Income | N8: Gross Business Income
C9: less expenses | N9: less expenses
C10: plus Kiwisaver over 3% | N10: plus Kiwisaver over 3%
C12: plus depreciation | N12: plus depreciation
C13: plus interest / leasing charges | N13: plus interest / leasing charges
C15: less Ongoing Business Loan REPAYMENTS | N15: less Ongoing Business Loan REPAYMENTS
H16: Total Business Income | S16: Total Business Income
C17: Director Wages: | H17: Most Recent Year | I17: Previous Year | N17: Director Wages: | S17: Most Recent Year | T17: Previous Year
C18: Applicant 1 | H18: =(D$8-D$9+D$10-D$15)*D26+D18 -> 0 | I18: =(F$8-F$9+F$10-D$15)*F26+F18 -> 0 | N18: Applicant 1 | S18: =(O$8-O$9+O$10-O$15)*O26+O18 -> 0 | T18: =(Q$8-Q$9+Q$10-O$15)*Q26+Q18 -> 0
C19: Applicant 2 | H19: 0 | I19: 0 | N19: Applicant 2 | S19: 0 | T19: 0
C20: Applicant 3 | H20: 0 | I20: 0 | N20: Applicant 3 | S20: 0 | T20: 0
C21: Applicant 4 | H21: 0 | I21: 0 | N21: Applicant 4 | S21: 0 | T21: 0
C22: Applicant 5 | H22: 0 | I22: 0 | N22: Applicant 5 | S22: 0 | T22: 0
C23: Applicant 6 | H23: 0 | I23: 0 | N23: Applicant 6 | S23: 0 | T23: 0
H24: Untaxed Addbacks | S24: Untaxed Addbacks
C25: Applicant's Entitlement: | H25: Most Recent Year | I25: Previous Year | N25: Applicant's Entitlement: | S25: Most Recent Year | T25: Previous Year
C26: Applicant 1 | H26: =(D$13+D$12)*$D26 -> 0 | I26: =(F$13+F$12)*$F26 -> 0 | N26: Applicant 1 | S26: =(O$13+O$12)*$O26 -> 0 | T26: =(Q$13+Q$12)*$Q26 -> 0
C27: Applicant 2 | H27: 0 | I27: 0 | N27: Applicant 2 | S27: 0 | T27: 0
C28: Applicant 3 | H28: 0 | I28: 0 | N28: Applicant 3 | S28: 0 | T28: 0
C29: Applicant 4 | H29: 0 | I29: 0 | N29: Applicant 4 | S29: 0 | T29: 0
C30: Applicant 5 | H30: 0 | I30: 0 | N30: Applicant 5 | S30: 0 | T30: 0
C31: Applicant 6 | H31: 0 | I31: 0 | N31: Applicant 6 | S31: 0 | T31: 0
D32: =IF(SUM(D26:D31)>100%,"Check: >100%","") ->  | F32: =IF(SUM(F26:F31)>100%,"Check","") ->  | O32: =IF(SUM(O26:O31)>100%,"Check: >100%","") ->  | Q32: =IF(SUM(Q26:Q31)>100%,"Check","") -> 
C33: Calculations: Business 1 | N33: Calculations: Business 2
D35: Self-Employed Income | O35: Self-Employed Income
C36: Applicant 1 | D36: =IF(H18>I18,AVERAGE(H18,I18),H18) -> 0 | N36: Applicant 1 | O36: =IF(S18>T18,AVERAGE(S18,T18),S18) -> 0
C37: Applicant 2 | D37: 0 | N37: Applicant 2 | O37: 0
C38: Applicant 3 | D38: 0 | N38: Applicant 3 | O38: 0
C39: Applicant 4 | D39: 0 | N39: Applicant 4 | O39: 0
C40: Applicant 5 | D40: 0 | N40: Applicant 5 | O40: 0
C41: Applicant 6 | D41: 0 | N41: Applicant 6 | O41: 0
D43: Addbacks | O43: Addbacks
C44: Applicant 1 | D44: =IF(H26>I26,AVERAGE(H26,I26),H26) -> 0 | N44: Applicant 1 | O44: =IF(S26>T26,AVERAGE(S26,T26),S26) -> 0
C45: Applicant 2 | D45: 0 | N45: Applicant 2 | O45: 0
C46: Applicant 3 | D46: 0 | N46: Applicant 3 | O46: 0
C47: Applicant 4 | D47: 0 | N47: Applicant 4 | O47: 0
C48: Applicant 5 | D48: 0 | N48: Applicant 5 | O48: 0
C49: Applicant 6 | D49: 0 | N49: Applicant 6 | O49: 0
C54: Outputs
D56: Self-Employed Income
C57: Applicant 1 | D57: =D36+O36 -> 0
C58: Applicant 2 | D58: 0
C59: Applicant 3 | D59: 0
C60: Applicant 4 | D60: 0
C61: Applicant 5 | D61: 0
C62: Applicant 6 | D62: 0
D64: Addbacks
C65: Applicant 1 | D65: =D44+O44 -> 0
C66: Applicant 2 | D66: 0
C67: Applicant 3 | D67: 0
C68: Applicant 4 | D68: 0
C69: Applicant 5 | D69: 0
C70: Applicant 6 | D70: 0

Sheet Validation (hidden)
A1: Residential | B1: Applicant 1 | C1: Applicant 2 | D1: Applicant 3 | E1: Applicant 4 | F1: Applicant 5 | G1: Applicant 6 | I1: CRE | J1: Applicant 1 | K1: Applicant 2 | L1: Applicant 3 | M1: Applicant 4 | P1: Valid Status Resi | R1: Valid Status CRE
A2: Applicant 1 | B2: =IF(AND(B$1<>$A2,HLOOKUP($A2,Residential!$E$14:$O$15,2,FALSE)="Individual (Couple)",Residential!E$15="Individual (Couple)"),$A2) -> FALSE | C2: =IF(AND(C$1<>$A2,HLOOKUP($A2,Residential!$E$14:$O$15,2,FALSE)="Individual (Couple)",Residential!G$15="Individual (Couple)"),$A2) -> FALSE | D2: =IF(AND(D$1<>$A2,HLOOKUP($A2,Residential!$E$14:$O$15,2,FALSE)="Individual (Couple)",Residential!I$15="Individual (Couple)"),$A2) -> FALSE | E2: =IF(AND(E$1<>$A2,HLOOKUP($A2,Residential!$E$14:$O$15,2,FALSE)="Individual (Couple)",Residential!K$15="Individual (Couple)"),$A2) -> FALSE | F2: =IF(AND(F$1<>$A2,HLOOKUP($A2,Residential!$E$14:$O$15,2,FALSE)="Individual (Couple)",Residential!M$15="Individual (Couple)"),$A2) -> FALSE | G2: =IF(AND(G$1<>$A2,HLOOKUP($A2,Residential!$E$14:$O$15,2,FALSE)="Individual (Couple)",Residential!O$15="Individual (Couple)"),$A2) -> FALSE | I2: Applicant 1 | J2: =IF(AND(J$1<>$I2,HLOOKUP($I2,#REF!,2,FALSE)="Individual (Couple)",#REF!="Individual (Couple)"),$I2) ->  | K2: =IF(AND(K$1<>$I2,HLOOKUP($I2,#REF!,2,FALSE)="Individual (Couple)",#REF!="Individual (Couple)"),$I2) ->  | L2: =IF(AND(L$1<>$I2,HLOOKUP($I2,#REF!,2,FALSE)="Individual (Couple)",#REF!="Individual (Couple)"),$I2) ->  | M2: =IF(AND(M$1<>$I2,HLOOKUP($I2,#REF!,2,FALSE)="Individual (Couple)",#REF!="Individual (Couple)"),$I2) ->  | P2: Company | R2: Individual (Single)
A3: Applicant 2 | B3: =IF(AND(B$1<>$A3,HLOOKUP($A3,Residential!$E$14:$O$15,2,FALSE)="Individual (Couple)",Residential!E$15="Individual (Couple)"),$A3) -> FALSE | C3: =IF(AND(C$1<>$A3,HLOOKUP($A3,Residential!$E$14:$O$15,2,FALSE)="Individual (Couple)",Residential!G$15="Individual (Couple)"),$A3) -> FALSE | D3: =IF(AND(D$1<>$A3,HLOOKUP($A3,Residential!$E$14:$O$15,2,FALSE)="Individual (Couple)",Residential!I$15="Individual (Couple)"),$A3) -> FALSE | E3: =IF(AND(E$1<>$A3,HLOOKUP($A3,Residential!$E$14:$O$15,2,FALSE)="Individual (Couple)",Residential!K$15="Individual (Couple)"),$A3) -> FALSE | F3: =IF(AND(F$1<>$A3,HLOOKUP($A3,Residential!$E$14:$O$15,2,FALSE)="Individual (Couple)",Residential!M$15="Individual (Couple)"),$A3) -> FALSE | G3: =IF(AND(G$1<>$A3,HLOOKUP($A3,Residential!$E$14:$O$15,2,FALSE)="Individual (Couple)",Residential!O$15="Individual (Couple)"),$A3) -> FALSE | I3: Applicant 2 | J3: =IF(AND(J$1<>$I3,HLOOKUP($I3,#REF!,2,FALSE)="Individual (Couple)",#REF!="Individual (Couple)"),$I3) ->  | K3: =IF(AND(K$1<>$I3,HLOOKUP($I3,#REF!,2,FALSE)="Individual (Couple)",#REF!="Individual (Couple)"),$I3) ->  | L3: =IF(AND(L$1<>$I3,HLOOKUP($I3,#REF!,2,FALSE)="Individual (Couple)",#REF!="Individual (Couple)"),$I3) ->  | M3: =IF(AND(M$1<>$I3,HLOOKUP($I3,#REF!,2,FALSE)="Individual (Couple)",#REF!="Individual (Couple)"),$I3) ->  | P3: Individual (Single) | R3: Individual (Couple)
A4: Applicant 3 | B4: =IF(AND(B$1<>$A4,HLOOKUP($A4,Residential!$E$14:$O$15,2,FALSE)="Individual (Couple)",Residential!E$15="Individual (Couple)"),$A4) -> FALSE | C4: =IF(AND(C$1<>$A4,HLOOKUP($A4,Residential!$E$14:$O$15,2,FALSE)="Individual (Couple)",Residential!G$15="Individual (Couple)"),$A4) -> FALSE | D4: =IF(AND(D$1<>$A4,HLOOKUP($A4,Residential!$E$14:$O$15,2,FALSE)="Individual (Couple)",Residential!I$15="Individual (Couple)"),$A4) -> FALSE | E4: =IF(AND(E$1<>$A4,HLOOKUP($A4,Residential!$E$14:$O$15,2,FALSE)="Individual (Couple)",Residential!K$15="Individual (Couple)"),$A4) -> FALSE | F4: =IF(AND(F$1<>$A4,HLOOKUP($A4,Residential!$E$14:$O$15,2,FALSE)="Individual (Couple)",Residential!M$15="Individual (Couple)"),$A4) -> FALSE | G4: =IF(AND(G$1<>$A4,HLOOKUP($A4,Residential!$E$14:$O$15,2,FALSE)="Individual (Couple)",Residential!O$15="Individual (Couple)"),$A4) -> FALSE | I4: Applicant 3 | J4: =IF(AND(J$1<>$I4,HLOOKUP($I4,#REF!,2,FALSE)="Individual (Couple)",#REF!="Individual (Couple)"),$I4) ->  | K4: =IF(AND(K$1<>$I4,HLOOKUP($I4,#REF!,2,FALSE)="Individual (Couple)",#REF!="Individual (Couple)"),$I4) ->  | L4: =IF(AND(L$1<>$I4,HLOOKUP($I4,#REF!,2,FALSE)="Individual (Couple)",#REF!="Individual (Couple)"),$I4) ->  | M4: =IF(AND(M$1<>$I4,HLOOKUP($I4,#REF!,2,FALSE)="Individual (Couple)",#REF!="Individual (Couple)"),$I4) ->  | P4: Individual (Couple)
A5: Applicant 4 | B5: =IF(AND(B$1<>$A5,HLOOKUP($A5,Residential!$E$14:$O$15,2,FALSE)="Individual (Couple)",Residential!E$15="Individual (Couple)"),$A5) -> FALSE | C5: =IF(AND(C$1<>$A5,HLOOKUP($A5,Residential!$E$14:$O$15,2,FALSE)="Individual (Couple)",Residential!G$15="Individual (Couple)"),$A5) -> FALSE | D5: =IF(AND(D$1<>$A5,HLOOKUP($A5,Residential!$E$14:$O$15,2,FALSE)="Individual (Couple)",Residential!I$15="Individual (Couple)"),$A5) -> FALSE | E5: =IF(AND(E$1<>$A5,HLOOKUP($A5,Residential!$E$14:$O$15,2,FALSE)="Individual (Couple)",Residential!K$15="Individual (Couple)"),$A5) -> FALSE | F5: =IF(AND(F$1<>$A5,HLOOKUP($A5,Residential!$E$14:$O$15,2,FALSE)="Individual (Couple)",Residential!M$15="Individual (Couple)"),$A5) -> FALSE | G5: =IF(AND(G$1<>$A5,HLOOKUP($A5,Residential!$E$14:$O$15,2,FALSE)="Individual (Couple)",Residential!O$15="Individual (Couple)"),$A5) -> FALSE | I5: Applicant 4 | J5: =IF(AND(J$1<>$I5,HLOOKUP($I5,#REF!,2,FALSE)="Individual (Couple)",#REF!="Individual (Couple)"),$I5) ->  | K5: =IF(AND(K$1<>$I5,HLOOKUP($I5,#REF!,2,FALSE)="Individual (Couple)",#REF!="Individual (Couple)"),$I5) ->  | L5: =IF(AND(L$1<>$I5,HLOOKUP($I5,#REF!,2,FALSE)="Individual (Couple)",#REF!="Individual (Couple)"),$I5) ->  | M5: =IF(AND(M$1<>$I5,HLOOKUP($I5,#REF!,2,FALSE)="Individual (Couple)",#REF!="Individual (Couple)"),$I5) -> 
A6: Applicant 5 | B6: =IF(AND(B$1<>$A6,HLOOKUP($A6,Residential!$E$14:$O$15,2,FALSE)="Individual (Couple)",Residential!E$15="Individual (Couple)"),$A6) -> FALSE | C6: =IF(AND(C$1<>$A6,HLOOKUP($A6,Residential!$E$14:$O$15,2,FALSE)="Individual (Couple)",Residential!G$15="Individual (Couple)"),$A6) -> FALSE | D6: =IF(AND(D$1<>$A6,HLOOKUP($A6,Residential!$E$14:$O$15,2,FALSE)="Individual (Couple)",Residential!I$15="Individual (Couple)"),$A6) -> FALSE | E6: =IF(AND(E$1<>$A6,HLOOKUP($A6,Residential!$E$14:$O$15,2,FALSE)="Individual (Couple)",Residential!K$15="Individual (Couple)"),$A6) -> FALSE | F6: =IF(AND(F$1<>$A6,HLOOKUP($A6,Residential!$E$14:$O$15,2,FALSE)="Individual (Couple)",Residential!M$15="Individual (Couple)"),$A6) -> FALSE | G6: =IF(AND(G$1<>$A6,HLOOKUP($A6,Residential!$E$14:$O$15,2,FALSE)="Individual (Couple)",Residential!O$15="Individual (Couple)"),$A6) -> FALSE
A7: Applicant 6 | B7: =IF(AND(B$1<>$A7,HLOOKUP($A7,Residential!$E$14:$O$15,2,FALSE)="Individual (Couple)",Residential!E$15="Individual (Couple)"),$A7) -> FALSE | C7: =IF(AND(C$1<>$A7,HLOOKUP($A7,Residential!$E$14:$O$15,2,FALSE)="Individual (Couple)",Residential!G$15="Individual (Couple)"),$A7) -> FALSE | D7: =IF(AND(D$1<>$A7,HLOOKUP($A7,Residential!$E$14:$O$15,2,FALSE)="Individual (Couple)",Residential!I$15="Individual (Couple)"),$A7) -> FALSE | E7: =IF(AND(E$1<>$A7,HLOOKUP($A7,Residential!$E$14:$O$15,2,FALSE)="Individual (Couple)",Residential!K$15="Individual (Couple)"),$A7) -> FALSE | F7: =IF(AND(F$1<>$A7,HLOOKUP($A7,Residential!$E$14:$O$15,2,FALSE)="Individual (Couple)",Residential!M$15="Individual (Couple)"),$A7) -> FALSE | G7: =IF(AND(G$1<>$A7,HLOOKUP($A7,Residential!$E$14:$O$15,2,FALSE)="Individual (Couple)",Residential!O$15="Individual (Couple)"),$A7) -> FALSE
B9: =IF(MID(Residential!E15,13,6)<>"Couple","","N/A") ->  | C9: =IF(MID(Residential!G15,13,6)<>"Couple","","N/A") ->  | D9: =IF(MID(Residential!I15,13,6)<>"Couple","","N/A") ->  | E9: =IF(MID(Residential!K15,13,6)<>"Couple","","N/A") ->  | F9: =IF(MID(Residential!M15,13,6)<>"Couple","","N/A") ->  | G9: =IF(MID(Residential!O15,13,6)<>"Couple","","N/A") ->  | J9: =IF(MID(#REF!,13,6)<>"Couple","","N/A") ->  | K9: =IF(MID(#REF!,13,6)<>"Couple","","N/A") ->  | L9: =IF(MID(#REF!,13,6)<>"Couple","","N/A") ->  | M9: =IF(MID(#REF!,13,6)<>"Couple","","N/A") -> 
B10: =IF(MID(Residential!E15,13,6)<>"Couple","","Non-loan party") ->  | C10: =IF(MID(Residential!G15,13,6)<>"Couple","","Non-loan party") ->  | D10: =IF(MID(Residential!I15,13,6)<>"Couple","","Non-loan party") ->  | E10: =IF(MID(Residential!K15,13,6)<>"Couple","","Non-loan party") ->  | F10: =IF(MID(Residential!M15,13,6)<>"Couple","","Non-loan party") ->  | G10: =IF(MID(Residential!O15,13,6)<>"Couple","","Non-loan party") ->  | J10: =IF(MID(#REF!,13,6)<>"Couple","","Non-loan party") ->  | K10: =IF(MID(#REF!,13,6)<>"Couple","","Non-loan party") ->  | L10: =IF(MID(#REF!,13,6)<>"Couple","","Non-loan party") ->  | M10: =IF(MID(#REF!,13,6)<>"Couple","","Non-loan party") -> 
B11: =IFERROR(INDEX(B$2:B$7,SMALL(IF(ISTEXT(B$2:B$7),ROW(B$1:B$6),""), ROW(B2)-1)),"-") -> - | C11: =IFERROR(INDEX(C$2:C$7,SMALL(IF(ISTEXT(C$2:C$7),ROW(C$1:C$6),""), ROW(C2)-1)),"-") -> - | D11: =IFERROR(INDEX(D$2:D$7,SMALL(IF(ISTEXT(D$2:D$7),ROW(D$1:D$6),""), ROW(D2)-1)),"-") -> - | E11: =IFERROR(INDEX(E$2:E$7,SMALL(IF(ISTEXT(E$2:E$7),ROW(E$1:E$6),""), ROW(E2)-1)),"-") -> - | F11: =IFERROR(INDEX(F$2:F$7,SMALL(IF(ISTEXT(F$2:F$7),ROW(F$1:F$6),""), ROW(F2)-1)),"-") -> - | G11: =IFERROR(INDEX(G$2:G$7,SMALL(IF(ISTEXT(G$2:G$7),ROW(G$1:G$6),""), ROW(G2)-1)),"-") -> - | J11: =IFERROR(INDEX(J$2:J$5,SMALL(IF(ISTEXT(J$2:J$5),ROW(J$1:J$4),""), ROW(J2)-1)),"-") -> - | K11: =IFERROR(INDEX(K$2:K$5,SMALL(IF(ISTEXT(K$2:K$5),ROW(K$1:K$4),""), ROW(K2)-1)),"-") -> - | L11: =IFERROR(INDEX(L$2:L$5,SMALL(IF(ISTEXT(L$2:L$5),ROW(L$1:L$4),""), ROW(L2)-1)),"-") -> - | M11: =IFERROR(INDEX(M$2:M$5,SMALL(IF(ISTEXT(M$2:M$5),ROW(M$1:M$4),""), ROW(M2)-1)),"-") -> -
B12: =IFERROR(INDEX(B$2:B$7,SMALL(IF(ISTEXT(B$2:B$7),ROW(B$1:B$6),""), ROW(B3)-1)),"-") -> - | C12: =IFERROR(INDEX(C$2:C$7,SMALL(IF(ISTEXT(C$2:C$7),ROW(C$1:C$6),""), ROW(C3)-1)),"-") -> - | D12: =IFERROR(INDEX(D$2:D$7,SMALL(IF(ISTEXT(D$2:D$7),ROW(D$1:D$6),""), ROW(D3)-1)),"-") -> - | E12: =IFERROR(INDEX(E$2:E$7,SMALL(IF(ISTEXT(E$2:E$7),ROW(E$1:E$6),""), ROW(E3)-1)),"-") -> - | F12: =IFERROR(INDEX(F$2:F$7,SMALL(IF(ISTEXT(F$2:F$7),ROW(F$1:F$6),""), ROW(F3)-1)),"-") -> - | G12: =IFERROR(INDEX(G$2:G$7,SMALL(IF(ISTEXT(G$2:G$7),ROW(G$1:G$6),""), ROW(G3)-1)),"-") -> - | J12: =IFERROR(INDEX(J$2:J$5,SMALL(IF(ISTEXT(J$2:J$5),ROW(J$1:J$4),""), ROW(J3)-1)),"-") -> - | K12: =IFERROR(INDEX(K$2:K$5,SMALL(IF(ISTEXT(K$2:K$5),ROW(K$1:K$4),""), ROW(K3)-1)),"-") -> - | L12: =IFERROR(INDEX(L$2:L$5,SMALL(IF(ISTEXT(L$2:L$5),ROW(L$1:L$4),""), ROW(L3)-1)),"-") -> - | M12: =IFERROR(INDEX(M$2:M$5,SMALL(IF(ISTEXT(M$2:M$5),ROW(M$1:M$4),""), ROW(M3)-1)),"-") -> -
B13: =IFERROR(INDEX(B$2:B$7,SMALL(IF(ISTEXT(B$2:B$7),ROW(B$1:B$6),""), ROW(B4)-1)),"-") -> - | C13: =IFERROR(INDEX(C$2:C$7,SMALL(IF(ISTEXT(C$2:C$7),ROW(C$1:C$6),""), ROW(C4)-1)),"-") -> - | D13: =IFERROR(INDEX(D$2:D$7,SMALL(IF(ISTEXT(D$2:D$7),ROW(D$1:D$6),""), ROW(D4)-1)),"-") -> - | E13: =IFERROR(INDEX(E$2:E$7,SMALL(IF(ISTEXT(E$2:E$7),ROW(E$1:E$6),""), ROW(E4)-1)),"-") -> - | F13: =IFERROR(INDEX(F$2:F$7,SMALL(IF(ISTEXT(F$2:F$7),ROW(F$1:F$6),""), ROW(F4)-1)),"-") -> - | G13: =IFERROR(INDEX(G$2:G$7,SMALL(IF(ISTEXT(G$2:G$7),ROW(G$1:G$6),""), ROW(G4)-1)),"-") -> - | J13: =IFERROR(INDEX(J$2:J$5,SMALL(IF(ISTEXT(J$2:J$5),ROW(J$1:J$4),""), ROW(J4)-1)),"-") -> - | K13: =IFERROR(INDEX(K$2:K$5,SMALL(IF(ISTEXT(K$2:K$5),ROW(K$1:K$4),""), ROW(K4)-1)),"-") -> - | L13: =IFERROR(INDEX(L$2:L$5,SMALL(IF(ISTEXT(L$2:L$5),ROW(L$1:L$4),""), ROW(L4)-1)),"-") -> - | M13: =IFERROR(INDEX(M$2:M$5,SMALL(IF(ISTEXT(M$2:M$5),ROW(M$1:M$4),""), ROW(M4)-1)),"-") -> -
B14: =IFERROR(INDEX(B$2:B$7,SMALL(IF(ISTEXT(B$2:B$7),ROW(B$1:B$6),""), ROW(B5)-1)),"-") -> - | C14: =IFERROR(INDEX(C$2:C$7,SMALL(IF(ISTEXT(C$2:C$7),ROW(C$1:C$6),""), ROW(C5)-1)),"-") -> - | D14: =IFERROR(INDEX(D$2:D$7,SMALL(IF(ISTEXT(D$2:D$7),ROW(D$1:D$6),""), ROW(D5)-1)),"-") -> - | E14: =IFERROR(INDEX(E$2:E$7,SMALL(IF(ISTEXT(E$2:E$7),ROW(E$1:E$6),""), ROW(E5)-1)),"-") -> - | F14: =IFERROR(INDEX(F$2:F$7,SMALL(IF(ISTEXT(F$2:F$7),ROW(F$1:F$6),""), ROW(F5)-1)),"-") -> - | G14: =IFERROR(INDEX(G$2:G$7,SMALL(IF(ISTEXT(G$2:G$7),ROW(G$1:G$6),""), ROW(G5)-1)),"-") -> -
B15: =IFERROR(INDEX(B$2:B$7,SMALL(IF(ISTEXT(B$2:B$7),ROW(B$1:B$6),""), ROW(B6)-1)),"-") -> - | C15: =IFERROR(INDEX(C$2:C$7,SMALL(IF(ISTEXT(C$2:C$7),ROW(C$1:C$6),""), ROW(C6)-1)),"-") -> - | D15: =IFERROR(INDEX(D$2:D$7,SMALL(IF(ISTEXT(D$2:D$7),ROW(D$1:D$6),""), ROW(D6)-1)),"-") -> - | E15: =IFERROR(INDEX(E$2:E$7,SMALL(IF(ISTEXT(E$2:E$7),ROW(E$1:E$6),""), ROW(E6)-1)),"-") -> - | F15: =IFERROR(INDEX(F$2:F$7,SMALL(IF(ISTEXT(F$2:F$7),ROW(F$1:F$6),""), ROW(F6)-1)),"-") -> - | G15: =IFERROR(INDEX(G$2:G$7,SMALL(IF(ISTEXT(G$2:G$7),ROW(G$1:G$6),""), ROW(G6)-1)),"-") -> -
A19: Dependents Lookup
A20: Dependents | B20: DependedntsCode
A21: 0 | B21: 1
A22: 1 | B22: 1
A23: 2 | B23: 2
A24: 3 | B24: 3
A25: 4 | B25: 4+
B37: Don’t remove | C37: Don’t remove
A39: Servicability Calculator | I39: CRE
B40: Applicant 1 | C40: Applicant 2 | D40: Applicant 3 | E40: Applicant 4 | F40: Applicant 5 | G40: Applicant 6 | I40: Applicant 1 | J40: Applicant 2 | K40: Applicant 3 | L40: Applicant 4
A41: Status
A42: Individual (Couple) With

Sheet Data (hidden)
A1: Loan Amount | B1: Interest Rate | C1: Loan Term | D1: IO Term | E1: Status 1 | F1: Status 2 | G1: Status 3 | H1: Status 4 | I1: Status 5 | J1: Status 6 | K1: Couple With 1 | L1: Couple With 2 | M1: Couple With 3 | N1: Couple With 4 | O1: Couple With 5 | P1: Couple With 6 | Q1: Dependants 1 | R1: Dependants 2 | S1: Dependants 3 | T1: Dependants 4 | U1: Dependants 5 | V1: Dependants 6 | W1: Gross Annual Income 1 | X1: Gross Annual Income 2 | Y1: Gross Annual Income 3 | Z1: Gross Annual Income 4 | AA1: Gross Annual Income 5 | AB1: Gross Annual Income 6 | AC1: Untaxed Income 1 | AD1: Untaxed Income 2 | AE1: Untaxed Income 3 | AF1: Untaxed Income 4 | AG1: Untaxed Income 5 | AH1: Untaxed Income 6 | AI1: SEIC 1 | AJ1: SEIC 2 | AK1: SEIC 3 | AL1: SEIC 4 | AM1: SEIC 5 | AN1: SEIC 6 | AO1: Add Backs 1 | AP1: Add Backs 2 | AQ1: Add Backs 3 | AR1: Add Backs 4 | AS1: Add Backs 5 | AT1: Add Backs 6 | AU1: NPBT 1 | AV1: NPBT 2 | AW1: NPBT 3 | AX1: NPBT 4 | AY1: NPBT 5 | AZ1: NPBT 6 | BA1: Gross Rental Income 1 | BB1: Gross Rental Income 2 | BC1: Gross Rental Income 3 | BD1: Gross Rental Income 4 | BE1: Gross Rental Income 5 | BF1: Gross Rental Income 6 | BG1: Investment Property Loan Balance 1 | BH1: Investment Property Loan Balance 2 | BI1: Investment Property Loan Balance 3 | BJ1: Investment Property Loan Balance 4 | BK1: Investment Property Loan Balance 5 | BL1: Investment Property Loan Balance 6 | BM1: Owner occupied property utilities, rates & costs | BN1: Investment property utilities, rates & costs | BO1: Rented property costs | BP1: Telephone, Internet, Pay TV & Media Streaming | BQ1: Groceries | BR1: Recreation & Entertainment | BS1: Clothing & Personal Care | BT1: Medical & Health | BU1: Transport | BV1: Insurance | BW1: Other Living Expenses | BX1: Education | BY1: Childcare | BZ1: Rent/Board | CA1: Total Credit Card Limit | CB1: Other Mortgage Repayments | CC1: Other Liabilities | CD1: Actual Rate Monthly Total Income | CE1: Actual Rate Monthly - Net Income | CF1: Actual Rate Monthly - Living Costs | CG1: Actual Rate Monthly - Net Available Income | CH1: Actual Rate Monthly - Proposed Repayments | CI1: Actual Rate Monthly - Other Commitments | CJ1: Actual Rate Annually Total Income | CK1: Actual Rate Annually - Net Income | CL1: Actual Rate Annually - Living Costs | CM1: Actual Rate Annually - Net Available Income | CN1: Actual Rate Annually - Proposed Repayments | CO1: Actual Rate Annually - Other Commitments | CP1: Assessment Rate Monthly Total Income | CQ1: Assessment Rate Monthly - Net Income | CR1: Assessment Rate Monthly - Living Costs | CS1: Assessment Rate Monthly - Net Available Income | CT1: Assessment Rate Monthly - Proposed Repayments | CU1: Assessment Rate Monthly - Other Commitments | CV1: Assessment Rate Annually Total Income | CW1: Assessment Rate Annually - Net Income | CX1: Assessment Rate Annually - Living Costs | CY1: Assessment Rate Annually - Net Available Income | CZ1: Assessment Rate Annually - Proposed Repayments | DA1: Assessment Rate Annually - Other Commitments | DB1: Actual NSR | DC1: Actual DSR | DD1: Actual Results | DE1: Assessment NSR | DF1: Assessment DSR | DG1: Assessment Results | DH1: Allowable Income
A2: =Residential!E10 -> 0 | B2: =Residential!I10 -> 0 | C2: =Residential!I11 -> 0 | D2: =Residential!I12 -> 0 | E2: =IF(Residential!E15="","",Residential!E15) ->  | F2: =IF(Residential!G15="","",Residential!G15) ->  | G2: =IF(Residential!I15="","",Residential!I15) ->  | H2: =IF(Residential!K15="","",Residential!K15) ->  | I2: =IF(Residential!M15="","",Residential!M15) ->  | J2: =IF(Residential!O15="","",Residential!O15) ->  | K2: =IF(Residential!E16="","",Residential!E16) ->  | L2: =IF(Residential!G16="","",Residential!G16) ->  | M2: =IF(Residential!I16="","",Residential!I16) ->  | N2: =IF(Residential!K16="","",Residential!K16) ->  | O2: =IF(Residential!M16="","",Residential!M16) ->  | P2: =IF(Residential!O16="","",Residential!O16) ->  | Q2: =IF(Residential!E17="","",Residential!E17) ->  | R2: =IF(Residential!G17="","",Residential!G17) ->  | S2: =IF(Residential!I17="","",Residential!I17) ->  | T2: =IF(Residential!K17="","",Residential!K17) ->  | U2: =IF(Residential!M17="","",Residential!M17) ->  | V2: =IF(Residential!O17="","",Residential!O17) ->  | W2: =Residential!E19 -> 0 | X2: =Residential!G19 -> 0 | Y2: =Residential!I19 -> 0 | Z2: =Residential!K19 -> 0 | AA2: =Residential!M19 -> 0 | AB2: =Residential!O19 -> 0 | AC2: =Residential!E20 -> 0 | AD2: =Residential!G20 -> 0 | AE2: =Residential!I20 -> 0 | AF2: =Residential!K20 -> 0 | AG2: =Residential!M20 -> 0 | AH2: =Residential!O20 -> 0 | AI2: =Residential!E21 -> 0 | AJ2: =Residential!G21 -> 0 | AK2: =Residential!I21 -> 0 | AL2: =Residential!K21 -> 0 | AM2: =Residential!M21 -> 0 | AN2: =Residential!O21 -> 0 | AO2: =Residential!E22 -> 0 | AP2: =Residential!G22 -> 0 | AQ2: =Residential!I22 -> 0 | AR2: =Residential!K22 -> 0 | AS2: =Residential!M22 -> 0 | AT2: =Residential!O22 -> 0 | AU2: =Residential!E23 -> 0 | AV2: =Residential!G23 -> 0 | AW2: =Residential!I23 -> 0 | AX2: =Residential!K23 -> 0 | AY2: =Residential!M23 -> 0 | AZ2: =Residential!O23 -> 0 | BA2: =Residential!E25 -> 0 | BB2: =Residential!G25 -> 0 | BC2: =Residential!I25 -> 0 | BD2: =Residential!K25 -> 0 | BE2: =Residential!M25 -> 0 | BF2: =Residential!O25 -> 0 | BG2: =Residential!E26 -> 0 | BH2: =Residential!G26 -> 0 | BI2: =Residential!I26 -> 0 | BJ2: =Residential!K26 -> 0 | BK2: =Residential!M26 -> 0 | BL2: =Residential!O26 -> 0 | BM2: =Residential!G50 -> 0 | BN2: =Residential!G51 -> 0 | BO2: =Residential!G52 -> 0 | BP2: =Residential!G53 -> 0 | BQ2: =Residential!G54 -> 0 | BR2: =Residential!G55 -> 0 | BS2: =Residential!G56 -> 0 | BT2: =Residential!G57 -> 0 | BU2: =Residential!G58 -> 0 | BV2: =Residential!G59 -> 0 | BW2: =Residential!G60 -> 0 | BX2: =Residential!G61 -> 0 | BY2: =Residential!G62 -> 0 | BZ2: =Residential!M50 -> 0 | CA2: =Residential!M51 -> 0 | CB2: =Residential!M52 -> 0 | CC2: =Residential!M53 -> 0 | CD2: =ROUND(Residential!E68,2) -> 0 | CE2: =ROUND(Residential!E69,2) -> 0 | CF2: =ROUND(Residential!E70,2) -> 0 | CG2: =ROUND(Residential!E71,2) -> 0 | CH2: =ROUND(Residential!E72,2) -> 0 | CI2: =ROUND(Residential!E73,2) -> 0 | CJ2: =ROUND(Residential!G68,2) -> 0 | CK2: =ROUND(Residential!G69,2) -> 0 | CL2: =ROUND(Residential!G70,2) -> 0 | CM2: =ROUND(Residential!G71,2) -> 0 | CN2: =ROUND(Residential!G72,2) -> 0 | CO2: =ROUND(Residential!G73,2) -> 0 | CP2: =ROUND(Residential!M68,2) -> 0 | CQ2: =ROUND(Residential!M69,2) -> 0 | CR2: =ROUND(Residential!M70,2) -> 0 | CS2: =ROUND(Residential!M71,2) -> 0 | CT2: =ROUND(Residential!M72,2) -> 0 | CU2: =ROUND(Residential!M73,2) -> 0 | CV2: =ROUND(Residential!O68,2) -> 0 | CW2: =ROUND(Residential!O69,2) -> 0 | CX2: =ROUND(Residential!O70,2) -> 0 | CY2: =ROUND(Residential!O71,2) -> 0 | CZ2: =ROUND(Residential!O72,2) -> 0 | DA2: =ROUND(Residential!O73,2) -> 0 | DB2: =Residential!E75 -> 0 | DC2: =Residential!E76 -> - | DD2: =Residential!G75 -> INCOMPLETE | DE2: =Residential!M75 -> 0 | DF2: =Residential!M76 -> - | DG2: =Residential!O75 -> INCOMPLETE | DH2: =ROUND(Residential!M82,2) -> 

Sheet User Guide - Residential (hidden)
A1: User Guide - Residential Serviceability Calculator
A3: Field Name | B3: Instruction
A4: Clear Form (BUTTON) | B4: Allows the user to clear all input fields in the calculator
A5: Applicant Name | B5: Applicants name
A6: New Loan Amount | B6: Mandatory field - Total loan amount including any capitalised fees
A7: Interest Rate | B7: Mandatory field - Actual interest rate of the proposed loan
A8: Loan Term | B8: Mandatory field - The total loan term of the proposed loan (cannot exceed 30 years on Prime or 40 years on Near Prime or Specialist products)
A9: I/O Term | B9: The interest only term of the proposed loan. Leave blank if not applicable (will not allow IO term to exceed 5 years)
A10: Status | B10: Mandatory field - For each applicant of the loan, what is their marital status. Drop down selection of Single, Couple, Company. Note, if Company status all income will be calculated based on Company tax rates.
A11: Couple with | B11: Mandatory field - Links applicants who are a couple for household income band selection for living expense benchmark. This field must be correctly completed for both individuals of a couple, where one member of a couple is not correctly linked the living expense will be calculated as an additional couple living expense. Drop down selection N/A, Non-Loan Party or Applicant “X” when another Applicant is applied with a Couple status
A12: Dependents | B12: Number of child dependents, aged < 18, the Applicant has. Each dependent child must only be entered once per couple. If a dependent is entered for both individuals of a couple, that dependent will be counted twice.
A13: Gross Annual Income | B13: The applicants income from acceptable taxable income sources
A14: Untaxed Allowable Income | B14: Income from acceptable untaxed income sources such as Centrelink allowances. Tax is not calculated on this income
A15: Self Employed Income | B15: Income from self-employed activities, this income is taxed at personal tax rates and should not be duplicated if this income has already been entered in Gross Annual Income. Optional Macro: Where the SEIC has been used and “Apply Values to Servicing Calculator” macro executed, this field will populate with the results from the SEIC
A16: Addbacks | B16: Allowable addbacks to be entered such as depreciation or non-recurring expenses. Optional Macro: Where the SEIC has been used and “Apply Values to Servicing Calculator” macro executed, this field will populate with the results from the SEIC
A17: Business NPBT | B17: Self employed income that is to be taxed at company tax rates.
A18: Self-Employed Worksheet (BUTTON) | B18: Takes user to the SEIC tab
A19: Gross Rental Income | B19: Rental income entered at 100%. For the purposes of allowable income for serviceability, 80% of this income is used for servicing.
A20: Investment Property Loan Balance | B20: This is the total balance of investment loans held by the applicant. For tax purposes, negative gearing will be applied to the calculated taxable income. For company applicants, if this interest has been calculated in the SEIC then this field should not be populated.
A21: Owner occupied property costs including utilities, rates & expenses | B21: Mandatory fields - Include council rates, water, gas & electricity utility bills and body corporate fees where applicable for property owned by the applicant. Assessment should account for these expenses giving account to the type of property (location, house or unit and size).
A22: Investment property costs including utilities, rates & expenses
A23: Renter property costs | B23: Mandatory field - Include water, gas & electricity bills if the applicant is renting. Assessment should account for these expenses giving account to the type of property (location and size).
A24: Telephone, internet, Pay TV & media streaming | B24: Mandatory field - Unless an applicant has a mobile phone supplied by their employer, it is expected that each applicant would have a mobile phone expense. If they have a home phone number, they may have a ‘bundle’ with a telco which includes internet.
A25: Groceries | B25: Mandatory field - It is expected that all applicants will have a grocery expense that is reasonable for their family unit size.
A26: Recreation & Entertainment | B26: Mandatory field - It is expected that all applicants will have some form of recreation & entertainment cost. This includes alcohol, tobacco, gambling, restaurants and membership fees.
A27: Clothing & Personal Care | B27: Mandatory field - It is expected that all applicants will have clothing and personal care expenses that is reasonable for their family unit size.
A28: Medical & Health | B28: Mandatory field - As an applicant’s age increase it is expected that medical and health costs will increase. In some case this cost may be $0 however given the customers circumstance it should be understood why through additional inquiry.
A29: Transport | B29: Mandatory field - It is expected that all applicants will have a transport cost that is reasonable for their assets and employment position. What are the running costs of each car owned including petrol and servicing or what are the costs of public transport where they commute for work. One exception may be where an applicant has one car only which is provided by their employer or running costs are already include in novated lease payments.
A30: Education | B30: Mandatory field - Where the applicant(s) has school aged children is the declared amount reasonable to cover schools fees, uniform costs and books (if high school). Does the affluency of the applicant indicate that their children may attend a private school, if so, has this been declared by the customer.
A31: Childcare | B31: Mandatory field - Where the applicant(s) has pre-school aged children and all applicants work, has a child care cost been included that is reasonable for the location accounting for any rebate that may be due. Where this is applicable and declared expense is $0 additional inquiry needs to be made.
A32: Insurance | B32: Mandatory field - Do the below insurances apply to the applicant(s) and have they been accounted for: - House owners with home insurance - Car owners (accounted for each car) - Private Health - particularly where income is > $90,000 and applicant is single or > $180,000 for families - Income and life insurance - Pet insurance
A33: Other | B33: Mandatory field - This is to capture unique items not covered for in the above categories that may be applicable to the applicant(s).
A34: Rent/Board | B34: Rental or board expense paid by the customer.
A35: Total Credit Card Limit | B35: Total credit card limit of all continuing credit cards.
A36: Other Mortgage Repayments | B36: Mortgage repayments of any other continuing mortgage repayments.
A37: Other Liabilities | B37: Any other commitments the borrower has such as personal loans, child support, HEC’s.
A38: Eligible Loan Amount | B38: Where the NSR = FAIL an offer as to the maximum loan amount the customer can qualify for to pass the minimum NSR of 1x or 1.25x if > 50% of income is from untaxed sources. Otherwise the applied loan amount is shown.
A39: Maximum Serviceable Loan Amount | B39: This is an indication of the maximum loan amount that the borrower can service.

Sheet User Guide - SEIC (hidden)
A1: User Guide - Self Employed Income Calculator (SEIC)
A3: Field Name | B3: Explanation
A4: Clear Form (BUTTON) | B4: Allows the user to clear all fields in the calculator
A5: Apply Values | B5: Applies outputs from Self- employed income Calc into the Servicing Calculator
A6: Return to Calculator (BUTTON) | B6: Returns to Servicing Calculator.
A7: Financials for year ended Most Recent Year | B7: Year financial year ends of financial statement period
A8: Financials for year ended Previous Year | B8: Year financial year ends of financial statement period
A9: Gross Business Income | B9: Gross business income off Profit and Loss statement
A10: Less Expenses | B10: Total expenses including COGS from Profit and Loss statement
A11: Plus Superannuation over 9.5% | B11: Discretionary superannuation paid >9.5% of wages from Profit and Loss statement
A12: Plus Depreciation | B12: As advised in Profit and Loss statement
A13: Interest /Leasing Charges | B13: As advised in Profit and Loss statement
A14: Ongoing Loan Repayments | B14: Business loan repayments that will continue after the settlement of subject Pepper loan
A15: Director Wages Applicant 1 | B15: Wages paid to director
A16: Director Wages Applicant 2 | B16: Wages paid to director
A17: Director Wages Applicant 3 | B17: Wages paid to director
A18: Director Wages Applicant 4 | B18: Wages paid to director
A19: Director Wages Applicant 5 | B19: Wages paid to director
A20: Director Wages Applicant 6 | B20: Wages paid to director
A21: Applicants Entitlement/Applicant 1 | B21: % ownership of this applicant of Business/Company or Trust
A22: Applicants Entitlement/Applicant 2 | B22: % ownership of this applicant of Business/Company or Trust
A23: Applicants Entitlement/Applicant 3 | B23: % ownership of this applicant of Business/Company or Trust
A24: Applicants Entitlement/Applicant 4 | B24: % ownership of this applicant of Business/Company or Trust
A25: Applicants Entitlement/Applicant 5 | B25: % ownership of this applicant of Business/Company or Trust
A26: Applicants Entitlement/Applicant 6 | B26: % ownership of this applicant of Business/Company or Trust
A27: Apply Values (BUTTON) | B27: Applies outputs from SELF employed income calc into residential Servicing calculator
A28: Return To Calculator (BUTTON) | B28: Returns to Servicing Calculator Tab

Sheet YTD (hidden)
A1: YEAR-TO-DATE INCOME CALCULATOR
A2: Borrower Name
A3: Loan Id
A4: Start Date | B4: Finish Date | C4: No. of Days | D4: Weeks | E4: YTD Pay | F4: Ave Per Week | G4: Annualised | H4: IF Casual @ 48w
A5: 2018-07-01 | C5: =B5-A5 -> -43282 | D5: =C5/7 -> -6183.142857 | F5: =E5/D5 -> 0 | G5: =F5*52 -> 0 | H5: =G5/52*48 -> 0
A7: YEAR-TO-DATE INCOME CALCULATOR
A8: Borrower Name
A9: Loan Id
A10: Start Date | B10: Finish Date | C10: No. of Days | D10: Weeks | E10: YTD Pay | F10: Ave Per Week | G10: Annualised | H10: IF Casual @ 48w
A11: =A5 -> 2018-07-01 | C11: =B11-A11 -> -43282 | D11: =C11/7 -> -6183.142857 | F11: =E11/D11 -> 0 | G11: =F11*52 -> 0 | H11: =G11/52*48 -> 0
A13: YEAR-TO-DATE INCOME CALCULATOR
A14: Borrower Name
A15: Loan Id
A16: Start Date | B16: Finish Date | C16: No. of Days | D16: Weeks | E16: YTD Pay | F16: Ave Per Week | G16: Annualised | H16: IF Casual @ 48w
A17: =A5 -> 2018-07-01 | C17: =B17-A17 -> -43282 | D17: =C17/7 -> -6183.142857 | E17: 0 | F17: =E17/D17 -> 0 | G17: =F17*52 -> 0 | H17: =G17/52*48 -> 0

Sheet Workings (hidden)
A1: Loan Affordability Calculator

Sheet Altdoc Workings (hidden)
A1: Application Figures

Sheet Altdoc Check (hidden)
B2: Product
B3: Prime
B4: NP
B7: Checked and Matches?
B8: SE Alt Doc Application:
B9: Self Employed Declaration on file?
B10: NZBN verified?
B11: GST 101s?
B12: Business Bank statements?
B13: Accuntant letter - does this meet product?
B14: GST verified?
B15: SE Check completed?
B16: Supplementary Accountants letter on file?
B17: Accountants Check completed?
B18: Self employment check - Verification Call – Customer
B19: Good morning/afternoon, My name is [XXXX] calling on behalf of [Pepper Money/White Label partner] in relation to your home loan application. As part of the application process we undertake a verification call. Before we continue, I need to advise that this call may be recorded for training and quality purposes, is this okay? Thank you, I also need to confirm your identification. Could you please advise your name, date of birth and address? Thank you. I would now like to verify the details of the application with you. The loan amount is [$XXX,XXX], with an interest rate of [X.XX%] with monthly repayments of $X,XXX. Do you feel that you can meet this repayment without financial hardship? What is your Objective in taking out the loan? Could you please confirm what type of business you operate and how long you have operated it? Could you please confirm the income you declared on your income declaration? Could you please advise if your business was affected as part of COVID and if so how? Thank you for your time, they are all the questions that I had for today. Is there anything I can help you with at this stage? From here we will go back to the [broker / Lending Specialist] Thank you and have a great day.
B20: File note template:
B21: Phone Transferred from [Internal Staff name] - confirmed fully ID
B22: Spoke to [XXXXXX] at [xx:xx] on [XX/XX] and confirmed:
B23: Customers Objective is to [
B24: Occupation {
B25: Business operated is [
B26: Been in operation for [
B27: Confirmed declared income [$XX,XXX] per annum
B28: Loan amount [$XXX,XXX], interest rate [X.XX%], monthly repayments of [$X,XXX]. Advised [can/cant] meet the repayment without financial hardship.
B29: Verification call Accountant
B30: Good morning/afternoon, My name is XXXX calling on behalf of [Pepper Money/White Label partner]. I am calling you in order to validate a letter that you completed in relation to a mutual customer [XXXXXXXXXX]. Do you have 5 minutes in order for me to complete that? Thank you. The letter we have on file was signed by yourself on the [date] and stated that the customers net profit before tax for FY20[XX] was [$XX,XXXX]. Could you confirm that is the correct? Is this income reflective of the business’ current income level?
B31: File note template:
B32: Spoke to [XXXXXX] at [xx:xx] on [XX/XX] and confirmed:
B33: Accountants letter was written by them and stated net profit confirmed
B34: This [is/is not] representive of current income levels to the best of their knowledge.
B35: In relation to the accountants knowledge as to how the customers business has been impacted by COVID [ ]

Sheet Self Employed Income (hidden)
A1: Loan Affordability Calculator
B3: 2024 | C3: 2023 | D3: Profit/Loss | F3: Addback
A4: Sales | B4: 0 | C4: 0
A5: Expenses | B5: 0 | C5: 0
A6: NPAT | B6: 0 | C6: 0
A7: depreciation | B7: 0 | C7: 0 | D7: Profit | E7: =B6 -> 0 | F7: =B7 -> 0
A8: income - Dir/shareholder | B8: 0 | C8: 0
A9: income - Dir/shareholder | B9: 0 | C9: 0
A10: MV | B10: 0 | C10: 0
A11: Home office | B11: 0 | C11: 0
A12: Dir Sal

Sheet Rental Schedule (hidden)
A1: Property Schedule
A2: Borrowers' name(s):
A3: Application number(s):
A4: Property Address | B4: Owner(s) | C4: % owned - Borrower 1 | D4: % owned - Borrower 2 | E4: Estimated value | F4: LVR % Note 2 | G4: Loanable Sum | H4: Estimated rental | I4: Rent period - select from list | J4: Gross Annual Rent - Note 4. | K4: Buffer % [80% ] | L4: Buffered rent $ | M4: Borrower 1 share - transfer to DSC | N4: Borrower 2 share - transfer to DSC | O4: Loan $ | P4: Actual Interest % | Q4: Int deduction $ - Borrower 1 | R4: Int deduction $ - Borrower 2
F5: 0.8 | G5: =F5*E5 -> 0 | I5: Weekly | J5: =IF(I5=$X$5,H5*52, IF(I5=$X$6,H5*26, IF(I5=$X$7,H5*12," "))) -> 0 | K5: 0.8 | L5: =K5*J5 -> 0 | M5: =L5*C5 -> 0 | N5: =L5*D5 -> 0 | Q5: =P5*O5*C5 -> 0 | R5: =P5*O5*D5 -> 0 | X5: Weekly
F6: 0.8 | G6: =F6*E6 -> 0 | I6: Weekly | J6: =IF(I6=$X$5,H6*52, IF(I6=$X$6,H6*26, IF(I6=$X$7,H6*12," "))) -> 0 | K6: 0.8 | L6: =K6*J6 -> 0 | M6: =L6*C6 -> 0 | N6: =L6*D6 -> 0 | Q6: =P6*O6*C6 -> 0 | R6: =P6*O6*D6 -> 0 | X6: Fortnightly
F7: 0.8 | G7: 0 | I7: Weekly | J7: =IF(I7=$X$5,H7*52, IF(I7=$X$6,H7*26, IF(I7=$X$7,H7*12," "))) -> 0 | K7: 0.8 | L7: 0 | M7: 0 | N7: 0 | Q7: 0 | R7: 0 | X7: Monthly
F8: 0.8 | G8: 0 | I8: Weekly | J8: 0 | K8: 0.8 | L8: 0 | M8: 0 | N8: 0 | Q8: 0 | R8: 0 | X8: Annually
F9: 0.8 | G9: 0 | I9: Weekly | J9: 0 | K9: 0.8 | L9: 0 | M9: 0 | N9: 0 | Q9: 0 | R9: 0
F10: 0.8 | G10: 0 | I10: Weekly | J10: 0 | K10: 0.8 | L10: 0 | M10: 0 | N10: 0 | Q10: 0 | R10: 0
F11: 0.8 | G11: 0 | I11: Weekly | J11: 0 | K11: 0.8 | L11: 0 | M11: 0 | N11: 0 | Q11: 0 | R11: 0
F12: 0 | G12: 0 | I12: Weekly | J12: 0 | K12: 0.8 | L12: 0 | M12: 0 | N12: 0 | Q12: 0 | R12: 0
F13: 0 | Q13: 0 | R13: 0
F14: 0 | Q14: 0 | R14: 0
A17: TOTALS | E17: =SUM(E5:E16) -> 0 | G17: =SUM(G5:G16) -> 0 | H17: =SUM(H5:H16) -> 0 | J17: =SUM(J5:J16) -> 0 | L17: =SUM(L5:L16) -> 0 | M17: =SUM(M5:M16) -> 0 | N17: =SUM(N5:N16) -> 0 | O17: =SUM(O5:O16) -> 0 | Q17: =SUM(Q5:Q16) -> 0 | R17: =SUM(R5:R16) -> 0
A19: Notes:
A20: 1. Include all property owned by members
A21: 2. Set LVR to zero if property is not part of security offered.
A22: 3. Default to 80% or over-type actual if applicable
A23: 4. Use this total in Servicing Calculator (DSC)
A24: 5. Add additional rows if required.

Sheet Four Eye Check (hidden)
B2: HOW? Maybe call accountant
B3: INV and IO = same rate Day 1
B7: Checked and Matches? | C7: YES/NO | D7: LOKI | E7: DSC | F7: Approval Letter
B8: Base Loan Amount is correct?
B9: Fees correct as per rate card?
B10: Final Loan Amount is correct?
B12: Base LVR
B13: Final LVR
B15: Base Rate
B16: Add Ons
B17: Promos
B18: End Rate
B20: Product name matches rate card?
B21: Loan Term in line with product?
B22: IF >30 years, then no Interest Only
B24: Upfront and Trail commission correct?
B25: Loan Purpose correct?
B26: Fixed Rate Term correct?
B27: Interest Only Term correct?
B29: Full Name matches Docs
B30: Address verified on ID? (DL or Rates Notice/s)
B32: VOI
B33: Copy of current NZ DL or Passport
B34: Proof of current address (if not on D/L) e.g. utility bill, rates notice) or bank statement (NOTE: does not need to be a certified copy) **Settlement Condition: Customers Solicitor will provide completed ID form and required docs
B37: Trusts:
B38: Trustee Verified?
B39: Beneficial Owners Verified?
B40: Certified copy of Trust Deed on file?
B41: Settlement Condition: The trust deed for <trust name> to be reviewed by Pepper Panel Solicitor and deemed satisfactory for lending purposes.
B43: Companies:
B44: Directors Verified?
B45: Shareholders Verified?
B46: Guarantor condition for legal advice - Postponed?
B48: Credit Report on file?
B49: Credit Report checklist completed?
B50: World Check completed?
B52: SE Alt Doc Application:
B53: Self Employed Declaration on file?
B54: SE Check completed?
B55: NZBN verified?
B56: BBS/GST101/AC Letter on file?
B57: GST verified?
B58: Supplementary Accountants letter on file?
B59: Accountants Check completed?
B61: Security Valuation on file?
B62: Address matches?
B63: Addressed to Pepper?
B64: Within 90 days old?
B65: Security value matches?
B66: Title Search checked confirming no caveats?
B68: Servicing Calc completed?
B69: Final Loan Amount entered on DSC?
B70: NSR Pass 1.00x
B72: Purchase
B73: COS (correct security address and purchaser name)
B74: FHOG condition noted - if applicable
B77: Refinance
B78: Conditions - correct reference of debt noted?
B79: Below conditions to be added for all Refinances and postponed:
B80: I / We, understand it is a condition of our loan to repay and close all the above accounts. We have obtained pay out figures from the creditors and have noted them above. We undertake to close all these accounts after settlement
B81: I/ We understand that if the payout figures provided on this document are significantly lower than the figures noted in the loan agreement, confirmation must be provided from the creditor with this document.
B82: I/ We, understand that settlement may be delayed or cancelled if there are insufficient funds to compete settlement. We will be responsible for making payments for any shortfalls from our own funds.
B84: Documents required:
B85: Supplementary Privacy Disclosure
B86: Astute application
B101: Supplementary - Company Details form (if borrower involves company or company trustee)
B102: Supplementary - Business Purpose Declaration (to be signed if for business and/or INV purposes)
B103: Supplementary - Trust Details Form (required when Trust involved)
B112: Conditions are simple and concise?
B113: Call made to broker?
B114: Email sent to broker?
